Organisation Code,Organisation Label,Effective Date,Organisational Unit,Service Division Label,Category Internal Name,Purpose,Detailed Expenditure Code,Payment Date,Transaction Number,Irrecoverable VAT Amount,Amount,Capital Or Revenue,Benificiary Name,Procurement Card
Http://opendatacommunities.org/id/metropolitan-district-council/leeds,Leeds City Council,29/02/2016,Central & Corporate,Commercial Services Trading Services,Supplies and Services,Operational Materials,205,04-Feb-2016,1602-00001,0.00,19.50,R,A Andrews & Sons (Marbles & Tiles),No
Http://opendatacommunities.org/id/metropolitan-district-council/leeds,Leeds City Council,29/02/2016,Childrens Services,Safeguarding Targeted & Specialist,Third Party Payments,Allowances,546,11-Feb-2016,1602-00002,0.00,213.27,R,REDACTED PERSONAL DATA,No
Http://opendatacommunities.org/id/metropolitan-district-council/leeds,Leeds City Council,29/02/2016,Citizens and Communities,Benefits  Wlefare and Poverty,Supplies and Services,Grant Related Expenditure,298,22-Feb-2016,1602-00003,0.00,500.00,R,REDACTED PERSONAL DATA,No
Http://opendatacommunities.org/id/metropolitan-district-council/leeds,Leeds City Council,29/02/2016,Environment & Housing,Parks and Countryside,Supplies and Services,Bought In Professional Services,277,08-Feb-2016,1602-00004,0.00,1245.18,R,REDACTED COMMERCIAL CONFIDENTIALITY,No
Http://opendatacommunities.org/id/metropolitan-district-council/leeds,Leeds City Council,29/02/2016,Civic Enterprise Leeds,Facilities Management,Supplies and Services,Office Furniture & Equipment,201,12-Feb-2016,1602-00005,0.00,88.20,R,A D Smith,No
Http://opendatacommunities.org/id/metropolitan-district-council/leeds,Leeds City Council,29/02/2016,Civic Enterprise Leeds,Facilities Management,Supplies and Services,Operational Furniture And Equipment,203,18-Feb-2016,1602-00006,0.00,149.00,R,A D Smith,No
Http://opendatacommunities.org/id/metropolitan-district-council/leeds,Leeds City Council,29/02/2016,Citizens and Communities,Benefits  Wlefare and Poverty,Supplies and Services,Grant Related Expenditure,298,02-Feb-2016,1602-00007,0.00,500.00,R,REDACTED PERSONAL DATA,No
Http://opendatacommunities.org/id/metropolitan-district-council/leeds,Leeds City Council,29/02/2016,Childrens Services,Learning Skills & Universal,Third Party Payments,Services Rendered By Voluntary Sector,505,19-Feb-2016,1602-00008,0.00,850.83,R,A E Speight,No
Http://opendatacommunities.org/id/metropolitan-district-council/leeds,Leeds City Council,29/02/2016,City Development,Planning & Sustainable Development,Supplies and Services,Other Hired And Contracted Services,265,18-Feb-2016,1602-00009,0.00,150.00,R,REDACTED PERSONAL DATA,No
Http://opendatacommunities.org/id/metropolitan-district-council/leeds,Leeds City Council,29/02/2016,Strategic Landlord,Property and Contracts,Supplies and Services,Compensation Claims,200,10-Feb-2016,1602-00010,0.00,50.00,R,REDACTED PERSONAL DATA,No
Http://opendatacommunities.org/id/metropolitan-district-council/leeds,Leeds City Council,29/02/2016,Childrens Services,Safeguarding Targeted & Specialist,Supplies and Services,General Amenity For Clients/Residents,285,18-Feb-2016,1602-00011,0.00,73.00,R,REDACTED PERSONAL DATA,No
Http://opendatacommunities.org/id/metropolitan-district-council/leeds,Leeds City Council,29/02/2016,Childrens Services,Safeguarding Targeted & Specialist,Transport,Public Transport Expenses,310,18-Feb-2016,1602-00012,0.00,25.20,R,REDACTED PERSONAL DATA,No
Http://opendatacommunities.org/id/metropolitan-district-council/leeds,Leeds City Council,29/02/2016,Insurance,Insurance,Supplies and Services,Insurance Claims,248,25-Feb-2016,1602-00013,0.00,180.00,R,REDACTED PERSONAL DATA,No
Http://opendatacommunities.org/id/metropolitan-district-council/leeds,Leeds City Council,29/02/2016,Childrens Services,Learning Skills & Universal,Third Party Payments,Services Rendered By Other Organisations,511,19-Feb-2016,1602-00014,0.00,12.23,R,A Hayes,No
Http://opendatacommunities.org/id/metropolitan-district-council/leeds,Leeds City Council,29/02/2016,City Development,Libraries  Arts & Heritage,Supplies and Services,Other Hired And Contracted Services,265,17-Feb-2016,1602-00015,0.00,400.00,R,REDACTED COMMERCIAL CONFIDENTIALITY,No
Http://opendatacommunities.org/id/metropolitan-district-council/leeds,Leeds City Council,29/02/2016,Central & Corporate,Commercial Services Trading Services,Supplies and Services,Operational Materials,205,01-Feb-2016,1602-00016,0.00,27.44,R,A J H  Pump Supply & Repair Ltd,No
Http://opendatacommunities.org/id/metropolitan-district-council/leeds,Leeds City Council,29/02/2016,Central & Corporate,Commercial Services Trading Services,Supplies and Services,Operational Materials,205,03-Feb-2016,1602-00017,0.00,684.00,R,A J H  Pump Supply & Repair Ltd,No
Http://opendatacommunities.org/id/metropolitan-district-council/leeds,Leeds City Council,29/02/2016,Central & Corporate,Commercial Services Trading Services,Supplies and Services,Operational Materials,205,04-Feb-2016,1602-00018,0.00,89.00,R,A J H  Pump Supply & Repair Ltd,No
Http://opendatacommunities.org/id/metropolitan-district-council/leeds,Leeds City Council,29/02/2016,Central & Corporate,Commercial Services Trading Services,Supplies and Services,Operational Materials,205,04-Feb-2016,1602-00019,0.00,1787.50,R,A J H  Pump Supply & Repair Ltd,No
Http://opendatacommunities.org/id/metropolitan-district-council/leeds,Leeds City Council,29/02/2016,Central & Corporate,Commercial Services Trading Services,Supplies and Services,Operational Materials,205,04-Feb-2016,1602-00020,0.00,58.00,R,A J H  Pump Supply & Repair Ltd,No
Http://opendatacommunities.org/id/metropolitan-district-council/leeds,Leeds City Council,29/02/2016,Central & Corporate,Commercial Services Trading Services,Supplies and Services,Operational Materials,205,04-Feb-2016,1602-00021,0.00,38.90,R,A J H  Pump Supply & Repair Ltd,No
Http://opendatacommunities.org/id/metropolitan-district-council/leeds,Leeds City Council,29/02/2016,Central & Corporate,Commercial Services Trading Services,Supplies and Services,Operational Materials,205,04-Feb-2016,1602-00022,0.00,17.16,R,A J H  Pump Supply & Repair Ltd,No
Http://opendatacommunities.org/id/metropolitan-district-council/leeds,Leeds City Council,29/02/2016,Central & Corporate,Commercial Services Trading Services,Supplies and Services,Operational Materials,205,04-Feb-2016,1602-00023,0.00,19.83,R,A J H  Pump Supply & Repair Ltd,No
Http://opendatacommunities.org/id/metropolitan-district-council/leeds,Leeds City Council,29/02/2016,Central & Corporate,Commercial Services Trading Services,Supplies and Services,Operational Materials,205,04-Feb-2016,1602-00024,0.00,105.00,R,A J H  Pump Supply & Repair Ltd,No
Http://opendatacommunities.org/id/metropolitan-district-council/leeds,Leeds City Council,29/02/2016,Central & Corporate,Commercial Services Trading Services,Supplies and Services,Operational Materials,205,04-Feb-2016,1602-00025,0.00,15.90,R,A J H  Pump Supply & Repair Ltd,No
Http://opendatacommunities.org/id/metropolitan-district-council/leeds,Leeds City Council,29/02/2016,Central & Corporate,Commercial Services Trading Services,Supplies and Services,Operational Materials,205,04-Feb-2016,1602-00026,0.00,15.90,R,A J H  Pump Supply & Repair Ltd,No
Http://opendatacommunities.org/id/metropolitan-district-council/leeds,Leeds City Council,29/02/2016,Central & Corporate,Commercial Services Trading Services,Supplies and Services,Operational Materials,205,04-Feb-2016,1602-00027,0.00,158.37,R,A J H  Pump Supply & Repair Ltd,No
Http://opendatacommunities.org/id/metropolitan-district-council/leeds,Leeds City Council,29/02/2016,Central & Corporate,Commercial Services Trading Services,Supplies and Services,Operational Materials,205,04-Feb-2016,1602-00028,0.00,224.12,R,A J H  Pump Supply & Repair Ltd,No
Http://opendatacommunities.org/id/metropolitan-district-council/leeds,Leeds City Council,29/02/2016,Central & Corporate,Commercial Services Trading Services,Supplies and Services,Operational Materials,205,04-Feb-2016,1602-00029,0.00,19.77,R,A J H  Pump Supply & Repair Ltd,No
Http://opendatacommunities.org/id/metropolitan-district-council/leeds,Leeds City Council,29/02/2016,Central & Corporate,Commercial Services Trading Services,Supplies and Services,Operational Materials,205,04-Feb-2016,1602-00030,0.00,95.00,R,A J H  Pump Supply & Repair Ltd,No
Http://opendatacommunities.org/id/metropolitan-district-council/leeds,Leeds City Council,29/02/2016,Central & Corporate,Commercial Services Trading Services,Supplies and Services,Operational Materials,205,04-Feb-2016,1602-00031,0.00,6.19,R,A J H  Pump Supply & Repair Ltd,No
Http://opendatacommunities.org/id/metropolitan-district-council/leeds,Leeds City Council,29/02/2016,Central & Corporate,Commercial Services Trading Services,Supplies and Services,Operational Materials,205,08-Feb-2016,1602-00032,0.00,1789.00,R,A J H  Pump Supply & Repair Ltd,No
Http://opendatacommunities.org/id/metropolitan-district-council/leeds,Leeds City Council,29/02/2016,Central & Corporate,Commercial Services Trading Services,Supplies and Services,Operational Furniture And Equipment,203,11-Feb-2016,1602-00033,0.00,29.25,R,A J H  Pump Supply & Repair Ltd,No
Http://opendatacommunities.org/id/metropolitan-district-council/leeds,Leeds City Council,29/02/2016,Central & Corporate,Commercial Services Trading Services,Supplies and Services,Operational Furniture And Equipment,203,11-Feb-2016,1602-00034,0.00,15.00,R,A J H  Pump Supply & Repair Ltd,No
Http://opendatacommunities.org/id/metropolitan-district-council/leeds,Leeds City Council,29/02/2016,Central & Corporate,Commercial Services Trading Services,Supplies and Services,Other Hired And Contracted Services,265,11-Feb-2016,1602-00035,0.00,130.00,R,A J H  Pump Supply & Repair Ltd,No
Http://opendatacommunities.org/id/metropolitan-district-council/leeds,Leeds City Council,29/02/2016,Central & Corporate,Commercial Services Trading Services,Supplies and Services,Other Hired And Contracted Services,265,11-Feb-2016,1602-00036,0.00,180.00,R,A J H  Pump Supply & Repair Ltd,No
Http://opendatacommunities.org/id/metropolitan-district-council/leeds,Leeds City Council,29/02/2016,Central & Corporate,Commercial Services Trading Services,Supplies and Services,Operational Materials,205,11-Feb-2016,1602-00037,0.00,3381.00,R,A J H  Pump Supply & Repair Ltd,No
Http://opendatacommunities.org/id/metropolitan-district-council/leeds,Leeds City Council,29/02/2016,Central & Corporate,Commercial Services Trading Services,Supplies and Services,Operational Materials,205,16-Feb-2016,1602-00038,0.00,371.00,R,A J H  Pump Supply & Repair Ltd,No
Http://opendatacommunities.org/id/metropolitan-district-council/leeds,Leeds City Council,29/02/2016,Central & Corporate,Commercial Services Trading Services,Supplies and Services,Operational Materials,205,16-Feb-2016,1602-00039,0.00,84.56,R,A J H  Pump Supply & Repair Ltd,No
Http://opendatacommunities.org/id/metropolitan-district-council/leeds,Leeds City Council,29/02/2016,Central & Corporate,Commercial Services Trading Services,Supplies and Services,Operational Materials,205,16-Feb-2016,1602-00040,0.00,105.00,R,A J H  Pump Supply & Repair Ltd,No
Http://opendatacommunities.org/id/metropolitan-district-council/leeds,Leeds City Council,29/02/2016,Central & Corporate,Commercial Services Trading Services,Supplies and Services,Operational Materials,205,16-Feb-2016,1602-00041,0.00,11.90,R,A J H  Pump Supply & Repair Ltd,No
Http://opendatacommunities.org/id/metropolitan-district-council/leeds,Leeds City Council,29/02/2016,Central & Corporate,Commercial Services Trading Services,Supplies and Services,Operational Materials,205,16-Feb-2016,1602-00042,0.00,117.76,R,A J H  Pump Supply & Repair Ltd,No
Http://opendatacommunities.org/id/metropolitan-district-council/leeds,Leeds City Council,29/02/2016,Central & Corporate,Commercial Services Trading Services,Supplies and Services,Operational Materials,205,17-Feb-2016,1602-00043,0.00,251.19,R,A J H  Pump Supply & Repair Ltd,No
Http://opendatacommunities.org/id/metropolitan-district-council/leeds,Leeds City Council,29/02/2016,Central & Corporate,Commercial Services Trading Services,Supplies and Services,Operational Materials,205,17-Feb-2016,1602-00044,0.00,675.95,R,A J H  Pump Supply & Repair Ltd,No
Http://opendatacommunities.org/id/metropolitan-district-council/leeds,Leeds City Council,29/02/2016,Central & Corporate,Commercial Services Trading Services,Supplies and Services,Operational Materials,205,17-Feb-2016,1602-00045,0.00,305.12,R,A J H  Pump Supply & Repair Ltd,No
Http://opendatacommunities.org/id/metropolitan-district-council/leeds,Leeds City Council,29/02/2016,Central & Corporate,Commercial Services Trading Services,Supplies and Services,Operational Materials,205,17-Feb-2016,1602-00046,0.00,47.62,R,A J H  Pump Supply & Repair Ltd,No
Http://opendatacommunities.org/id/metropolitan-district-council/leeds,Leeds City Council,29/02/2016,Central & Corporate,Commercial Services Trading Services,Supplies and Services,Operational Materials,205,17-Feb-2016,1602-00047,0.00,298.00,R,A J H  Pump Supply & Repair Ltd,No
Http://opendatacommunities.org/id/metropolitan-district-council/leeds,Leeds City Council,29/02/2016,Central & Corporate,Commercial Services Trading Services,Supplies and Services,Operational Materials,205,17-Feb-2016,1602-00048,0.00,109.81,R,A J H  Pump Supply & Repair Ltd,No
Http://opendatacommunities.org/id/metropolitan-district-council/leeds,Leeds City Council,29/02/2016,Central & Corporate,Commercial Services Trading Services,Supplies and Services,Operational Materials,205,17-Feb-2016,1602-00049,0.00,17.66,R,A J H  Pump Supply & Repair Ltd,No
Http://opendatacommunities.org/id/metropolitan-district-council/leeds,Leeds City Council,29/02/2016,Central & Corporate,Commercial Services Trading Services,Supplies and Services,Operational Materials,205,17-Feb-2016,1602-00050,0.00,62.43,R,A J H  Pump Supply & Repair Ltd,No
Http://opendatacommunities.org/id/metropolitan-district-council/leeds,Leeds City Council,29/02/2016,Central & Corporate,Commercial Services Trading Services,Supplies and Services,Operational Materials,205,17-Feb-2016,1602-00051,0.00,42.00,R,A J H  Pump Supply & Repair Ltd,No
Http://opendatacommunities.org/id/metropolitan-district-council/leeds,Leeds City Council,29/02/2016,Central & Corporate,Commercial Services Trading Services,Supplies and Services,Operational Materials,205,17-Feb-2016,1602-00052,0.00,105.00,R,A J H  Pump Supply & Repair Ltd,No
Http://opendatacommunities.org/id/metropolitan-district-council/leeds,Leeds City Council,29/02/2016,Central & Corporate,Commercial Services Trading Services,Supplies and Services,Operational Materials,205,17-Feb-2016,1602-00053,0.00,51.02,R,A J H  Pump Supply & Repair Ltd,No
Http://opendatacommunities.org/id/metropolitan-district-council/leeds,Leeds City Council,29/02/2016,Central & Corporate,Commercial Services Trading Services,Supplies and Services,Operational Materials,205,17-Feb-2016,1602-00054,0.00,149.00,R,A J H  Pump Supply & Repair Ltd,No
Http://opendatacommunities.org/id/metropolitan-district-council/leeds,Leeds City Council,29/02/2016,Central & Corporate,Commercial Services Trading Services,Supplies and Services,Operational Materials,205,17-Feb-2016,1602-00055,0.00,43.21,R,A J H  Pump Supply & Repair Ltd,No
Http://opendatacommunities.org/id/metropolitan-district-council/leeds,Leeds City Council,29/02/2016,Central & Corporate,Commercial Services Trading Services,Supplies and Services,Operational Materials,205,17-Feb-2016,1602-00056,0.00,33.59,R,A J H  Pump Supply & Repair Ltd,No
Http://opendatacommunities.org/id/metropolitan-district-council/leeds,Leeds City Council,29/02/2016,Central & Corporate,Commercial Services Trading Services,Supplies and Services,Operational Materials,205,17-Feb-2016,1602-00057,0.00,35.00,R,A J H  Pump Supply & Repair Ltd,No
Http://opendatacommunities.org/id/metropolitan-district-council/leeds,Leeds City Council,29/02/2016,Central & Corporate,Commercial Services Trading Services,Supplies and Services,Operational Materials,205,26-Feb-2016,1602-00058,0.00,210.00,R,A J H  Pump Supply & Repair Ltd,No
Http://opendatacommunities.org/id/metropolitan-district-council/leeds,Leeds City Council,29/02/2016,Central & Corporate,Commercial Services Trading Services,Supplies and Services,Operational Materials,205,26-Feb-2016,1602-00059,0.00,48.58,R,A J H  Pump Supply & Repair Ltd,No
Http://opendatacommunities.org/id/metropolitan-district-council/leeds,Leeds City Council,29/02/2016,Central & Corporate,Commercial Services Trading Services,Supplies and Services,Operational Materials,205,26-Feb-2016,1602-00060,0.00,134.28,R,A J H  Pump Supply & Repair Ltd,No
Http://opendatacommunities.org/id/metropolitan-district-council/leeds,Leeds City Council,29/02/2016,Central & Corporate,Commercial Services Trading Services,Supplies and Services,Operational Materials,205,26-Feb-2016,1602-00061,0.00,33.59,R,A J H  Pump Supply & Repair Ltd,No
Http://opendatacommunities.org/id/metropolitan-district-council/leeds,Leeds City Council,29/02/2016,Central & Corporate,Commercial Services Trading Services,Supplies and Services,Operational Materials,205,26-Feb-2016,1602-00062,0.00,57.79,R,A J H  Pump Supply & Repair Ltd,No
Http://opendatacommunities.org/id/metropolitan-district-council/leeds,Leeds City Council,29/02/2016,Central & Corporate,Commercial Services Trading Services,Supplies and Services,Operational Materials,205,26-Feb-2016,1602-00063,0.00,69.90,R,A J H  Pump Supply & Repair Ltd,No
Http://opendatacommunities.org/id/metropolitan-district-council/leeds,Leeds City Council,29/02/2016,Central & Corporate,Commercial Services Trading Services,Supplies and Services,Operational Materials,205,26-Feb-2016,1602-00064,0.00,79.75,R,A J H  Pump Supply & Repair Ltd,No
Http://opendatacommunities.org/id/metropolitan-district-council/leeds,Leeds City Council,29/02/2016,Central & Corporate,Commercial Services Trading Services,Supplies and Services,Operational Materials,205,26-Feb-2016,1602-00065,0.00,67.00,R,A J H  Pump Supply & Repair Ltd,No
Http://opendatacommunities.org/id/metropolitan-district-council/leeds,Leeds City Council,29/02/2016,Central & Corporate,Commercial Services Trading Services,Supplies and Services,Operational Materials,205,26-Feb-2016,1602-00066,0.00,75.80,R,A J H  Pump Supply & Repair Ltd,No
Http://opendatacommunities.org/id/metropolitan-district-council/leeds,Leeds City Council,29/02/2016,Central & Corporate,Commercial Services Trading Services,Supplies and Services,Operational Materials,205,26-Feb-2016,1602-00067,0.00,203.13,R,A J H  Pump Supply & Repair Ltd,No
Http://opendatacommunities.org/id/metropolitan-district-council/leeds,Leeds City Council,29/02/2016,Central & Corporate,Commercial Services Trading Services,Supplies and Services,Operational Materials,205,26-Feb-2016,1602-00068,0.00,138.42,R,A J H  Pump Supply & Repair Ltd,No
Http://opendatacommunities.org/id/metropolitan-district-council/leeds,Leeds City Council,29/02/2016,City Development,Libraries  Arts & Heritage,Supplies and Services,Operational Materials,205,12-Feb-2016,1602-00069,0.00,120.00,R,A J Promotions,No
Http://opendatacommunities.org/id/metropolitan-district-council/leeds,Leeds City Council,29/02/2016,Citizens and Communities,Benefits  Wlefare and Poverty,Supplies and Services,Grant Related Expenditure,298,12-Feb-2016,1602-00070,0.00,500.00,R,REDACTED PERSONAL DATA,No
Http://opendatacommunities.org/id/metropolitan-district-council/leeds,Leeds City Council,29/02/2016,Childrens Services,Safeguarding Targeted & Specialist,Transfer Payments,Leaving Care Grants,635,15-Feb-2016,1602-00071,0.00,265.00,R,REDACTED PERSONAL DATA,No
Http://opendatacommunities.org/id/metropolitan-district-council/leeds,Leeds City Council,29/02/2016,Environment & Housing,Housing Leeds Service,Capital,Other Costs,7,04-Feb-2016,1602-00072,0.00,380.00,C,REDACTED PERSONAL DATA,No
Http://opendatacommunities.org/id/metropolitan-district-council/leeds,Leeds City Council,29/02/2016,Citizens and Communities,Benefits  Wlefare and Poverty,Supplies and Services,Grant Related Expenditure,298,09-Feb-2016,1602-00073,0.00,500.00,R,REDACTED PERSONAL DATA,No
Http://opendatacommunities.org/id/metropolitan-district-council/leeds,Leeds City Council,29/02/2016,Childrens Services,Partnership Development & Leadership,Employees,Training & Development,70,08-Feb-2016,1602-00074,0.00,75.00,R,A Little Something Extra Ltd,No
Http://opendatacommunities.org/id/metropolitan-district-council/leeds,Leeds City Council,29/02/2016,Childrens Services,Learning Skills & Universal,Supplies and Services,Teaching Materials,202,15-Feb-2016,1602-00075,0.00,180.00,R,A Little Something Extra Ltd,No
Http://opendatacommunities.org/id/metropolitan-district-council/leeds,Leeds City Council,29/02/2016,Citizens and Communities,Customer Access,Supplies and Services,Other Hired And Contracted Services,265,01-Feb-2016,1602-00076,0.00,560.80,R,A Mohammed,No
Http://opendatacommunities.org/id/metropolitan-district-council/leeds,Leeds City Council,29/02/2016,Citizens and Communities,Customer Access,Supplies and Services,Other Hired And Contracted Services,265,01-Feb-2016,1602-00077,0.00,201.50,R,A Namaki,No
Http://opendatacommunities.org/id/metropolitan-district-council/leeds,Leeds City Council,29/02/2016,Citizens and Communities,Customer Access,Supplies and Services,Other Hired And Contracted Services,265,01-Feb-2016,1602-00078,0.00,30.00,R,A Namaki,No
Http://opendatacommunities.org/id/metropolitan-district-council/leeds,Leeds City Council,29/02/2016,Environment & Housing,Parks and Countryside,Supplies and Services,Operational Materials,205,25-Feb-2016,1602-00079,0.00,990.00,R,A Newton,No
Http://opendatacommunities.org/id/metropolitan-district-council/leeds,Leeds City Council,29/02/2016,Environment & Housing,Parks and Countryside,Supplies and Services,Operational Materials,205,29-Feb-2016,1602-00080,0.00,450.00,R,A Newton,No
Http://opendatacommunities.org/id/metropolitan-district-council/leeds,Leeds City Council,29/02/2016,Citizens and Communities,Benefits  Wlefare and Poverty,Supplies and Services,Grant Related Expenditure,298,02-Feb-2016,1602-00081,0.00,500.00,R,REDACTED PERSONAL DATA,No
Http://opendatacommunities.org/id/metropolitan-district-council/leeds,Leeds City Council,29/02/2016,City Development,Libraries  Arts & Heritage,Supplies and Services,Books & Audio-Visual Materials,206,17-Feb-2016,1602-00082,0.00,120.57,R,A S Jhagra,No
Http://opendatacommunities.org/id/metropolitan-district-council/leeds,Leeds City Council,29/02/2016,Civic Enterprise Leeds,Business Support Centre,Supplies and Services,Other Hired And Contracted Services,265,02-Feb-2016,1602-00083,0.00,35.00,R,A Star Couriers Ltd,No
Http://opendatacommunities.org/id/metropolitan-district-council/leeds,Leeds City Council,29/02/2016,Civic Enterprise Leeds,Business Support Centre,Supplies and Services,Other Hired And Contracted Services,265,05-Feb-2016,1602-00084,0.00,46.25,R,A Star Couriers Ltd,No
Http://opendatacommunities.org/id/metropolitan-district-council/leeds,Leeds City Council,29/02/2016,Civic Enterprise Leeds,Business Support Centre,Supplies and Services,Other Hired And Contracted Services,265,10-Feb-2016,1602-00085,0.00,94.25,R,A Star Couriers Ltd,No
Http://opendatacommunities.org/id/metropolitan-district-council/leeds,Leeds City Council,29/02/2016,Civic Enterprise Leeds,Business Support Centre,Supplies and Services,Other Hired And Contracted Services,265,12-Feb-2016,1602-00086,0.00,46.25,R,A Star Couriers Ltd,No
Http://opendatacommunities.org/id/metropolitan-district-council/leeds,Leeds City Council,29/02/2016,Civic Enterprise Leeds,Business Support Centre,Supplies and Services,Other Hired And Contracted Services,265,24-Feb-2016,1602-00087,0.00,46.25,R,A Star Couriers Ltd,No
Http://opendatacommunities.org/id/metropolitan-district-council/leeds,Leeds City Council,29/02/2016,Childrens Services,Safeguarding Targeted & Specialist,Transfer Payments,Leaving Care Allowances,634,11-Feb-2016,1602-00088,0.00,250.00,R,REDACTED PERSONAL DATA,No
Http://opendatacommunities.org/id/metropolitan-district-council/leeds,Leeds City Council,29/02/2016,Environment & Housing,Waste Management,Supplies and Services,Other Hired And Contracted Services,265,15-Feb-2016,1602-00089,0.00,182.30,R,A T Nerac Ltd,No
Http://opendatacommunities.org/id/metropolitan-district-council/leeds,Leeds City Council,29/02/2016,Environment & Housing,Waste Management,Supplies and Services,Other Hired And Contracted Services,265,18-Feb-2016,1602-00090,0.00,290.00,R,A T Nerac Ltd,No
Http://opendatacommunities.org/id/metropolitan-district-council/leeds,Leeds City Council,29/02/2016,Environment & Housing,Waste Management,Supplies and Services,Other Hired And Contracted Services,265,19-Feb-2016,1602-00091,0.00,313.80,R,A T Nerac Ltd,No
Http://opendatacommunities.org/id/metropolitan-district-council/leeds,Leeds City Council,29/02/2016,Environment & Housing,Waste Management,Supplies and Services,Other Hired And Contracted Services,265,19-Feb-2016,1602-00092,0.00,243.25,R,A T Nerac Ltd,No
Http://opendatacommunities.org/id/metropolitan-district-council/leeds,Leeds City Council,29/02/2016,Environment & Housing,Waste Management,Supplies and Services,Other Hired And Contracted Services,265,24-Feb-2016,1602-00093,0.00,56.00,R,A T Nerac Ltd,No
Http://opendatacommunities.org/id/metropolitan-district-council/leeds,Leeds City Council,29/02/2016,Citizens and Communities,Benefits  Wlefare and Poverty,Supplies and Services,Grant Related Expenditure,298,04-Feb-2016,1602-00094,0.00,500.00,R,REDACTED PERSONAL DATA,No
Http://opendatacommunities.org/id/metropolitan-district-council/leeds,Leeds City Council,29/02/2016,Childrens Services,Safeguarding Targeted & Specialist,Third Party Payments,Allowances,546,24-Feb-2016,1602-00095,0.00,400.00,R,REDACTED PERSONAL DATA,No
Http://opendatacommunities.org/id/metropolitan-district-council/leeds,Leeds City Council,29/02/2016,Insurance,Insurance,Supplies and Services,Insurance Claims,248,04-Feb-2016,1602-00096,0.00,12037.86,R,Aa Ulr,No
Http://opendatacommunities.org/id/metropolitan-district-council/leeds,Leeds City Council,29/02/2016,Childrens Services,Learning Skills & Universal,Employees,Training & Development,70,24-Feb-2016,1602-00097,0.00,395.00,R,Aaa Training Co Ltd,No
Http://opendatacommunities.org/id/metropolitan-district-council/leeds,Leeds City Council,29/02/2016,Citizens and Communities,Benefits  Wlefare and Poverty,Supplies and Services,Grant Related Expenditure,298,02-Feb-2016,1602-00098,0.00,500.00,R,REDACTED PERSONAL DATA,No
Http://opendatacommunities.org/id/metropolitan-district-council/leeds,Leeds City Council,29/02/2016,Citizens and Communities,Benefits  Wlefare and Poverty,Supplies and Services,Grant Related Expenditure,298,02-Feb-2016,1602-00099,0.00,500.00,R,REDACTED PERSONAL DATA,No
Http://opendatacommunities.org/id/metropolitan-district-council/leeds,Leeds City Council as Accountable Body,29/02/2016,Social Services Pooled Budgets,Leeds Community Equip Store Pooled Budgt,Supplies and Services,Other Equipment,203,19-Feb-2016,1602-00100,0.00,842.00,R,Aat (Gb) Ltd,No
Http://opendatacommunities.org/id/metropolitan-district-council/leeds,Leeds City Council,29/02/2016,Central & Corporate,Finance,Transport,Public Transport Expenses,310,11-Feb-2016,1602-00101,0.00,544.00,R,Ab Cars (Garforth) Ltd,No
Http://opendatacommunities.org/id/metropolitan-district-council/leeds,Leeds City Council,29/02/2016,Childrens Services,Safeguarding Targeted & Specialist,Support Services,Legal Disbursements,411,05-Feb-2016,1602-00102,0.00,31.02,R,Abacus Express Limited,No
Http://opendatacommunities.org/id/metropolitan-district-council/leeds,Leeds City Council,29/02/2016,Childrens Services,Safeguarding Targeted & Specialist,Support Services,Legal Disbursements,411,05-Feb-2016,1602-00103,0.00,31.02,R,Abacus Express Limited,No
Http://opendatacommunities.org/id/metropolitan-district-council/leeds,Leeds City Council,29/02/2016,Childrens Services,Safeguarding Targeted & Specialist,Support Services,Legal Disbursements,411,05-Feb-2016,1602-00104,0.00,37.63,R,Abacus Express Limited,No
Http://opendatacommunities.org/id/metropolitan-district-council/leeds,Leeds City Council,29/02/2016,Childrens Services,Safeguarding Targeted & Specialist,Support Services,Legal Disbursements,411,05-Feb-2016,1602-00105,0.00,31.02,R,Abacus Express Limited,No
Http://opendatacommunities.org/id/metropolitan-district-council/leeds,Leeds City Council,29/02/2016,Childrens Services,Safeguarding Targeted & Specialist,Support Services,Legal Disbursements,411,05-Feb-2016,1602-00106,0.00,31.02,R,Abacus Express Limited,No
Http://opendatacommunities.org/id/metropolitan-district-council/leeds,Leeds City Council,29/02/2016,Childrens Services,Safeguarding Targeted & Specialist,Support Services,Legal Disbursements,411,24-Feb-2016,1602-00107,0.00,31.02,R,Abacus Express Limited,No
Http://opendatacommunities.org/id/metropolitan-district-council/leeds,Leeds City Council,29/02/2016,Childrens Services,Safeguarding Targeted & Specialist,Support Services,Legal Disbursements,411,24-Feb-2016,1602-00108,0.00,31.02,R,Abacus Express Limited,No
Http://opendatacommunities.org/id/metropolitan-district-council/leeds,Leeds City Council,29/02/2016,Childrens Services,Safeguarding Targeted & Specialist,Support Services,Legal Disbursements,411,24-Feb-2016,1602-00109,0.00,31.02,R,Abacus Express Limited,No
Http://opendatacommunities.org/id/metropolitan-district-council/leeds,Leeds City Council,29/02/2016,Childrens Services,Safeguarding Targeted & Specialist,Support Services,Legal Disbursements,411,24-Feb-2016,1602-00110,0.00,95.00,R,Abacus Express Limited,No
Http://opendatacommunities.org/id/metropolitan-district-council/leeds,Leeds City Council,29/02/2016,City Development,Highways,Supplies and Services,Operational Materials,205,24-Feb-2016,1602-00111,0.00,27.41,R,Abacus Express Limited,No
Http://opendatacommunities.org/id/metropolitan-district-council/leeds,Leeds City Council,29/02/2016,City Development,Highways,Supplies and Services,Postages,212,26-Feb-2016,1602-00112,0.00,14.51,R,Abacus Express Limited,No
Http://opendatacommunities.org/id/metropolitan-district-council/leeds,Leeds City Council,29/02/2016,City Development,Planning & Sustainable Development,Supplies and Services,Other Hired And Contracted Services,265,26-Feb-2016,1602-00113,0.00,14.51,R,Abacus Express Limited,No
Http://opendatacommunities.org/id/metropolitan-district-council/leeds,Leeds City Council,29/02/2016,City Development,Planning & Sustainable Development,Supplies and Services,Other Hired And Contracted Services,265,26-Feb-2016,1602-00114,0.00,14.51,R,Abacus Express Limited,No
Http://opendatacommunities.org/id/metropolitan-district-council/leeds,Leeds City Council,29/02/2016,Central & Corporate,Legal Services,Support Services,Legal Disbursements,411,29-Feb-2016,1602-00115,0.00,26.77,R,Abacus Express Limited,No
Http://opendatacommunities.org/id/metropolitan-district-council/leeds,Leeds City Council,29/02/2016,Environment & Housing,Environmental Action (South),Supplies and Services,Other Hired And Contracted Services,265,05-Feb-2016,1602-00116,0.00,51.50,R,Abbey House Veterinary Hospital,No
Http://opendatacommunities.org/id/metropolitan-district-council/leeds,Leeds City Council,29/02/2016,Environment & Housing,Environmental Action (South),Supplies and Services,Other Hired And Contracted Services,265,12-Feb-2016,1602-00117,0.00,60.43,R,Abbey House Veterinary Hospital,No
Http://opendatacommunities.org/id/metropolitan-district-council/leeds,Leeds City Council,29/02/2016,Environment & Housing,Environmental Action (South),Supplies and Services,Other Hired And Contracted Services,265,12-Feb-2016,1602-00118,0.00,22.24,R,Abbey House Veterinary Hospital,No
Http://opendatacommunities.org/id/metropolitan-district-council/leeds,Leeds City Council,29/02/2016,Environment & Housing,Environmental Action (South),Supplies and Services,Other Hired And Contracted Services,265,12-Feb-2016,1602-00119,0.00,22.24,R,Abbey House Veterinary Hospital,No
Http://opendatacommunities.org/id/metropolitan-district-council/leeds,Leeds City Council,29/02/2016,Citizens and Communities,Benefits  Wlefare and Poverty,Supplies and Services,Grant Related Expenditure,298,22-Feb-2016,1602-00120,0.00,500.00,R,REDACTED PERSONAL DATA,No
Http://opendatacommunities.org/id/metropolitan-district-council/leeds,Leeds City Council,29/02/2016,Childrens Services,Learning Skills & Universal,Third Party Payments,Services Rendered By Other Organisations,511,19-Feb-2016,1602-00121,0.00,390.88,R,Abc Daycare And Ozone Out Of School,No
Http://opendatacommunities.org/id/metropolitan-district-council/leeds,Leeds City Council,29/02/2016,Childrens Services,Learning Skills & Universal,Third Party Payments,Services Rendered By Other Organisations,511,19-Feb-2016,1602-00122,0.00,763.66,R,Abc Nursery At Lufc,No
Http://opendatacommunities.org/id/metropolitan-district-council/leeds,Leeds City Council,29/02/2016,Citizens and Communities,Benefits  Wlefare and Poverty,Supplies and Services,Grant Related Expenditure,298,04-Feb-2016,1602-00123,0.00,500.00,R,REDACTED PERSONAL DATA,No
Http://opendatacommunities.org/id/metropolitan-district-council/leeds,Leeds City Council,29/02/2016,Citizens and Communities,Benefits  Wlefare and Poverty,Supplies and Services,Grant Related Expenditure,298,04-Feb-2016,1602-00124,0.00,500.00,R,REDACTED PERSONAL DATA,No
Http://opendatacommunities.org/id/metropolitan-district-council/leeds,Leeds City Council,29/02/2016,Citizens and Communities,Benefits  Wlefare and Poverty,Supplies and Services,Grant Related Expenditure,298,04-Feb-2016,1602-00125,0.00,500.00,R,REDACTED PERSONAL DATA,No
Http://opendatacommunities.org/id/metropolitan-district-council/leeds,Leeds City Council,29/02/2016,Adult Social Care,Services For Older People - 65 And Over,Third Party Payments,Nursing Home,570,10-Feb-2016,1602-00126,0.00,28672.47,R,Aberford Hall,No
Http://opendatacommunities.org/id/metropolitan-district-council/leeds,Leeds City Council,29/02/2016,Adult Social Care,Services For Older People - 65 And Over,Third Party Payments,Nursing Care Dementia,574,10-Feb-2016,1602-00127,0.00,1892.00,R,Aberford Hall,No
Http://opendatacommunities.org/id/metropolitan-district-council/leeds,Leeds City Council,29/02/2016,Adult Social Care,Services For Older People - 65 And Over,Third Party Payments,Residential,580,10-Feb-2016,1602-00128,0.00,5930.56,R,Aberford Hall,No
Http://opendatacommunities.org/id/metropolitan-district-council/leeds,Leeds City Council,29/02/2016,Adult Social Care,Services For Older People - 65 And Over,Third Party Payments,Residential,580,26-Feb-2016,1602-00129,0.00,10809.86,R,Aberford Hall,No
Http://opendatacommunities.org/id/metropolitan-district-council/leeds,Leeds City Council,29/02/2016,Childrens Services,Safeguarding Targeted & Specialist,Supplies and Services,Telephones,213,12-Feb-2016,1602-00130,0.00,3.15,R,REDACTED PERSONAL DATA,No
Http://opendatacommunities.org/id/metropolitan-district-council/leeds,Leeds City Council,29/02/2016,Childrens Services,Safeguarding Targeted & Specialist,Supplies and Services,Food & Drink,231,12-Feb-2016,1602-00131,0.00,8.30,R,REDACTED PERSONAL DATA,No
Http://opendatacommunities.org/id/metropolitan-district-council/leeds,Leeds City Council,29/02/2016,Childrens Services,Safeguarding Targeted & Specialist,Transport,Car & Motorcycle Allowances,311,12-Feb-2016,1602-00132,0.00,10.35,R,REDACTED PERSONAL DATA,No
Http://opendatacommunities.org/id/metropolitan-district-council/leeds,Leeds City Council,29/02/2016,Environment & Housing,Parks and Countryside,Supplies and Services,Operational Furniture And Equipment,203,12-Feb-2016,1602-00133,0.00,95.00,R,Abram Pulman & Sons Limited,No
Http://opendatacommunities.org/id/metropolitan-district-council/leeds,Leeds City Council,29/02/2016,Childrens Services,Safeguarding Targeted & Specialist,Employees,Agency Staff,8,02-Feb-2016,1602-00134,0.00,1682.85,R,Academic Appointments Ltd,No
Http://opendatacommunities.org/id/metropolitan-district-council/leeds,Leeds City Council,29/02/2016,Childrens Services,Safeguarding Targeted & Specialist,Employees,Agency Staff,8,11-Feb-2016,1602-00135,0.00,1468.63,R,Academic Appointments Ltd,No
Http://opendatacommunities.org/id/metropolitan-district-council/leeds,Leeds City Council,29/02/2016,Childrens Services,Safeguarding Targeted & Specialist,Employees,Agency Staff,8,18-Feb-2016,1602-00136,0.00,1682.85,R,Academic Appointments Ltd,No
Http://opendatacommunities.org/id/metropolitan-district-council/leeds,Leeds City Council,29/02/2016,Childrens Services,Safeguarding Targeted & Specialist,Employees,Agency Staff,8,25-Feb-2016,1602-00137,0.00,1682.85,R,Academic Appointments Ltd,No
Http://opendatacommunities.org/id/metropolitan-district-council/leeds,Leeds City Council,29/02/2016,Environment & Housing,Environmental Health,Capital,Construction,3,11-Feb-2016,1602-00138,0.00,2052.00,C,Accent Homes Ltd,No
Http://opendatacommunities.org/id/metropolitan-district-council/leeds,Leeds City Council,29/02/2016,Central & Corporate,Technology,Supplies and Services,Software - Expenditure,080,12-Feb-2016,1602-00139,0.00,5162.60,R,Accenture (Uk) Ltd,No
Http://opendatacommunities.org/id/metropolitan-district-council/leeds,Leeds City Council,29/02/2016,Central & Corporate,Technology,Supplies and Services,Software - Expenditure,080,12-Feb-2016,1602-00140,0.00,5700.00,R,Accenture (Uk) Ltd,No
Http://opendatacommunities.org/id/metropolitan-district-council/leeds,Leeds City Council,29/02/2016,Citizens and Communities,Elections  Licensing and Registration,Supplies and Services,Other Hired And Contracted Services,265,23-Feb-2016,1602-00141,0.00,300.00,R,Access Committee For Leeds,No
Http://opendatacommunities.org/id/metropolitan-district-council/leeds,Leeds City Council,29/02/2016,Civic Enterprise Leeds,Commercial Services  ,Supplies and Services,Operational Furniture And Equipment,203,14-Jan-2016,1602-00142,0.00,6.00,R,Access Locksmiths,Yes
Http://opendatacommunities.org/id/metropolitan-district-council/leeds,Leeds City Council,29/02/2016,Environment & Housing,Waste Management,Supplies and Services,Operational Furniture And Equipment,203,03-Feb-2016,1602-00143,0.00,208.60,R,Access Locksmiths (Leeds) Limited,No
Http://opendatacommunities.org/id/metropolitan-district-council/leeds,Leeds City Council,29/02/2016,Central & Corporate,Commercial Services Trading Services,Supplies and Services,Operational Materials,205,04-Feb-2016,1602-00144,0.00,101.64,R,Access Locksmiths (Leeds) Limited,No
Http://opendatacommunities.org/id/metropolitan-district-council/leeds,Leeds City Council,29/02/2016,Central & Corporate,Commercial Services Trading Services,Supplies and Services,Operational Materials,205,04-Feb-2016,1602-00145,0.00,79.30,R,Access Locksmiths (Leeds) Limited,No
Http://opendatacommunities.org/id/metropolitan-district-council/leeds,Leeds City Council,29/02/2016,Central & Corporate,Commercial Services Trading Services,Supplies and Services,Operational Materials,205,04-Feb-2016,1602-00146,0.00,39.86,R,Access Locksmiths (Leeds) Limited,No
Http://opendatacommunities.org/id/metropolitan-district-council/leeds,Leeds City Council,29/02/2016,Central & Corporate,Commercial Services Trading Services,Supplies and Services,Operational Materials,205,04-Feb-2016,1602-00147,0.00,18.50,R,Access Locksmiths (Leeds) Limited,No
Http://opendatacommunities.org/id/metropolitan-district-council/leeds,Leeds City Council,29/02/2016,Strategic Landlord,Property and Contracts,Premises,General Maintenance,104,05-Feb-2016,1602-00148,0.00,120.58,R,Access Locksmiths (Leeds) Limited,No
Http://opendatacommunities.org/id/metropolitan-district-council/leeds,Leeds City Council,29/02/2016,Environment & Housing,Leeds Building Services,Premises,Maintenance Of Buildings,101,10-Feb-2016,1602-00149,0.00,9.00,R,Access Locksmiths (Leeds) Limited,No
Http://opendatacommunities.org/id/metropolitan-district-council/leeds,Leeds City Council,29/02/2016,Strategic Landlord,Housing Management,Premises,General Maintenance,104,12-Feb-2016,1602-00150,0.00,25.00,R,Access Locksmiths (Leeds) Limited,No
Http://opendatacommunities.org/id/metropolitan-district-council/leeds,Leeds City Council,29/02/2016,Strategic Landlord,Housing Management,Premises,General Maintenance,104,12-Feb-2016,1602-00151,0.00,103.70,R,Access Locksmiths (Leeds) Limited,No
Http://opendatacommunities.org/id/metropolitan-district-council/leeds,Leeds City Council,29/02/2016,Strategic Landlord,Property and Contracts,Premises,General Maintenance,104,12-Feb-2016,1602-00152,0.00,422.85,R,Access Locksmiths (Leeds) Limited,No
Http://opendatacommunities.org/id/metropolitan-district-council/leeds,Leeds City Council,29/02/2016,Strategic Landlord,Property and Contracts,Premises,General Maintenance,104,12-Feb-2016,1602-00153,0.00,674.05,R,Access Locksmiths (Leeds) Limited,No
Http://opendatacommunities.org/id/metropolitan-district-council/leeds,Leeds City Council,29/02/2016,Central & Corporate,Commercial Services Trading Services,Supplies and Services,Operational Materials,205,16-Feb-2016,1602-00154,0.00,50.14,R,Access Locksmiths (Leeds) Limited,No
Http://opendatacommunities.org/id/metropolitan-district-council/leeds,Leeds City Council,29/02/2016,Central & Corporate,Commercial Services Trading Services,Supplies and Services,Operational Materials,205,16-Feb-2016,1602-00155,0.00,132.63,R,Access Locksmiths (Leeds) Limited,No
Http://opendatacommunities.org/id/metropolitan-district-council/leeds,Leeds City Council,29/02/2016,Central & Corporate,Commercial Services Trading Services,Supplies and Services,Operational Materials,205,16-Feb-2016,1602-00156,0.00,29.58,R,Access Locksmiths (Leeds) Limited,No
Http://opendatacommunities.org/id/metropolitan-district-council/leeds,Leeds City Council,29/02/2016,Central & Corporate,Commercial Services Trading Services,Supplies and Services,Operational Materials,205,16-Feb-2016,1602-00157,0.00,86.00,R,Access Locksmiths (Leeds) Limited,No
Http://opendatacommunities.org/id/metropolitan-district-council/leeds,Leeds City Council,29/02/2016,Strategic Landlord,Property and Contracts,Premises,General Maintenance,104,19-Feb-2016,1602-00158,0.00,92.15,R,Access Locksmiths (Leeds) Limited,No
Http://opendatacommunities.org/id/metropolitan-district-council/leeds,Leeds City Council,29/02/2016,Central & Corporate,Commercial Services Trading Services,Supplies and Services,Operational Materials,205,23-Feb-2016,1602-00159,0.00,29.88,R,Access Locksmiths (Leeds) Limited,No
Http://opendatacommunities.org/id/metropolitan-district-council/leeds,Leeds City Council,29/02/2016,Central & Corporate,Commercial Services Trading Services,Supplies and Services,Operational Materials,205,23-Feb-2016,1602-00160,0.00,25.32,R,Access Locksmiths (Leeds) Limited,No
Http://opendatacommunities.org/id/metropolitan-district-council/leeds,Leeds City Council,29/02/2016,Central & Corporate,Commercial Services Trading Services,Supplies and Services,Operational Materials,205,23-Feb-2016,1602-00161,0.00,86.60,R,Access Locksmiths (Leeds) Limited,No
Http://opendatacommunities.org/id/metropolitan-district-council/leeds,Leeds City Council,29/02/2016,Central & Corporate,Commercial Services Trading Services,Supplies and Services,Operational Materials,205,23-Feb-2016,1602-00162,0.00,36.81,R,Access Locksmiths (Leeds) Limited,No
Http://opendatacommunities.org/id/metropolitan-district-council/leeds,Leeds City Council,29/02/2016,Central & Corporate,Commercial Services Trading Services,Supplies and Services,Operational Materials,205,23-Feb-2016,1602-00163,0.00,372.11,R,Access Locksmiths (Leeds) Limited,No
Http://opendatacommunities.org/id/metropolitan-district-council/leeds,Leeds City Council,29/02/2016,Central & Corporate,Commercial Services Trading Services,Supplies and Services,Operational Materials,205,23-Feb-2016,1602-00164,0.00,249.50,R,Access Locksmiths (Leeds) Limited,No
Http://opendatacommunities.org/id/metropolitan-district-council/leeds,Leeds City Council,29/02/2016,Central & Corporate,Commercial Services Trading Services,Supplies and Services,Operational Materials,205,23-Feb-2016,1602-00165,0.00,101.64,R,Access Locksmiths (Leeds) Limited,No
Http://opendatacommunities.org/id/metropolitan-district-council/leeds,Leeds City Council,29/02/2016,Central & Corporate,Commercial Services Trading Services,Supplies and Services,Operational Materials,205,23-Feb-2016,1602-00166,0.00,6.48,R,Access Locksmiths (Leeds) Limited,No
Http://opendatacommunities.org/id/metropolitan-district-council/leeds,Leeds City Council,29/02/2016,Central & Corporate,Commercial Services Trading Services,Supplies and Services,Operational Materials,205,23-Feb-2016,1602-00167,0.00,149.40,R,Access Locksmiths (Leeds) Limited,No
Http://opendatacommunities.org/id/metropolitan-district-council/leeds,Leeds City Council,29/02/2016,Strategic Landlord,Property and Contracts,Premises,General Maintenance,104,25-Feb-2016,1602-00168,0.00,120.57,R,Access Locksmiths (Leeds) Limited,No
Http://opendatacommunities.org/id/metropolitan-district-council/leeds,Leeds City Council,29/02/2016,Strategic Landlord,Property and Contracts,Premises,General Maintenance,104,25-Feb-2016,1602-00169,0.00,283.25,R,Access Locksmiths (Leeds) Limited,No
Http://opendatacommunities.org/id/metropolitan-district-council/leeds,Leeds City Council,29/02/2016,Strategic Landlord,Property and Contracts,Premises,General Maintenance,104,25-Feb-2016,1602-00170,0.00,113.88,R,Access Locksmiths (Leeds) Limited,No
Http://opendatacommunities.org/id/metropolitan-district-council/leeds,Leeds City Council,29/02/2016,Strategic Landlord,Property and Contracts,Premises,General Maintenance,104,25-Feb-2016,1602-00171,0.00,92.22,R,Access Locksmiths (Leeds) Limited,No
Http://opendatacommunities.org/id/metropolitan-district-council/leeds,Leeds City Council,29/02/2016,Strategic Landlord,Property and Contracts,Premises,General Maintenance,104,25-Feb-2016,1602-00172,0.00,152.72,R,Access Locksmiths (Leeds) Limited,No
Http://opendatacommunities.org/id/metropolitan-district-council/leeds,Leeds City Council,29/02/2016,Central & Corporate,Commercial Services Trading Services,Supplies and Services,Operational Materials,205,26-Feb-2016,1602-00173,0.00,69.26,R,Access Locksmiths (Leeds) Limited,No
Http://opendatacommunities.org/id/metropolitan-district-council/leeds,Leeds City Council,29/02/2016,Central & Corporate,Commercial Services Trading Services,Supplies and Services,Operational Materials,205,26-Feb-2016,1602-00174,0.00,143.10,R,Access Locksmiths (Leeds) Limited,No
Http://opendatacommunities.org/id/metropolitan-district-council/leeds,Leeds City Council,29/02/2016,Central & Corporate,Commercial Services Trading Services,Supplies and Services,Operational Materials,205,26-Feb-2016,1602-00175,0.00,351.44,R,Access Locksmiths (Leeds) Limited,No
Http://opendatacommunities.org/id/metropolitan-district-council/leeds,Leeds City Council,29/02/2016,Central & Corporate,Commercial Services Trading Services,Supplies and Services,Operational Materials,205,26-Feb-2016,1602-00176,0.00,33.35,R,Access Locksmiths (Leeds) Limited,No
Http://opendatacommunities.org/id/metropolitan-district-council/leeds,Leeds City Council,29/02/2016,Central & Corporate,Commercial Services Trading Services,Supplies and Services,Operational Materials,205,26-Feb-2016,1602-00177,0.00,10.50,R,Access Locksmiths (Leeds) Limited,No
Http://opendatacommunities.org/id/metropolitan-district-council/leeds,Leeds City Council,29/02/2016,Central & Corporate,Commercial Services Trading Services,Supplies and Services,Operational Materials,205,26-Feb-2016,1602-00178,0.00,38.79,R,Access Locksmiths (Leeds) Limited,No
Http://opendatacommunities.org/id/metropolitan-district-council/leeds,Leeds City Council,29/02/2016,Central & Corporate,Commercial Services Trading Services,Supplies and Services,Operational Materials,205,26-Feb-2016,1602-00179,0.00,49.73,R,Access Locksmiths (Leeds) Limited,No
Http://opendatacommunities.org/id/metropolitan-district-council/leeds,Leeds City Council,29/02/2016,Central & Corporate,Commercial Services Trading Services,Supplies and Services,Operational Materials,205,26-Feb-2016,1602-00180,0.00,372.11,R,Access Locksmiths (Leeds) Limited,No
Http://opendatacommunities.org/id/metropolitan-district-council/leeds,Leeds City Council,29/02/2016,Strategic Landlord,Housing Management,Premises,General Maintenance,104,29-Feb-2016,1602-00181,0.00,103.70,R,Access Locksmiths (Leeds) Limited,No
Http://opendatacommunities.org/id/metropolitan-district-council/leeds,Leeds City Council,29/02/2016,City Development,Libraries  Arts & Heritage,Supplies and Services,Bought In Professional Services,277,19-Feb-2016,1602-00182,0.00,4000.00,R,Access Moving Image Ltd,No
Http://opendatacommunities.org/id/metropolitan-district-council/leeds,Leeds City Council,29/02/2016,Central & Corporate,Commercial Services Trading Services,Supplies and Services,Other Hired And Contracted Services,265,01-Feb-2016,1602-00183,0.00,1465.23,R,Access Opening Systems Limited,No
Http://opendatacommunities.org/id/metropolitan-district-council/leeds,Leeds City Council,29/02/2016,Central & Corporate,Commercial Services Trading Services,Supplies and Services,Other Hired And Contracted Services,265,05-Feb-2016,1602-00184,0.00,85.00,R,Access Opening Systems Limited,No
Http://opendatacommunities.org/id/metropolitan-district-council/leeds,Leeds City Council,29/02/2016,Central & Corporate,Commercial Services Trading Services,Supplies and Services,Other Hired And Contracted Services,265,05-Feb-2016,1602-00185,0.00,85.00,R,Access Opening Systems Limited,No
Http://opendatacommunities.org/id/metropolitan-district-council/leeds,Leeds City Council,29/02/2016,Central & Corporate,Commercial Services Trading Services,Supplies and Services,Other Hired And Contracted Services,265,05-Feb-2016,1602-00186,0.00,110.00,R,Access Opening Systems Limited,No
Http://opendatacommunities.org/id/metropolitan-district-council/leeds,Leeds City Council,29/02/2016,Childrens Services,Learning Skills & Universal,Premises,Repairs & Adapts - Buildings,191,05-Feb-2016,1602-00187,0.00,110.00,R,Access Opening Systems Limited,No
Http://opendatacommunities.org/id/metropolitan-district-council/leeds,Leeds City Council,29/02/2016,Central & Corporate,Commercial Services Trading Services,Supplies and Services,Other Hired And Contracted Services,265,05-Feb-2016,1602-00188,0.00,85.00,R,Access Opening Systems Limited,No
Http://opendatacommunities.org/id/metropolitan-district-council/leeds,Leeds City Council,29/02/2016,Central & Corporate,Commercial Services Trading Services,Supplies and Services,Other Hired And Contracted Services,265,05-Feb-2016,1602-00189,0.00,91.25,R,Access Opening Systems Limited,No
Http://opendatacommunities.org/id/metropolitan-district-council/leeds,Leeds City Council,29/02/2016,Central & Corporate,Commercial Services Trading Services,Supplies and Services,Operational Materials,205,11-Feb-2016,1602-00190,0.00,1800.00,R,Access Opening Systems Limited,No
Http://opendatacommunities.org/id/metropolitan-district-council/leeds,Leeds City Council,29/02/2016,Central & Corporate,Commercial Services Trading Services,Supplies and Services,Operational Materials,205,11-Feb-2016,1602-00191,0.00,85.00,R,Access Opening Systems Limited,No
Http://opendatacommunities.org/id/metropolitan-district-council/leeds,Leeds City Council,29/02/2016,Central & Corporate,Commercial Services Trading Services,Supplies and Services,Other Hired And Contracted Services,265,11-Feb-2016,1602-00192,0.00,85.00,R,Access Opening Systems Limited,No
Http://opendatacommunities.org/id/metropolitan-district-council/leeds,Leeds City Council,29/02/2016,Central & Corporate,Commercial Services Trading Services,Supplies and Services,Other Hired And Contracted Services,265,12-Feb-2016,1602-00193,0.00,122.50,R,Access Opening Systems Limited,No
Http://opendatacommunities.org/id/metropolitan-district-council/leeds,Leeds City Council,29/02/2016,Central & Corporate,Commercial Services Trading Services,Supplies and Services,Other Hired And Contracted Services,265,12-Feb-2016,1602-00194,0.00,170.00,R,Access Opening Systems Limited,No
Http://opendatacommunities.org/id/metropolitan-district-council/leeds,Leeds City Council,29/02/2016,Central & Corporate,Commercial Services Trading Services,Supplies and Services,Operational Materials,205,16-Feb-2016,1602-00195,0.00,175.00,R,Access Opening Systems Limited,No
Http://opendatacommunities.org/id/metropolitan-district-council/leeds,Leeds City Council,29/02/2016,Central & Corporate,Commercial Services Trading Services,Supplies and Services,Other Hired And Contracted Services,265,22-Feb-2016,1602-00196,0.00,85.00,R,Access Opening Systems Limited,No
Http://opendatacommunities.org/id/metropolitan-district-council/leeds,Leeds City Council,29/02/2016,Central & Corporate,Commercial Services Trading Services,Supplies and Services,Other Hired And Contracted Services,265,22-Feb-2016,1602-00197,0.00,85.00,R,Access Opening Systems Limited,No
Http://opendatacommunities.org/id/metropolitan-district-council/leeds,Leeds City Council,29/02/2016,Central & Corporate,Commercial Services Trading Services,Supplies and Services,Other Hired And Contracted Services,265,22-Feb-2016,1602-00198,0.00,85.00,R,Access Opening Systems Limited,No
Http://opendatacommunities.org/id/metropolitan-district-council/leeds,Leeds City Council,29/02/2016,Central & Corporate,Commercial Services Trading Services,Supplies and Services,Other Hired And Contracted Services,265,22-Feb-2016,1602-00199,0.00,85.00,R,Access Opening Systems Limited,No
Http://opendatacommunities.org/id/metropolitan-district-council/leeds,Leeds City Council,29/02/2016,Central & Corporate,Commercial Services Trading Services,Supplies and Services,Other Hired And Contracted Services,265,22-Feb-2016,1602-00200,0.00,85.00,R,Access Opening Systems Limited,No
Http://opendatacommunities.org/id/metropolitan-district-council/leeds,Leeds City Council,29/02/2016,Central & Corporate,Commercial Services Trading Services,Supplies and Services,Other Hired And Contracted Services,265,24-Feb-2016,1602-00201,0.00,662.00,R,Access Opening Systems Limited,No
Http://opendatacommunities.org/id/metropolitan-district-council/leeds,Leeds City Council,29/02/2016,Central & Corporate,Commercial Services Trading Services,Supplies and Services,Other Hired And Contracted Services,265,24-Feb-2016,1602-00202,0.00,242.00,R,Access Opening Systems Limited,No
Http://opendatacommunities.org/id/metropolitan-district-council/leeds,Leeds City Council,29/02/2016,Central & Corporate,Commercial Services Trading Services,Supplies and Services,Other Hired And Contracted Services,265,24-Feb-2016,1602-00203,0.00,128.00,R,Access Opening Systems Limited,No
Http://opendatacommunities.org/id/metropolitan-district-council/leeds,Leeds City Council,29/02/2016,Central & Corporate,Commercial Services Trading Services,Supplies and Services,Other Hired And Contracted Services,265,24-Feb-2016,1602-00204,0.00,128.00,R,Access Opening Systems Limited,No
Http://opendatacommunities.org/id/metropolitan-district-council/leeds,Leeds City Council,29/02/2016,Central & Corporate,Commercial Services Trading Services,Supplies and Services,Other Hired And Contracted Services,265,26-Feb-2016,1602-00205,0.00,85.00,R,Access Opening Systems Limited,No
Http://opendatacommunities.org/id/metropolitan-district-council/leeds,Leeds City Council,29/02/2016,Central & Corporate,Commercial Services Trading Services,Supplies and Services,Other Hired And Contracted Services,265,26-Feb-2016,1602-00206,0.00,85.00,R,Access Opening Systems Limited,No
Http://opendatacommunities.org/id/metropolitan-district-council/leeds,Leeds City Council,29/02/2016,Central & Corporate,Commercial Services Trading Services,Supplies and Services,Other Hired And Contracted Services,265,26-Feb-2016,1602-00207,0.00,85.00,R,Access Opening Systems Limited,No
Http://opendatacommunities.org/id/metropolitan-district-council/leeds,Leeds City Council,29/02/2016,Central & Corporate,Commercial Services Trading Services,Supplies and Services,Other Hired And Contracted Services,265,26-Feb-2016,1602-00208,0.00,128.00,R,Access Opening Systems Limited,No
Http://opendatacommunities.org/id/metropolitan-district-council/leeds,Leeds City Council,29/02/2016,Central & Corporate,Commercial Services Trading Services,Supplies and Services,Other Hired And Contracted Services,265,26-Feb-2016,1602-00209,0.00,85.00,R,Access Opening Systems Limited,No
Http://opendatacommunities.org/id/metropolitan-district-council/leeds,Leeds City Council,29/02/2016,Central & Corporate,Commercial Services Trading Services,Supplies and Services,Other Hired And Contracted Services,265,26-Feb-2016,1602-00210,0.00,166.00,R,Access Opening Systems Limited,No
Http://opendatacommunities.org/id/metropolitan-district-council/leeds,Leeds City Council,29/02/2016,Central & Corporate,Commercial Services Trading Services,Supplies and Services,Other Hired And Contracted Services,265,26-Feb-2016,1602-00211,0.00,204.00,R,Access Opening Systems Limited,No
Http://opendatacommunities.org/id/metropolitan-district-council/leeds,Leeds City Council,29/02/2016,Central & Corporate,Commercial Services Trading Services,Supplies and Services,Other Hired And Contracted Services,265,26-Feb-2016,1602-00212,0.00,128.00,R,Access Opening Systems Limited,No
Http://opendatacommunities.org/id/metropolitan-district-council/leeds,Leeds City Council,29/02/2016,Central & Corporate,Commercial Services Trading Services,Supplies and Services,Other Hired And Contracted Services,265,26-Feb-2016,1602-00213,0.00,128.00,R,Access Opening Systems Limited,No
Http://opendatacommunities.org/id/metropolitan-district-council/leeds,Leeds City Council,29/02/2016,Central & Corporate,Commercial Services Trading Services,Supplies and Services,Operational Materials,205,29-Feb-2016,1602-00214,0.00,25.00,R,Access Opening Systems Limited,No
Http://opendatacommunities.org/id/metropolitan-district-council/leeds,Leeds City Council,29/02/2016,Central & Corporate,Commercial Services Trading Services,Supplies and Services,Operational Materials,205,29-Feb-2016,1602-00215,0.00,38.50,R,Access Opening Systems Limited,No
Http://opendatacommunities.org/id/metropolitan-district-council/leeds,Leeds City Council,29/02/2016,Insurance,Insurance,Supplies and Services,Insurance Claims,248,11-Feb-2016,1602-00216,0.00,1082.60,R,Accidents Happen,No
Http://opendatacommunities.org/id/metropolitan-district-council/leeds,Leeds City Council,29/02/2016,City Development,Recreation,Supplies and Services,Other Hired And Contracted Services,265,03-Feb-2016,1602-00217,0.00,139.50,R,Ace Container Services Limited,No
Http://opendatacommunities.org/id/metropolitan-district-council/leeds,Leeds City Council,29/02/2016,City Development,Libraries  Arts & Heritage,Transport,Hire Of Movable Plant & Machinery,315,05-Feb-2016,1602-00218,0.00,46.50,R,Ace Container Services Limited,No
Http://opendatacommunities.org/id/metropolitan-district-council/leeds,Leeds City Council,29/02/2016,City Development,Recreation,Supplies and Services,Other Hired And Contracted Services,265,25-Feb-2016,1602-00219,0.00,139.50,R,Ace Container Services Limited,No
Http://opendatacommunities.org/id/metropolitan-district-council/leeds,Leeds City Council,29/02/2016,City Development,Recreation,Supplies and Services,Other Hired And Contracted Services,265,25-Feb-2016,1602-00220,0.00,139.50,R,Ace Container Services Limited,No
Http://opendatacommunities.org/id/metropolitan-district-council/leeds,Leeds City Council,29/02/2016,City Development,Asset Management Services,Employees,Training & Development,70,03-Feb-2016,1602-00221,0.00,145.00,R,Aces,No
Http://opendatacommunities.org/id/metropolitan-district-council/leeds,Leeds City Council,29/02/2016,City Development,Economic Development,Supplies and Services,Grants To Businesses,243,17-Feb-2016,1602-00222,0.00,1210.29,R,Ack Haulage,No
Http://opendatacommunities.org/id/metropolitan-district-council/leeds,Leeds City Council,29/02/2016,Childrens Services,Safeguarding Targeted & Specialist,Third Party Payments,SEN Placements,566,08-Feb-2016,1602-00223,0.00,12042.89,R,Acorn Care And Education Ltd,No
Http://opendatacommunities.org/id/metropolitan-district-council/leeds,Leeds City Council,29/02/2016,Childrens Services,Safeguarding Targeted & Specialist,Third Party Payments,SEN Placements,566,08-Feb-2016,1602-00224,0.00,12042.89,R,Acorn Care And Education Ltd,No
Http://opendatacommunities.org/id/metropolitan-district-council/leeds,Leeds City Council,29/02/2016,Childrens Services,Safeguarding Targeted & Specialist,Third Party Payments,Independent Fostering Agencies,509,03-Feb-2016,1602-00225,0.00,2878.57,R,Acorn Fostering Services,No
Http://opendatacommunities.org/id/metropolitan-district-council/leeds,Leeds City Council,29/02/2016,Childrens Services,Safeguarding Targeted & Specialist,Third Party Payments,Independent Fostering Agencies,509,25-Feb-2016,1602-00226,0.00,2507.14,R,Acorn Fostering Services,No
Http://opendatacommunities.org/id/metropolitan-district-council/leeds,Leeds City Council,29/02/2016,Childrens Services,Safeguarding Targeted & Specialist,Third Party Payments,Independent Fostering Agencies,509,05-Feb-2016,1602-00227,0.00,5181.34,R,Acorn House (Fostering Services) Ltd,No
Http://opendatacommunities.org/id/metropolitan-district-council/leeds,Leeds City Council,29/02/2016,Childrens Services,Safeguarding Targeted & Specialist,Third Party Payments,Independent Fostering Agencies,509,19-Feb-2016,1602-00228,0.00,5181.34,R,Acorn House (Fostering Services) Ltd,No
Http://opendatacommunities.org/id/metropolitan-district-council/leeds,Leeds City Council,29/02/2016,Adult Social Care,Other Adult Services,Third Party Payments,Residential - Drugs & Alcohol,583,24-Feb-2016,1602-00229,0.00,2435.71,R,Acorn Treatment & Housing,No
Http://opendatacommunities.org/id/metropolitan-district-council/leeds,Leeds City Council,29/02/2016,Childrens Services,Learning Skills & Universal,Third Party Payments,Services Rendered By Other Organisations,511,19-Feb-2016,1602-00230,0.00,284.18,R,Acorns Nursery,No
Http://opendatacommunities.org/id/metropolitan-district-council/leeds,Leeds City Council,29/02/2016,City Development,Libraries  Arts & Heritage,Supplies and Services,Other Hired And Contracted Services,265,12-Feb-2016,1602-00231,0.00,16715.00,R,Acoustiguide Ltd,No
Http://opendatacommunities.org/id/metropolitan-district-council/leeds,Leeds City Council,29/02/2016,Adult Social Care,Services For Adults Under 65 Mental/Dis,Third Party Payments,Residential,580,10-Feb-2016,1602-00232,0.00,1351.20,R,Acre Green,No
Http://opendatacommunities.org/id/metropolitan-district-council/leeds,Leeds City Council,29/02/2016,Adult Social Care,Services For Older People - 65 And Over,Third Party Payments,Nursing Home,570,10-Feb-2016,1602-00233,0.00,19693.59,R,Acre Green,No
Http://opendatacommunities.org/id/metropolitan-district-council/leeds,Leeds City Council,29/02/2016,Adult Social Care,Services For Older People - 65 And Over,Third Party Payments,Residential Care Dementia,571,10-Feb-2016,1602-00234,0.00,1378.64,R,Acre Green,No
Http://opendatacommunities.org/id/metropolitan-district-council/leeds,Leeds City Council,29/02/2016,Adult Social Care,Services For Older People - 65 And Over,Third Party Payments,Residential,580,10-Feb-2016,1602-00235,0.00,10419.16,R,Acre Green,No
Http://opendatacommunities.org/id/metropolitan-district-council/leeds,Leeds City Council,29/02/2016,Adult Social Care,Services For Older People Under 65 P/Dis,Third Party Payments,Nursing Home,570,10-Feb-2016,1602-00236,0.00,4829.44,R,Acre Green,No
Http://opendatacommunities.org/id/metropolitan-district-council/leeds,Leeds City Council,29/02/2016,Adult Social Care,Services For Older People Under 65 P/Dis,Third Party Payments,Nursing Care Dementia,574,10-Feb-2016,1602-00237,0.00,1036.80,R,Acre Green,No
Http://opendatacommunities.org/id/metropolitan-district-council/leeds,Leeds City Council,29/02/2016,Adult Social Care,Services For Older People - 65 And Over,Third Party Payments,Residential,580,26-Feb-2016,1602-00238,0.00,14854.43,R,Acre Green,No
Http://opendatacommunities.org/id/metropolitan-district-council/leeds,Leeds City Council,29/02/2016,Childrens Services,Learning Skills & Universal,Third Party Payments,Services Rendered By Other Organisations,511,19-Feb-2016,1602-00239,0.00,995.33,R,Acre Wood Day Nursery,No
Http://opendatacommunities.org/id/metropolitan-district-council/leeds,Leeds City Council,29/02/2016,Insurance,Insurance,Supplies and Services,Insurance Claims,248,17-Feb-2016,1602-00240,0.00,2072.47,R,Acromas Insurance Company Ltd,No
Http://opendatacommunities.org/id/metropolitan-district-council/leeds,Leeds City Council,29/02/2016,Central & Corporate,Commercial Services Trading Services,Supplies and Services,Operational Materials,205,04-Feb-2016,1602-00241,0.00,720.00,R,Actavo Uk Limited,No
Http://opendatacommunities.org/id/metropolitan-district-council/leeds,Leeds City Council,29/02/2016,City Development,Highways,Supplies and Services,Operational Materials,205,12-Feb-2016,1602-00242,0.00,420.00,R,Actavo Uk Limited,No
Http://opendatacommunities.org/id/metropolitan-district-council/leeds,Leeds City Council,29/02/2016,Central & Corporate,Commercial Services Trading Services,Supplies and Services,Operational Materials,205,19-Feb-2016,1602-00243,0.00,140.00,R,Actavo Uk Limited,No
Http://opendatacommunities.org/id/metropolitan-district-council/leeds,Leeds City Council,29/02/2016,Adult Social Care,Services For Adults Under 65 Mental/Dis,Third Party Payments,Fees - Level 4,520,03-Feb-2016,1602-00244,0.00,700.00,R,Action First Recruitment Ltd,No
Http://opendatacommunities.org/id/metropolitan-district-council/leeds,Leeds City Council,29/02/2016,Adult Social Care,Services For Adults Under 65 Mental/Dis,Third Party Payments,Services Provided By Other NHS Bodies,522,12-Feb-2016,1602-00245,0.00,1050.00,R,Action First Recruitment Ltd,No
Http://opendatacommunities.org/id/metropolitan-district-council/leeds,Leeds City Council,29/02/2016,Adult Social Care,Services For Adults Under 65 Mental/Dis,Third Party Payments,Services Provided By Other NHS Bodies,522,12-Feb-2016,1602-00246,0.00,1400.00,R,Action First Recruitment Ltd,No
Http://opendatacommunities.org/id/metropolitan-district-council/leeds,Leeds City Council,29/02/2016,Adult Social Care,Services For Adults Under 65 Mental/Dis,Third Party Payments,Services Provided By Other NHS Bodies,522,12-Feb-2016,1602-00247,0.00,1400.00,R,Action First Recruitment Ltd,No
Http://opendatacommunities.org/id/metropolitan-district-council/leeds,Leeds City Council,29/02/2016,Adult Social Care,Services For Adults Under 65 Mental/Dis,Third Party Payments,Services Provided By Other NHS Bodies,522,12-Feb-2016,1602-00248,0.00,700.00,R,Action First Recruitment Ltd,No
Http://opendatacommunities.org/id/metropolitan-district-council/leeds,Leeds City Council,29/02/2016,Adult Social Care,Services For Adults Under 65 Mental/Dis,Third Party Payments,Services Provided By Other NHS Bodies,522,12-Feb-2016,1602-00249,0.00,700.00,R,Action First Recruitment Ltd,No
Http://opendatacommunities.org/id/metropolitan-district-council/leeds,Leeds City Council,29/02/2016,Adult Social Care,Services For Adults Under 65 Mental/Dis,Third Party Payments,Services Provided By Other NHS Bodies,522,12-Feb-2016,1602-00250,0.00,1400.00,R,Action First Recruitment Ltd,No
Http://opendatacommunities.org/id/metropolitan-district-council/leeds,Leeds City Council,29/02/2016,Adult Social Care,Services For Adults Under 65 Mental/Dis,Third Party Payments,Fees - Level 4,520,19-Feb-2016,1602-00251,0.00,1750.00,R,Action First Recruitment Ltd,No
Http://opendatacommunities.org/id/metropolitan-district-council/leeds,Leeds City Council,29/02/2016,Adult Social Care,Services For Adults Under 65 Mental/Dis,Third Party Payments,Fees - Level 4,520,19-Feb-2016,1602-00252,0.00,2800.00,R,Action First Recruitment Ltd,No
Http://opendatacommunities.org/id/metropolitan-district-council/leeds,Leeds City Council,29/02/2016,Adult Social Care,Services For Adults Under 65 Mental/Dis,Third Party Payments,Fees - Level 4,520,19-Feb-2016,1602-00253,0.00,1050.00,R,Action First Recruitment Ltd,No
Http://opendatacommunities.org/id/metropolitan-district-council/leeds,Leeds City Council,29/02/2016,Childrens Services,Safeguarding Targeted & Specialist,Third Party Payments,Independent Fostering Agencies,509,10-Feb-2016,1602-00254,0.00,4500.00,R,Action For Children,No
Http://opendatacommunities.org/id/metropolitan-district-council/leeds,Leeds City Council,29/02/2016,Childrens Services,Safeguarding Targeted & Specialist,Third Party Payments,Independent Fostering Agencies,509,12-Feb-2016,1602-00255,0.00,4776.48,R,Action For Children,No
Http://opendatacommunities.org/id/metropolitan-district-council/leeds,Leeds City Council,29/02/2016,Childrens Services,Safeguarding Targeted & Specialist,Third Party Payments,Independent Fostering Agencies,509,12-Feb-2016,1602-00256,0.00,5163.67,R,Action For Children,No
Http://opendatacommunities.org/id/metropolitan-district-council/leeds,Leeds City Council,29/02/2016,Childrens Services,Safeguarding Targeted & Specialist,Third Party Payments,Independent Fostering Agencies,509,12-Feb-2016,1602-00257,0.00,4776.48,R,Action For Children,No
Http://opendatacommunities.org/id/metropolitan-district-council/leeds,Leeds City Council,29/02/2016,Childrens Services,Safeguarding Targeted & Specialist,Third Party Payments,Independent Fostering Agencies,509,12-Feb-2016,1602-00258,0.00,5163.67,R,Action For Children,No
Http://opendatacommunities.org/id/metropolitan-district-council/leeds,Leeds City Council,29/02/2016,City Development,Planning & Sustainable Development  ,Supplies and Services,Operational Furniture And Equipment,203,08-Jan-2016,1602-00259,0.00,77.07,R,Action On Hearing Loss,Yes
Http://opendatacommunities.org/id/metropolitan-district-council/leeds,Leeds City Council,29/02/2016,City Development,Planning & Sustainable Development  ,Supplies and Services,Postages,212,08-Jan-2016,1602-00260,0.00,4.96,R,Action On Hearing Loss,Yes
Http://opendatacommunities.org/id/metropolitan-district-council/leeds,Leeds City Council,29/02/2016,Strategic Landlord,Housing Management,Premises,Cleaning Maintenance & Toiletries,127,04-Feb-2016,1602-00261,0.00,95.00,R,Active Cleaning Solutions Ltd,No
Http://opendatacommunities.org/id/metropolitan-district-council/leeds,Leeds City Council,29/02/2016,Childrens Services,Learning Skills & Universal,Third Party Payments,Services Rendered By Other Organisations,511,19-Feb-2016,1602-00262,0.00,326.90,R,Active Kids Day Nursery,No
Http://opendatacommunities.org/id/metropolitan-district-council/leeds,Leeds City Council as Accountable Body,29/02/2016,Social Services Pooled Budgets,Leeds Community Equip Store Pooled Budgt,Supplies and Services,Other Equipment,203,12-Feb-2016,1602-00263,0.00,146.26,R,Active Mobility Centre Ltd,No
Http://opendatacommunities.org/id/metropolitan-district-council/leeds,Leeds City Council,29/02/2016,City Development,Libraries  Arts & Heritage  ,Supplies and Services,Clothing & Uniforms,241,20-Jan-2016,1602-00264,0.00,83.33,R,Active8,Yes
Http://opendatacommunities.org/id/metropolitan-district-council/leeds,Leeds City Council as Accountable Body,29/02/2016,Social Services Pooled Budgets,Leeds Community Equip Store Pooled Budgt,Supplies and Services,Other Equipment,203,24-Feb-2016,1602-00265,0.00,165.00,R,Acute Sales Limited,No
Http://opendatacommunities.org/id/metropolitan-district-council/leeds,Leeds City Council,29/02/2016,Civic Enterprise Leeds,Business Support Centre,Supplies and Services,Other Hired And Contracted Services,265,03-Feb-2016,1602-00266,0.00,50.55,R,Ad3 Envelope Printers Limited,No
Http://opendatacommunities.org/id/metropolitan-district-council/leeds,Leeds City Council,29/02/2016,Civic Enterprise Leeds,Business Support Centre,Supplies and Services,Operational Materials,205,03-Feb-2016,1602-00267,0.00,645.00,R,Ad3 Envelope Printers Limited,No
Http://opendatacommunities.org/id/metropolitan-district-council/leeds,Leeds City Council,29/02/2016,Civic Enterprise Leeds,Business Support Centre,Supplies and Services,Other Hired And Contracted Services,265,24-Feb-2016,1602-00268,0.00,90.20,R,Ad3 Envelope Printers Limited,No
Http://opendatacommunities.org/id/metropolitan-district-council/leeds,Leeds City Council,29/02/2016,Citizens and Communities,Benefits  Wlefare and Poverty,Supplies and Services,Grant Related Expenditure,298,02-Feb-2016,1602-00269,0.00,500.00,R,REDACTED PERSONAL DATA,No
Http://opendatacommunities.org/id/metropolitan-district-council/leeds,Leeds City Council,29/02/2016,Adult Social Care,Social Services Support Services,Support Services,Legal Disbursements,411,11-Feb-2016,1602-00270,0.00,200.00,R,Adam Fullwood,No
Http://opendatacommunities.org/id/metropolitan-district-council/leeds,Leeds City Council as Accountable Body,29/02/2016,Social Services Pooled Budgets,Jcs For People With Learning Disabilitie,Transfer Payments,Personal Budgets,627,18-Feb-2016,1602-00271,0.00,670.95,R,REDACTED PERSONAL DATA,No
Http://opendatacommunities.org/id/metropolitan-district-council/leeds,Leeds City Council,29/02/2016,Environment & Housing,Strategic Housing Support,Supplies and Services,Other Hired And Contracted Services,265,18-Feb-2016,1602-00272,0.00,500.00,R,Adams Estates,No
Http://opendatacommunities.org/id/metropolitan-district-council/leeds,Leeds City Council,29/02/2016,Environment & Housing,Housing Leeds Service,Capital,Other Costs,7,03-Feb-2016,1602-00273,0.00,4307.50,C,Addleshaw Goddard Llp,No
Http://opendatacommunities.org/id/metropolitan-district-council/leeds,Leeds City Council,29/02/2016,Environment & Housing,Parks and Countryside,Supplies and Services,Other Hired And Contracted Services,265,08-Feb-2016,1602-00274,0.00,7644.00,R,Addlestone & Partners,No
Http://opendatacommunities.org/id/metropolitan-district-council/leeds,Leeds City Council,29/02/2016,Public Health,Public Health,Third Party Payments,Public Health Commissioned Services,526,19-Feb-2016,1602-00275,0.00,14.00,R,Addlestone & Partners,No
Http://opendatacommunities.org/id/metropolitan-district-council/leeds,Leeds City Council,29/02/2016,Central & Corporate,Technology  ,Employees,Agency Staff,8,18-Jan-2016,1602-00276,0.00,1840.00,R,Adecco Alfred Marks,Yes
Http://opendatacommunities.org/id/metropolitan-district-council/leeds,Leeds City Council,29/02/2016,Central & Corporate,Technology  ,Employees,Agency Staff,8,22-Jan-2016,1602-00277,0.00,1840.00,R,Adecco Alfred Marks,Yes
Http://opendatacommunities.org/id/metropolitan-district-council/leeds,Leeds City Council,29/02/2016,Childrens Services,Learning Skills & Universal,Third Party Payments,Services Rendered By Other Organisations,511,19-Feb-2016,1602-00278,0.00,828.17,R,Adel Pre School,No
Http://opendatacommunities.org/id/metropolitan-district-council/leeds,Leeds City Council,29/02/2016,Childrens Services,Safeguarding Targeted & Specialist,Third Party Payments,Placement Support,550,05-Feb-2016,1602-00279,0.00,72.00,R,Adel Quaker Meeting,No
Http://opendatacommunities.org/id/metropolitan-district-council/leeds,Leeds City Council,29/02/2016,Childrens Services,Safeguarding Targeted & Specialist,Third Party Payments,Placement Support,550,10-Feb-2016,1602-00280,0.00,72.00,R,Adel Quaker Meeting,No
Http://opendatacommunities.org/id/metropolitan-district-council/leeds,Leeds City Council,29/02/2016,Adult Social Care,Services For Older People - 65 And Over,Third Party Payments,Residential,580,10-Feb-2016,1602-00281,0.00,1191.28,R,Adeline Lodge,No
Http://opendatacommunities.org/id/metropolitan-district-council/leeds,Leeds City Council,29/02/2016,Adult Social Care,Services For Older People - 65 And Over,Third Party Payments,Nursing Home,570,10-Feb-2016,1602-00282,0.00,1060.84,R,Aden House,No
Http://opendatacommunities.org/id/metropolitan-district-council/leeds,Leeds City Council,29/02/2016,Adult Social Care,Services For Older People - 65 And Over,Third Party Payments,Residential Care Dementia,571,10-Feb-2016,1602-00283,0.00,1320.68,R,Aden House,No
Http://opendatacommunities.org/id/metropolitan-district-council/leeds,Leeds City Council,29/02/2016,Insurance,Insurance,Supplies and Services,Insurance Claims,248,05-Feb-2016,1602-00284,0.00,456.00,R,Adf Law,No
Http://opendatacommunities.org/id/metropolitan-district-council/leeds,Leeds City Council,29/02/2016,Insurance,Insurance,Supplies and Services,Insurance Claims,248,17-Feb-2016,1602-00285,0.00,360.00,R,Adf Law,No
Http://opendatacommunities.org/id/metropolitan-district-council/leeds,Leeds City Council,29/02/2016,Central & Corporate,Commercial Services Trading Services,Supplies and Services,Operational Materials,205,04-Feb-2016,1602-00286,0.00,118.69,R,Adi Global,No
Http://opendatacommunities.org/id/metropolitan-district-council/leeds,Leeds City Council,29/02/2016,Central & Corporate,Commercial Services Trading Services,Supplies and Services,Operational Materials,205,16-Feb-2016,1602-00287,0.00,28.28,R,Adi Global,No
Http://opendatacommunities.org/id/metropolitan-district-council/leeds,Leeds City Council,29/02/2016,Central & Corporate,Commercial Services Trading Services,Supplies and Services,Operational Materials,205,16-Feb-2016,1602-00288,0.00,191.73,R,Adi Global,No
Http://opendatacommunities.org/id/metropolitan-district-council/leeds,Leeds City Council,29/02/2016,Central & Corporate,Commercial Services Trading Services,Supplies and Services,Operational Materials,205,16-Feb-2016,1602-00289,0.00,82.55,R,Adi Global,No
Http://opendatacommunities.org/id/metropolitan-district-council/leeds,Leeds City Council,29/02/2016,Central & Corporate,Commercial Services Trading Services,Supplies and Services,Operational Materials,205,16-Feb-2016,1602-00290,0.00,54.43,R,Adi Global,No
Http://opendatacommunities.org/id/metropolitan-district-council/leeds,Leeds City Council,29/02/2016,Environment & Housing,Community Safety,Supplies and Services,Other Hired And Contracted Services,265,24-Feb-2016,1602-00291,0.00,1383.76,R,Adi Global,No
Http://opendatacommunities.org/id/metropolitan-district-council/leeds,Leeds City Council,29/02/2016,Central & Corporate,Commercial Services Trading Services,Supplies and Services,Other Hired And Contracted Services,265,01-Feb-2016,1602-00292,0.00,310.00,R,Admas Limited,No
Http://opendatacommunities.org/id/metropolitan-district-council/leeds,Leeds City Council,29/02/2016,Central & Corporate,Commercial Services Trading Services,Supplies and Services,Other Hired And Contracted Services,265,01-Feb-2016,1602-00293,0.00,180.00,R,Admas Limited,No
Http://opendatacommunities.org/id/metropolitan-district-council/leeds,Leeds City Council,29/02/2016,Central & Corporate,Commercial Services Trading Services,Supplies and Services,Other Hired And Contracted Services,265,01-Feb-2016,1602-00294,0.00,180.00,R,Admas Limited,No
Http://opendatacommunities.org/id/metropolitan-district-council/leeds,Leeds City Council,29/02/2016,Central & Corporate,Commercial Services Trading Services,Supplies and Services,Other Hired And Contracted Services,265,01-Feb-2016,1602-00295,0.00,180.00,R,Admas Limited,No
Http://opendatacommunities.org/id/metropolitan-district-council/leeds,Leeds City Council,29/02/2016,Central & Corporate,Commercial Services Trading Services,Supplies and Services,Other Hired And Contracted Services,265,12-Feb-2016,1602-00296,0.00,180.00,R,Admas Limited,No
Http://opendatacommunities.org/id/metropolitan-district-council/leeds,Leeds City Council,29/02/2016,Central & Corporate,Commercial Services Trading Services,Supplies and Services,Other Hired And Contracted Services,265,12-Feb-2016,1602-00297,0.00,310.00,R,Admas Limited,No
Http://opendatacommunities.org/id/metropolitan-district-council/leeds,Leeds City Council,29/02/2016,Central & Corporate,Commercial Services Trading Services,Supplies and Services,Other Hired And Contracted Services,265,22-Feb-2016,1602-00298,0.00,1480.00,R,Admas Limited,No
Http://opendatacommunities.org/id/metropolitan-district-council/leeds,Leeds City Council,29/02/2016,Central & Corporate,Commercial Services Trading Services,Supplies and Services,Other Hired And Contracted Services,265,22-Feb-2016,1602-00299,0.00,1740.00,R,Admas Limited,No
Http://opendatacommunities.org/id/metropolitan-district-council/leeds,Leeds City Council,29/02/2016,Central & Corporate,Commercial Services Trading Services,Supplies and Services,Other Hired And Contracted Services,265,24-Feb-2016,1602-00300,0.00,310.00,R,Admas Limited,No
Http://opendatacommunities.org/id/metropolitan-district-council/leeds,Leeds City Council,29/02/2016,Central & Corporate,Commercial Services Trading Services,Supplies and Services,Other Hired And Contracted Services,265,24-Feb-2016,1602-00301,0.00,380.00,R,Admas Limited,No
Http://opendatacommunities.org/id/metropolitan-district-council/leeds,Leeds City Council,29/02/2016,Central & Corporate,Commercial Services Trading Services,Supplies and Services,Other Hired And Contracted Services,265,24-Feb-2016,1602-00302,0.00,180.00,R,Admas Limited,No
Http://opendatacommunities.org/id/metropolitan-district-council/leeds,Leeds City Council,29/02/2016,Environment & Housing,Environmental Health,Capital,Other Costs,7,26-Feb-2016,1602-00303,0.00,350.00,C,Admas Limited,No
Http://opendatacommunities.org/id/metropolitan-district-council/leeds,Leeds City Council,29/02/2016,Environment & Housing,Environmental Health,Capital,Other Costs,7,26-Feb-2016,1602-00304,0.00,350.00,C,Admas Limited,No
Http://opendatacommunities.org/id/metropolitan-district-council/leeds,Leeds City Council,29/02/2016,Environment & Housing,Environmental Health,Capital,Other Costs,7,26-Feb-2016,1602-00305,0.00,340.00,C,Admas Limited,No
Http://opendatacommunities.org/id/metropolitan-district-council/leeds,Leeds City Council,29/02/2016,Environment & Housing,Environmental Health,Capital,Other Costs,7,29-Feb-2016,1602-00306,0.00,390.00,C,Admas Limited,No
Http://opendatacommunities.org/id/metropolitan-district-council/leeds,Leeds City Council,29/02/2016,Environment & Housing,Environmental Health,Capital,Other Costs,7,29-Feb-2016,1602-00307,0.00,430.00,C,Admas Limited,No
Http://opendatacommunities.org/id/metropolitan-district-council/leeds,Leeds City Council,29/02/2016,Childrens Services,Safeguarding Targeted & Specialist,Third Party Payments,Independent Fostering Agencies,509,05-Feb-2016,1602-00308,0.00,3100.00,R,Adolescent And Childrens Trust,No
Http://opendatacommunities.org/id/metropolitan-district-council/leeds,Leeds City Council,29/02/2016,Childrens Services,Safeguarding Targeted & Specialist,Third Party Payments,Independent Fostering Agencies,509,05-Feb-2016,1602-00309,0.00,3100.00,R,Adolescent And Childrens Trust,No
Http://opendatacommunities.org/id/metropolitan-district-council/leeds,Leeds City Council,29/02/2016,Childrens Services,Safeguarding Targeted & Specialist,Third Party Payments,Independent Fostering Agencies,509,05-Feb-2016,1602-00310,0.00,3100.00,R,Adolescent And Childrens Trust,No
Http://opendatacommunities.org/id/metropolitan-district-council/leeds,Leeds City Council,29/02/2016,Childrens Services,Safeguarding Targeted & Specialist,Third Party Payments,Independent Fostering Agencies,509,05-Feb-2016,1602-00311,0.00,3100.00,R,Adolescent And Childrens Trust,No
Http://opendatacommunities.org/id/metropolitan-district-council/leeds,Leeds City Council,29/02/2016,Childrens Services,Safeguarding Targeted & Specialist,Third Party Payments,Independent Fostering Agencies,509,05-Feb-2016,1602-00312,0.00,3100.00,R,Adolescent And Childrens Trust,No
Http://opendatacommunities.org/id/metropolitan-district-council/leeds,Leeds City Council,29/02/2016,Childrens Services,Safeguarding Targeted & Specialist,Third Party Payments,Independent Fostering Agencies,509,05-Feb-2016,1602-00313,0.00,2100.00,R,Adolescent And Childrens Trust,No
Http://opendatacommunities.org/id/metropolitan-district-council/leeds,Leeds City Council,29/02/2016,Childrens Services,Safeguarding Targeted & Specialist,Third Party Payments,Payments To Voluntary Organisations,561,05-Feb-2016,1602-00314,0.00,1230.00,R,Adoption Uk,No
Http://opendatacommunities.org/id/metropolitan-district-council/leeds,Leeds City Council,29/02/2016,Childrens Services,Safeguarding Targeted & Specialist,Supplies and Services,Memberships,226,10-Feb-2016,1602-00315,0.00,307.50,R,Adoption Uk,No
Http://opendatacommunities.org/id/metropolitan-district-council/leeds,Leeds City Council as Accountable Body,29/02/2016,Social Services Pooled Budgets,Jcs For People With Learning Disabilitie,Third Party Payments,Residential,580,18-Feb-2016,1602-00316,0.00,2609.36,R,Adrian House,No
Http://opendatacommunities.org/id/metropolitan-district-council/leeds,Leeds City Council,29/02/2016,Environment & Housing,Streetscene Environmental Services,Income,Penalties  Fines & Car Parking Charges,934,18-Feb-2016,1602-00317,0.00,4.17,R,REDACTED PERSONAL DATA,No
Http://opendatacommunities.org/id/metropolitan-district-council/leeds,Leeds City Council,29/02/2016,Civic Enterprise Leeds,Corporate Property Management,Premises,Maintenance Of Buildings,101,05-Feb-2016,1602-00318,0.00,148.44,R,Adt Fire And Security Plc,No
Http://opendatacommunities.org/id/metropolitan-district-council/leeds,Leeds City Council,29/02/2016,Strategic Landlord,Housing Management,Premises,Premises Security Services,162,12-Feb-2016,1602-00319,0.00,130.96,R,Adt Fire And Security Plc,No
Http://opendatacommunities.org/id/metropolitan-district-council/leeds,Leeds City Council,29/02/2016,City Development,Libraries  Arts & Heritage,Supplies and Services,Other Hired And Contracted Services,265,18-Feb-2016,1602-00320,0.00,297.43,R,Adt Fire And Security Plc,No
Http://opendatacommunities.org/id/metropolitan-district-council/leeds,Leeds City Council,29/02/2016,Civic Enterprise Leeds,Facilities Management  ,Supplies and Services,Other Hired And Contracted Services,265,06-Jan-2016,1602-00321,0.00,226.72,R,Adt Loughton Cc,Yes
Http://opendatacommunities.org/id/metropolitan-district-council/leeds,Leeds City Council,29/02/2016,Civic Enterprise Leeds,Facilities Management  ,Supplies and Services,Other Hired And Contracted Services,265,06-Jan-2016,1602-00322,0.00,656.25,R,Adt Loughton Cc,Yes
Http://opendatacommunities.org/id/metropolitan-district-council/leeds,Leeds City Council as Accountable Body,29/02/2016,Social Services Pooled Budgets,Jcs For People With Learning Disabilitie,Third Party Payments,Sheltered Accommodation,569,04-Feb-2016,1602-00323,0.00,1332.20,R,Adult Placement Services,No
Http://opendatacommunities.org/id/metropolitan-district-council/leeds,Leeds City Council as Accountable Body,29/02/2016,Social Services Pooled Budgets,Jcs For People With Learning Disabilitie,Third Party Payments,Sheltered Accommodation,569,26-Feb-2016,1602-00324,0.00,1332.20,R,Adult Placement Services,No
Http://opendatacommunities.org/id/metropolitan-district-council/leeds,Leeds City Council,29/02/2016,Adult Social Care,Services For Adults Under 65 Mental/Dis,Third Party Payments,Nursing Home,570,10-Feb-2016,1602-00325,0.00,1541.96,R,Adult Supported Living Ltd,No
Http://opendatacommunities.org/id/metropolitan-district-council/leeds,Leeds City Council,29/02/2016,City Development,Libraries  Arts & Heritage,Supplies and Services,External Audit Fees,261,12-Feb-2016,1602-00326,0.00,85.00,R,Advance Stocks Ltd,No
Http://opendatacommunities.org/id/metropolitan-district-council/leeds,Leeds City Council,29/02/2016,City Development,Libraries  Arts & Heritage,Supplies and Services,External Audit Fees,261,12-Feb-2016,1602-00327,0.00,85.00,R,Advance Stocks Ltd,No
Http://opendatacommunities.org/id/metropolitan-district-council/leeds,Leeds City Council,29/02/2016,City Development,Recreation,Supplies and Services,External Audit Fees,261,15-Feb-2016,1602-00328,0.00,245.00,R,Advance Stocks Ltd,No
Http://opendatacommunities.org/id/metropolitan-district-council/leeds,Leeds City Council,29/02/2016,City Development,Recreation,Supplies and Services,External Audit Fees,261,15-Feb-2016,1602-00329,0.00,245.00,R,Advance Stocks Ltd,No
Http://opendatacommunities.org/id/metropolitan-district-council/leeds,Leeds City Council,29/02/2016,City Development,Recreation,Supplies and Services,External Audit Fees,261,26-Feb-2016,1602-00330,0.00,235.00,R,Advance Stocks Ltd,No
Http://opendatacommunities.org/id/metropolitan-district-council/leeds,Leeds City Council,29/02/2016,City Development,Recreation,Supplies and Services,External Audit Fees,261,26-Feb-2016,1602-00331,0.00,85.00,R,Advance Stocks Ltd,No
Http://opendatacommunities.org/id/metropolitan-district-council/leeds,Leeds City Council,29/02/2016,Childrens Services,Safeguarding Targeted & Specialist,Support Services,Legal Disbursements,411,04-Feb-2016,1602-00332,0.00,82.86,R,Advanced Child Care Assessments Ltd,No
Http://opendatacommunities.org/id/metropolitan-district-council/leeds,Leeds City Council,29/02/2016,Childrens Services,Safeguarding Targeted & Specialist,Support Services,Legal Disbursements,411,05-Feb-2016,1602-00333,0.00,208.00,R,Advanced Child Care Assessments Ltd,No
Http://opendatacommunities.org/id/metropolitan-district-council/leeds,Leeds City Council,29/02/2016,Childrens Services,Safeguarding Targeted & Specialist,Support Services,Legal Disbursements,411,12-Feb-2016,1602-00334,0.00,505.87,R,Advanced Child Care Assessments Ltd,No
Http://opendatacommunities.org/id/metropolitan-district-council/leeds,Leeds City Council,29/02/2016,Childrens Services,Safeguarding Targeted & Specialist,Support Services,Legal Disbursements,411,25-Feb-2016,1602-00335,0.00,403.87,R,Advanced Child Care Assessments Ltd,No
Http://opendatacommunities.org/id/metropolitan-district-council/leeds,Leeds City Council,29/02/2016,Civic Enterprise Leeds,Corporate Property Management,Premises,Plant and Machinery,102,09-Feb-2016,1602-00336,0.00,701.00,R,Advanced Diesel Engineering,No
Http://opendatacommunities.org/id/metropolitan-district-council/leeds,Leeds City Council,29/02/2016,Adult Social Care,Home Care Services,Supplies and Services,Computer Software & Equipment,214,10-Feb-2016,1602-00337,0.00,14166.75,R,Advanced Health And Care Ltd,No
Http://opendatacommunities.org/id/metropolitan-district-council/leeds,Leeds City Council as Accountable Body,29/02/2016,Social Services Pooled Budgets,Jcs For People With Learning Disabilitie,Third Party Payments,Residential,580,10-Feb-2016,1602-00338,0.00,20248.68,R,Advitam Ltd,No
Http://opendatacommunities.org/id/metropolitan-district-council/leeds,Leeds City Council,29/02/2016,Adult Social Care,Services For Older People - 65 And Over,Third Party Payments,Payments To Voluntary Organisations,561,05-Feb-2016,1602-00339,0.00,84422.93,R,Advonet,No
Http://opendatacommunities.org/id/metropolitan-district-council/leeds,Leeds City Council as Accountable Body,29/02/2016,Social Services Pooled Budgets,Jcs For People With Learning Disabilitie,Third Party Payments,Other Agency Services,561,22-Feb-2016,1602-00340,0.00,11372.30,R,Advonet,No
Http://opendatacommunities.org/id/metropolitan-district-council/leeds,Leeds City Council as Accountable Body,29/02/2016,Social Services Pooled Budgets,Jcs For People With Learning Disabilitie,Third Party Payments,Other Agency Services,561,22-Feb-2016,1602-00341,0.00,6567.66,R,Advonet,No
Http://opendatacommunities.org/id/metropolitan-district-council/leeds,Leeds City Council as Accountable Body,29/02/2016,Social Services Pooled Budgets,Jcs For People With Learning Disabilitie,Third Party Payments,Other Agency Services,561,22-Feb-2016,1602-00342,0.00,6567.66,R,Advonet,No
Http://opendatacommunities.org/id/metropolitan-district-council/leeds,Leeds City Council as Accountable Body,29/02/2016,Social Services Pooled Budgets,Jcs For People With Learning Disabilitie,Third Party Payments,Other Agency Services,561,22-Feb-2016,1602-00343,0.00,11372.30,R,Advonet,No
Http://opendatacommunities.org/id/metropolitan-district-council/leeds,Leeds City Council,29/02/2016,City Development,Economic Development,Capital,Other Costs,7,05-Feb-2016,1602-00344,0.00,10033.00,C,Aecom Limited,No
Http://opendatacommunities.org/id/metropolitan-district-council/leeds,Leeds City Council,29/02/2016,City Development,Economic Development,Capital,Other Costs,7,10-Feb-2016,1602-00345,0.00,9569.80,C,Aecom Limited,No
Http://opendatacommunities.org/id/metropolitan-district-council/leeds,Leeds City Council,29/02/2016,Insurance,Insurance,Supplies and Services,Insurance Claims,248,12-Feb-2016,1602-00346,0.00,2563.00,R,Aequitas Legal Solicitors Limited,No
Http://opendatacommunities.org/id/metropolitan-district-council/leeds,Leeds City Council,29/02/2016,Central & Corporate,Commercial Services Trading Services,Supplies and Services,Other Hired And Contracted Services,265,01-Feb-2016,1602-00347,0.00,220.00,R,Aerial Satellite Link,No
Http://opendatacommunities.org/id/metropolitan-district-council/leeds,Leeds City Council as Accountable Body,29/02/2016,Social Services Pooled Budgets,Jcs For People With Learning Disabilitie,Third Party Payments,Residential,580,02-Feb-2016,1602-00348,0.00,715.59,R,Affinity Trust,No
Http://opendatacommunities.org/id/metropolitan-district-council/leeds,Leeds City Council as Accountable Body,29/02/2016,Social Services Pooled Budgets,Jcs For People With Learning Disabilitie,Third Party Payments,Home Care,568,02-Feb-2016,1602-00349,0.00,682.50,R,Affinity Trust,No
Http://opendatacommunities.org/id/metropolitan-district-council/leeds,Leeds City Council,29/02/2016,Adult Social Care,Services For Older People Under 65 P/Dis,Third Party Payments,Home Care,568,02-Feb-2016,1602-00350,0.00,63.92,R,Affinity Trust,No
Http://opendatacommunities.org/id/metropolitan-district-council/leeds,Leeds City Council as Accountable Body,29/02/2016,Social Services Pooled Budgets,Jcs For People With Learning Disabilitie,Third Party Payments,Home Care,568,03-Feb-2016,1602-00351,0.00,574.24,R,Affinity Trust,No
Http://opendatacommunities.org/id/metropolitan-district-council/leeds,Leeds City Council as Accountable Body,29/02/2016,Social Services Pooled Budgets,Jcs For People With Learning Disabilitie,Third Party Payments,Home Care,568,03-Feb-2016,1602-00352,0.00,1076.48,R,Affinity Trust,No
Http://opendatacommunities.org/id/metropolitan-district-council/leeds,Leeds City Council as Accountable Body,29/02/2016,Social Services Pooled Budgets,Jcs For People With Learning Disabilitie,Third Party Payments,Home Care,568,03-Feb-2016,1602-00353,0.00,607.24,R,Affinity Trust,No
Http://opendatacommunities.org/id/metropolitan-district-council/leeds,Leeds City Council as Accountable Body,29/02/2016,Social Services Pooled Budgets,Jcs For People With Learning Disabilitie,Third Party Payments,Home Care,568,05-Feb-2016,1602-00354,0.00,47.94,R,Affinity Trust,No
Http://opendatacommunities.org/id/metropolitan-district-council/leeds,Leeds City Council as Accountable Body,29/02/2016,Social Services Pooled Budgets,Jcs For People With Learning Disabilitie,Third Party Payments,Home Care,568,05-Feb-2016,1602-00355,0.00,886.89,R,Affinity Trust,No
Http://opendatacommunities.org/id/metropolitan-district-council/leeds,Leeds City Council as Accountable Body,29/02/2016,Social Services Pooled Budgets,Jcs For People With Learning Disabilitie,Third Party Payments,Home Care,568,05-Feb-2016,1602-00356,0.00,420.50,R,Affinity Trust,No
Http://opendatacommunities.org/id/metropolitan-district-council/leeds,Leeds City Council as Accountable Body,29/02/2016,Social Services Pooled Budgets,Jcs For People With Learning Disabilitie,Third Party Payments,Home Care,568,05-Feb-2016,1602-00357,0.00,1020.00,R,Affinity Trust,No
Http://opendatacommunities.org/id/metropolitan-district-council/leeds,Leeds City Council as Accountable Body,29/02/2016,Social Services Pooled Budgets,Jcs For People With Learning Disabilitie,Third Party Payments,Home Care,568,05-Feb-2016,1602-00358,0.00,312.16,R,Affinity Trust,No
Http://opendatacommunities.org/id/metropolitan-district-council/leeds,Leeds City Council as Accountable Body,29/02/2016,Social Services Pooled Budgets,Jcs For People With Learning Disabilitie,Third Party Payments,Home Care,568,05-Feb-2016,1602-00359,0.00,255.68,R,Affinity Trust,No
Http://opendatacommunities.org/id/metropolitan-district-council/leeds,Leeds City Council as Accountable Body,29/02/2016,Social Services Pooled Budgets,Jcs For People With Learning Disabilitie,Third Party Payments,Day Centre,564,05-Feb-2016,1602-00360,0.00,468.72,R,Affinity Trust,No
Http://opendatacommunities.org/id/metropolitan-district-council/leeds,Leeds City Council as Accountable Body,29/02/2016,Social Services Pooled Budgets,Jcs For People With Learning Disabilitie,Third Party Payments,Home Care,568,05-Feb-2016,1602-00361,0.00,1230.46,R,Affinity Trust,No
Http://opendatacommunities.org/id/metropolitan-district-council/leeds,Leeds City Council as Accountable Body,29/02/2016,Social Services Pooled Budgets,Jcs For People With Learning Disabilitie,Third Party Payments,Home Care,568,05-Feb-2016,1602-00362,0.00,1765.50,R,Affinity Trust,No
Http://opendatacommunities.org/id/metropolitan-district-council/leeds,Leeds City Council as Accountable Body,29/02/2016,Social Services Pooled Budgets,Jcs For People With Learning Disabilitie,Third Party Payments,Home Care,568,05-Feb-2016,1602-00363,0.00,1454.93,R,Affinity Trust,No
Http://opendatacommunities.org/id/metropolitan-district-council/leeds,Leeds City Council as Accountable Body,29/02/2016,Social Services Pooled Budgets,Jcs For People With Learning Disabilitie,Third Party Payments,Home Care,568,05-Feb-2016,1602-00364,0.00,874.91,R,Affinity Trust,No
Http://opendatacommunities.org/id/metropolitan-district-council/leeds,Leeds City Council as Accountable Body,29/02/2016,Social Services Pooled Budgets,Jcs For People With Learning Disabilitie,Third Party Payments,Home Care,568,05-Feb-2016,1602-00365,0.00,639.20,R,Affinity Trust,No
Http://opendatacommunities.org/id/metropolitan-district-council/leeds,Leeds City Council as Accountable Body,29/02/2016,Social Services Pooled Budgets,Jcs For People With Learning Disabilitie,Third Party Payments,Home Care,568,05-Feb-2016,1602-00366,0.00,1534.08,R,Affinity Trust,No
Http://opendatacommunities.org/id/metropolitan-district-council/leeds,Leeds City Council as Accountable Body,29/02/2016,Social Services Pooled Budgets,Jcs For People With Learning Disabilitie,Third Party Payments,Home Care,568,05-Feb-2016,1602-00367,0.00,1454.18,R,Affinity Trust,No
Http://opendatacommunities.org/id/metropolitan-district-council/leeds,Leeds City Council as Accountable Body,29/02/2016,Social Services Pooled Budgets,Jcs For People With Learning Disabilitie,Third Party Payments,Home Care,568,05-Feb-2016,1602-00368,0.00,671.16,R,Affinity Trust,No
Http://opendatacommunities.org/id/metropolitan-district-council/leeds,Leeds City Council as Accountable Body,29/02/2016,Social Services Pooled Budgets,Jcs For People With Learning Disabilitie,Third Party Payments,Home Care,568,05-Feb-2016,1602-00369,0.00,479.40,R,Affinity Trust,No
Http://opendatacommunities.org/id/metropolitan-district-council/leeds,Leeds City Council as Accountable Body,29/02/2016,Social Services Pooled Budgets,Jcs For People With Learning Disabilitie,Third Party Payments,Home Care,568,05-Feb-2016,1602-00370,0.00,408.00,R,Affinity Trust,No
Http://opendatacommunities.org/id/metropolitan-district-council/leeds,Leeds City Council as Accountable Body,29/02/2016,Social Services Pooled Budgets,Jcs For People With Learning Disabilitie,Third Party Payments,Home Care,568,05-Feb-2016,1602-00371,0.00,1374.28,R,Affinity Trust,No
Http://opendatacommunities.org/id/metropolitan-district-council/leeds,Leeds City Council as Accountable Body,29/02/2016,Social Services Pooled Budgets,Jcs For People With Learning Disabilitie,Third Party Payments,Home Care,568,05-Feb-2016,1602-00372,0.00,3518.23,R,Affinity Trust,No
Http://opendatacommunities.org/id/metropolitan-district-council/leeds,Leeds City Council as Accountable Body,29/02/2016,Social Services Pooled Budgets,Jcs For People With Learning Disabilitie,Third Party Payments,Home Care,568,05-Feb-2016,1602-00373,0.00,300.00,R,Affinity Trust,No
Http://opendatacommunities.org/id/metropolitan-district-council/leeds,Leeds City Council as Accountable Body,29/02/2016,Social Services Pooled Budgets,Jcs For People With Learning Disabilitie,Third Party Payments,Home Care,568,05-Feb-2016,1602-00374,0.00,1006.74,R,Affinity Trust,No
Http://opendatacommunities.org/id/metropolitan-district-council/leeds,Leeds City Council as Accountable Body,29/02/2016,Social Services Pooled Budgets,Jcs For People With Learning Disabilitie,Third Party Payments,Home Care,568,05-Feb-2016,1602-00375,0.00,607.24,R,Affinity Trust,No
Http://opendatacommunities.org/id/metropolitan-district-council/leeds,Leeds City Council as Accountable Body,29/02/2016,Social Services Pooled Budgets,Jcs For People With Learning Disabilitie,Third Party Payments,Home Care,568,05-Feb-2016,1602-00376,0.00,575.28,R,Affinity Trust,No
Http://opendatacommunities.org/id/metropolitan-district-council/leeds,Leeds City Council as Accountable Body,29/02/2016,Social Services Pooled Budgets,Jcs For People With Learning Disabilitie,Third Party Payments,Home Care,568,05-Feb-2016,1602-00377,0.00,159.80,R,Affinity Trust,No
Http://opendatacommunities.org/id/metropolitan-district-council/leeds,Leeds City Council as Accountable Body,29/02/2016,Social Services Pooled Budgets,Jcs For People With Learning Disabilitie,Third Party Payments,Home Care,568,05-Feb-2016,1602-00378,0.00,204.32,R,Affinity Trust,No
Http://opendatacommunities.org/id/metropolitan-district-council/leeds,Leeds City Council as Accountable Body,29/02/2016,Social Services Pooled Budgets,Jcs For People With Learning Disabilitie,Third Party Payments,Home Care,568,05-Feb-2016,1602-00379,0.00,375.00,R,Affinity Trust,No
Http://opendatacommunities.org/id/metropolitan-district-council/leeds,Leeds City Council as Accountable Body,29/02/2016,Social Services Pooled Budgets,Jcs For People With Learning Disabilitie,Third Party Payments,Home Care,568,05-Feb-2016,1602-00380,0.00,1059.66,R,Affinity Trust,No
Http://opendatacommunities.org/id/metropolitan-district-council/leeds,Leeds City Council as Accountable Body,29/02/2016,Social Services Pooled Budgets,Jcs For People With Learning Disabilitie,Third Party Payments,Home Care,568,05-Feb-2016,1602-00381,0.00,2075.68,R,Affinity Trust,No
Http://opendatacommunities.org/id/metropolitan-district-council/leeds,Leeds City Council,29/02/2016,Adult Social Care,Services For Older People Under 65 P/Dis,Third Party Payments,Home Care,568,10-Feb-2016,1602-00382,0.00,751.06,R,Affinity Trust,No
Http://opendatacommunities.org/id/metropolitan-district-council/leeds,Leeds City Council,29/02/2016,Adult Social Care,Services For Older People Under 65 P/Dis,Third Party Payments,Home Care,568,10-Feb-2016,1602-00383,0.00,2428.20,R,Affinity Trust,No
Http://opendatacommunities.org/id/metropolitan-district-council/leeds,Leeds City Council,29/02/2016,Adult Social Care,Services For Older People Under 65 P/Dis,Third Party Payments,Home Care,568,10-Feb-2016,1602-00384,0.00,396.00,R,Affinity Trust,No
Http://opendatacommunities.org/id/metropolitan-district-council/leeds,Leeds City Council,29/02/2016,Adult Social Care,Services For Older People Under 65 P/Dis,Third Party Payments,Home Care,568,10-Feb-2016,1602-00385,0.00,672.71,R,Affinity Trust,No
Http://opendatacommunities.org/id/metropolitan-district-council/leeds,Leeds City Council as Accountable Body,29/02/2016,Social Services Pooled Budgets,Jcs For People With Learning Disabilitie,Third Party Payments,Home Care,568,10-Feb-2016,1602-00386,0.00,1080.00,R,Affinity Trust,No
Http://opendatacommunities.org/id/metropolitan-district-council/leeds,Leeds City Council as Accountable Body,29/02/2016,Social Services Pooled Budgets,Jcs For People With Learning Disabilitie,Third Party Payments,Home Care,568,10-Feb-2016,1602-00387,0.00,3316.88,R,Affinity Trust,No
Http://opendatacommunities.org/id/metropolitan-district-council/leeds,Leeds City Council as Accountable Body,29/02/2016,Social Services Pooled Budgets,Jcs For People With Learning Disabilitie,Third Party Payments,Home Care,568,10-Feb-2016,1602-00388,0.00,1560.00,R,Affinity Trust,No
Http://opendatacommunities.org/id/metropolitan-district-council/leeds,Leeds City Council as Accountable Body,29/02/2016,Social Services Pooled Budgets,Jcs For People With Learning Disabilitie,Third Party Payments,Home Care,568,10-Feb-2016,1602-00389,0.00,360.00,R,Affinity Trust,No
Http://opendatacommunities.org/id/metropolitan-district-council/leeds,Leeds City Council as Accountable Body,29/02/2016,Social Services Pooled Budgets,Jcs For People With Learning Disabilitie,Third Party Payments,Day Centre,564,10-Feb-2016,1602-00390,0.00,1315.84,R,Affinity Trust,No
Http://opendatacommunities.org/id/metropolitan-district-council/leeds,Leeds City Council as Accountable Body,29/02/2016,Social Services Pooled Budgets,Jcs For People With Learning Disabilitie,Third Party Payments,Home Care,568,10-Feb-2016,1602-00391,0.00,525.72,R,Affinity Trust,No
Http://opendatacommunities.org/id/metropolitan-district-council/leeds,Leeds City Council as Accountable Body,29/02/2016,Social Services Pooled Budgets,Jcs For People With Learning Disabilitie,Third Party Payments,Day Centre,564,10-Feb-2016,1602-00392,0.00,4052.48,R,Affinity Trust,No
Http://opendatacommunities.org/id/metropolitan-district-council/leeds,Leeds City Council as Accountable Body,29/02/2016,Social Services Pooled Budgets,Jcs For People With Learning Disabilitie,Third Party Payments,Home Care,568,10-Feb-2016,1602-00393,0.00,2279.36,R,Affinity Trust,No
Http://opendatacommunities.org/id/metropolitan-district-council/leeds,Leeds City Council as Accountable Body,29/02/2016,Social Services Pooled Budgets,Jcs For People With Learning Disabilitie,Third Party Payments,Home Care,568,10-Feb-2016,1602-00394,0.00,1599.98,R,Affinity Trust,No
Http://opendatacommunities.org/id/metropolitan-district-council/leeds,Leeds City Council as Accountable Body,29/02/2016,Social Services Pooled Budgets,Jcs For People With Learning Disabilitie,Third Party Payments,Home Care,568,10-Feb-2016,1602-00395,0.00,804.48,R,Affinity Trust,No
Http://opendatacommunities.org/id/metropolitan-district-council/leeds,Leeds City Council as Accountable Body,29/02/2016,Social Services Pooled Budgets,Jcs For People With Learning Disabilitie,Third Party Payments,Home Care,568,10-Feb-2016,1602-00396,0.00,1035.44,R,Affinity Trust,No
Http://opendatacommunities.org/id/metropolitan-district-council/leeds,Leeds City Council as Accountable Body,29/02/2016,Social Services Pooled Budgets,Jcs For People With Learning Disabilitie,Third Party Payments,Home Care,568,10-Feb-2016,1602-00397,0.00,270.00,R,Affinity Trust,No
Http://opendatacommunities.org/id/metropolitan-district-council/leeds,Leeds City Council as Accountable Body,29/02/2016,Social Services Pooled Budgets,Jcs For People With Learning Disabilitie,Third Party Payments,Home Care,568,10-Feb-2016,1602-00398,0.00,1800.00,R,Affinity Trust,No
Http://opendatacommunities.org/id/metropolitan-district-council/leeds,Leeds City Council as Accountable Body,29/02/2016,Social Services Pooled Budgets,Jcs For People With Learning Disabilitie,Third Party Payments,Home Care,568,10-Feb-2016,1602-00399,0.00,1971.30,R,Affinity Trust,No
Http://opendatacommunities.org/id/metropolitan-district-council/leeds,Leeds City Council as Accountable Body,29/02/2016,Social Services Pooled Budgets,Jcs For People With Learning Disabilitie,Third Party Payments,Home Care,568,10-Feb-2016,1602-00400,0.00,703.92,R,Affinity Trust,No
Http://opendatacommunities.org/id/metropolitan-district-council/leeds,Leeds City Council as Accountable Body,29/02/2016,Social Services Pooled Budgets,Jcs For People With Learning Disabilitie,Third Party Payments,Home Care,568,10-Feb-2016,1602-00401,0.00,360.00,R,Affinity Trust,No
Http://opendatacommunities.org/id/metropolitan-district-council/leeds,Leeds City Council as Accountable Body,29/02/2016,Social Services Pooled Budgets,Jcs For People With Learning Disabilitie,Third Party Payments,Home Care,568,10-Feb-2016,1602-00402,0.00,363.16,R,Affinity Trust,No
Http://opendatacommunities.org/id/metropolitan-district-council/leeds,Leeds City Council as Accountable Body,29/02/2016,Social Services Pooled Budgets,Jcs For People With Learning Disabilitie,Third Party Payments,Home Care,568,10-Feb-2016,1602-00403,0.00,1050.00,R,Affinity Trust,No
Http://opendatacommunities.org/id/metropolitan-district-council/leeds,Leeds City Council as Accountable Body,29/02/2016,Social Services Pooled Budgets,Jcs For People With Learning Disabilitie,Third Party Payments,Home Care,568,10-Feb-2016,1602-00404,0.00,2752.80,R,Affinity Trust,No
Http://opendatacommunities.org/id/metropolitan-district-council/leeds,Leeds City Council as Accountable Body,29/02/2016,Social Services Pooled Budgets,Jcs For People With Learning Disabilitie,Third Party Payments,Home Care,568,10-Feb-2016,1602-00405,0.00,1206.72,R,Affinity Trust,No
Http://opendatacommunities.org/id/metropolitan-district-council/leeds,Leeds City Council as Accountable Body,29/02/2016,Social Services Pooled Budgets,Jcs For People With Learning Disabilitie,Third Party Payments,Day Centre,564,10-Feb-2016,1602-00406,0.00,714.78,R,Affinity Trust,No
Http://opendatacommunities.org/id/metropolitan-district-council/leeds,Leeds City Council as Accountable Body,29/02/2016,Social Services Pooled Budgets,Jcs For People With Learning Disabilitie,Third Party Payments,Day Centre,564,10-Feb-2016,1602-00407,0.00,2346.40,R,Affinity Trust,No
Http://opendatacommunities.org/id/metropolitan-district-council/leeds,Leeds City Council as Accountable Body,29/02/2016,Social Services Pooled Budgets,Jcs For People With Learning Disabilitie,Third Party Payments,Home Care,568,10-Feb-2016,1602-00408,0.00,900.00,R,Affinity Trust,No
Http://opendatacommunities.org/id/metropolitan-district-council/leeds,Leeds City Council as Accountable Body,29/02/2016,Social Services Pooled Budgets,Jcs For People With Learning Disabilitie,Third Party Payments,Home Care,568,10-Feb-2016,1602-00409,0.00,4417.28,R,Affinity Trust,No
Http://opendatacommunities.org/id/metropolitan-district-council/leeds,Leeds City Council as Accountable Body,29/02/2016,Social Services Pooled Budgets,Jcs For People With Learning Disabilitie,Third Party Payments,Day Centre,564,10-Feb-2016,1602-00410,0.00,1440.00,R,Affinity Trust,No
Http://opendatacommunities.org/id/metropolitan-district-council/leeds,Leeds City Council,29/02/2016,Adult Social Care,Services For Older People Under 65 P/Dis,Third Party Payments,Home Care,568,12-Feb-2016,1602-00411,0.00,255.68,R,Affinity Trust,No
Http://opendatacommunities.org/id/metropolitan-district-council/leeds,Leeds City Council,29/02/2016,Adult Social Care,Services For Adults Under 65 Mental/Dis,Third Party Payments,Home Care,568,12-Feb-2016,1602-00412,0.00,319.60,R,Affinity Trust,No
Http://opendatacommunities.org/id/metropolitan-district-council/leeds,Leeds City Council,29/02/2016,Adult Social Care,Services For Older People Under 65 P/Dis,Third Party Payments,Home Care,568,12-Feb-2016,1602-00413,0.00,399.50,R,Affinity Trust,No
Http://opendatacommunities.org/id/metropolitan-district-council/leeds,Leeds City Council,29/02/2016,Adult Social Care,Services For Older People Under 65 P/Dis,Third Party Payments,Home Care,568,12-Feb-2016,1602-00414,0.00,239.70,R,Affinity Trust,No
Http://opendatacommunities.org/id/metropolitan-district-council/leeds,Leeds City Council,29/02/2016,Adult Social Care,Services For Older People - 65 And Over,Third Party Payments,Home Care,568,12-Feb-2016,1602-00415,0.00,1278.32,R,Affinity Trust,No
Http://opendatacommunities.org/id/metropolitan-district-council/leeds,Leeds City Council as Accountable Body,29/02/2016,Social Services Pooled Budgets,Jcs For People With Learning Disabilitie,Third Party Payments,Sheltered Accommodation,569,10-Feb-2016,1602-00416,0.00,92817.08,R,Affinity Trust North Divisional Office,No
Http://opendatacommunities.org/id/metropolitan-district-council/leeds,Leeds City Council as Accountable Body,29/02/2016,Social Services Pooled Budgets,Jcs For People With Learning Disabilitie,Third Party Payments,Residential,580,10-Feb-2016,1602-00417,0.00,10593.32,R,Affinity Trust North Divisional Office,No
Http://opendatacommunities.org/id/metropolitan-district-council/leeds,Leeds City Council,29/02/2016,Citizens and Communities,Benefits  Wlefare and Poverty,Supplies and Services,Grant Related Expenditure,298,04-Feb-2016,1602-00418,0.00,500.00,R,REDACTED PERSONAL DATA,No
Http://opendatacommunities.org/id/metropolitan-district-council/leeds,Leeds City Council,29/02/2016,Environment & Housing,SP Contracts & SECC,Third Party Payments,Supporting Ppl - Block Gross Chargeable,514,19-Feb-2016,1602-00419,0.00,3957.68,R,Age Uk Leeds,No
Http://opendatacommunities.org/id/metropolitan-district-council/leeds,Leeds City Council,29/02/2016,Citizens and Communities,Communities,Supplies and Services,'Well Being' Large Grants Projects,230,24-Feb-2016,1602-00420,0.00,799.00,R,Age Uk Training,No
Http://opendatacommunities.org/id/metropolitan-district-council/leeds,Leeds City Council,29/02/2016,Citizens and Communities,Communities,Supplies and Services,'Well Being' Large Grants Projects,230,24-Feb-2016,1602-00421,0.00,799.00,R,Age Uk Training,No
Http://opendatacommunities.org/id/metropolitan-district-council/leeds,Leeds City Council,29/02/2016,Insurance,Insurance,Supplies and Services,Insurance Claims,248,11-Feb-2016,1602-00422,0.00,1348.00,R,Ageas,No
Http://opendatacommunities.org/id/metropolitan-district-council/leeds,Leeds City Council,29/02/2016,City Development,Libraries  Arts & Heritage,Supplies and Services,Bought In Professional Services,277,16-Feb-2016,1602-00423,0.00,1500.00,R,Agere Learning,No
Http://opendatacommunities.org/id/metropolitan-district-council/leeds,Leeds City Council,29/02/2016,City Development,Libraries  Arts & Heritage,Supplies and Services,Bought In Professional Services,277,08-Feb-2016,1602-00424,0.00,1511.42,R,Agnis Smallwood,No
Http://opendatacommunities.org/id/metropolitan-district-council/leeds,Leeds City Council,29/02/2016,Adult Social Care,Services For Older People Under 65 P/Dis,Third Party Payments,Residential,580,10-Feb-2016,1602-00425,0.00,5598.40,R,Agricola House,No
Http://opendatacommunities.org/id/metropolitan-district-council/leeds,Leeds City Council,29/02/2016,City Development,Asset Management Services  ,Supplies and Services,Books & Audio-Visual Materials,206,08-Jan-2016,1602-00426,0.00,35.00,R,Agro Business Cons,Yes
Http://opendatacommunities.org/id/metropolitan-district-council/leeds,Leeds City Council,29/02/2016,City Development,Economic Development  ,Supplies and Services,Subsistence,256,11-Jan-2016,1602-00427,0.00,5.55,R,Ah To Go 5865,Yes
Http://opendatacommunities.org/id/metropolitan-district-council/leeds,Leeds City Council,29/02/2016,City Development,Economic Development  ,Supplies and Services,Subsistence,256,12-Jan-2016,1602-00428,0.00,2.90,R,Ah To Go 5873,Yes
Http://opendatacommunities.org/id/metropolitan-district-council/leeds,Leeds City Council,29/02/2016,City Development,Economic Development  ,Supplies and Services,Subsistence,256,13-Jan-2016,1602-00429,0.00,1.51,R,Ah To Go 5873,Yes
Http://opendatacommunities.org/id/metropolitan-district-council/leeds,Leeds City Council,29/02/2016,Citizens and Communities,Communities,Transfer Payments,Direct Payments,626,10-Feb-2016,1602-00430,0.00,450.00,R,REDACTED PERSONAL DATA,No
Http://opendatacommunities.org/id/metropolitan-district-council/leeds,Leeds City Council,29/02/2016,Citizens and Communities,Benefits  Wlefare and Poverty,Supplies and Services,Grant Related Expenditure,298,04-Feb-2016,1602-00431,0.00,500.00,R,REDACTED PERSONAL DATA,No
Http://opendatacommunities.org/id/metropolitan-district-council/leeds,Leeds City Council as Accountable Body,29/02/2016,Social Services Pooled Budgets,Leeds Community Equip Store Pooled Budgt,Supplies and Services,Other Equipment,203,10-Feb-2016,1602-00432,0.00,675.00,R,Aidapt Bathrooms Ltd,No
Http://opendatacommunities.org/id/metropolitan-district-council/leeds,Leeds City Council as Accountable Body,29/02/2016,Social Services Pooled Budgets,Leeds Community Equip Store Pooled Budgt,Supplies and Services,Other Equipment,203,17-Feb-2016,1602-00433,0.00,1525.00,R,Aidapt Bathrooms Ltd,No
Http://opendatacommunities.org/id/metropolitan-district-council/leeds,Leeds City Council as Accountable Body,29/02/2016,Social Services Pooled Budgets,Leeds Community Equip Store Pooled Budgt,Supplies and Services,Other Equipment,203,17-Feb-2016,1602-00434,0.00,269.10,R,Aidapt Bathrooms Ltd,No
Http://opendatacommunities.org/id/metropolitan-district-council/leeds,Leeds City Council as Accountable Body,29/02/2016,Social Services Pooled Budgets,Leeds Community Equip Store Pooled Budgt,Supplies and Services,Other Equipment,203,26-Feb-2016,1602-00435,0.00,1257.90,R,Aidapt Bathrooms Ltd,No
Http://opendatacommunities.org/id/metropolitan-district-council/leeds,Leeds City Council as Accountable Body,29/02/2016,Social Services Pooled Budgets,Leeds Community Equip Store Pooled Budgt,Supplies and Services,Other Equipment,203,26-Feb-2016,1602-00436,0.00,898.80,R,Aidapt Bathrooms Ltd,No
Http://opendatacommunities.org/id/metropolitan-district-council/leeds,Leeds City Council as Accountable Body,29/02/2016,Social Services Pooled Budgets,Jcs For People With Learning Disabilitie,Supplies and Services,Other Equipment,203,05-Feb-2016,1602-00437,0.00,294.00,R,Aidservice Ltd,No
Http://opendatacommunities.org/id/metropolitan-district-council/leeds,Leeds City Council as Accountable Body,29/02/2016,Social Services Pooled Budgets,Jcs For People With Learning Disabilitie,Supplies and Services,Other Equipment,203,05-Feb-2016,1602-00438,0.00,165.00,R,Aidservice Ltd,No
Http://opendatacommunities.org/id/metropolitan-district-council/leeds,Leeds City Council as Accountable Body,29/02/2016,Social Services Pooled Budgets,Leeds Community Equip Store Pooled Budgt,Supplies and Services,Other Equipment,203,17-Feb-2016,1602-00439,0.00,319.20,R,Aidservice Ltd,No
Http://opendatacommunities.org/id/metropolitan-district-council/leeds,Leeds City Council as Accountable Body,29/02/2016,Social Services Pooled Budgets,Leeds Community Equip Store Pooled Budgt,Supplies and Services,Other Equipment,203,19-Feb-2016,1602-00440,0.00,5371.00,R,Aidservice Ltd,No
Http://opendatacommunities.org/id/metropolitan-district-council/leeds,Leeds City Council as Accountable Body,29/02/2016,Social Services Pooled Budgets,Jcs For People With Learning Disabilitie,Supplies and Services,Other Equipment,203,26-Feb-2016,1602-00441,0.00,573.00,R,Aidservice Ltd,No
Http://opendatacommunities.org/id/metropolitan-district-council/leeds,Leeds City Council,29/02/2016,Childrens Services,Learning Skills & Universal  ,Supplies and Services,Teaching Materials,202,06-Jan-2016,1602-00442,0.00,115.95,R,Aid-Training.Co.Uk,Yes
Http://opendatacommunities.org/id/metropolitan-district-council/leeds,Leeds City Council,29/02/2016,Childrens Services,Safeguarding Targeted & Specialist,Employees,Training Costs,71,10-Feb-2016,1602-00443,0.00,270.00,R,Aim Project,No
Http://opendatacommunities.org/id/metropolitan-district-council/leeds,Leeds City Council,29/02/2016,Central & Corporate,Commercial Services Trading Services,Supplies and Services,Operational Materials,205,01-Feb-2016,1602-00444,0.00,110.77,R,Air Conditioning Accessories,No
Http://opendatacommunities.org/id/metropolitan-district-council/leeds,Leeds City Council,29/02/2016,Central & Corporate,Commercial Services Trading Services,Supplies and Services,Operational Materials,205,01-Feb-2016,1602-00445,0.00,45.64,R,Air Conditioning Accessories,No
Http://opendatacommunities.org/id/metropolitan-district-council/leeds,Leeds City Council,29/02/2016,Central & Corporate,Commercial Services Trading Services,Supplies and Services,Operational Materials,205,03-Feb-2016,1602-00446,0.00,107.70,R,Air Conditioning Accessories,No
Http://opendatacommunities.org/id/metropolitan-district-council/leeds,Leeds City Council,29/02/2016,Civic Enterprise Leeds,Commercial Services  ,Supplies and Services,Operational Materials,205,11-Jan-2016,1602-00447,0.00,44.45,R,Air Force Pneumati,Yes
Http://opendatacommunities.org/id/metropolitan-district-council/leeds,Leeds City Council,29/02/2016,Environment & Housing,Parks And Countryside  ,Transport,Plant Spares,346,26-Jan-2016,1602-00448,0.00,12.80,R,Air Force Pneumati,Yes
Http://opendatacommunities.org/id/metropolitan-district-council/leeds,Leeds City Council,29/02/2016,Central & Corporate,Commercial Services Trading Services,Supplies and Services,Operational Materials,205,02-Feb-2016,1602-00449,0.00,5.05,R,Air Force Pneumatics & Hydraulics,No
Http://opendatacommunities.org/id/metropolitan-district-council/leeds,Leeds City Council,29/02/2016,Central & Corporate,Commercial Services Trading Services,Supplies and Services,Operational Materials,205,16-Feb-2016,1602-00450,0.00,6.10,R,Air Force Pneumatics & Hydraulics,No
Http://opendatacommunities.org/id/metropolitan-district-council/leeds,Leeds City Council,29/02/2016,Civic Enterprise Leeds,Commercial Services,Supplies and Services,Operational Materials,205,26-Feb-2016,1602-00451,0.00,244.20,R,Air Force Pneumatics & Hydraulics,No
Http://opendatacommunities.org/id/metropolitan-district-council/leeds,Leeds City Council,29/02/2016,Central & Corporate,Commercial Services Trading Services,Supplies and Services,Operational Furniture And Equipment,203,02-Feb-2016,1602-00452,0.00,146.70,R,Air Liquide Uk,No
Http://opendatacommunities.org/id/metropolitan-district-council/leeds,Leeds City Council,29/02/2016,Environment & Housing,Environmental Health,Supplies and Services,Other Hired And Contracted Services,265,12-Feb-2016,1602-00453,0.00,422.00,R,Air Liquide Uk,No
Http://opendatacommunities.org/id/metropolitan-district-council/leeds,Leeds City Council,29/02/2016,Environment & Housing,Environmental Health,Supplies and Services,Other Hired And Contracted Services,265,12-Feb-2016,1602-00454,0.00,969.00,R,Air Liquide Uk,No
Http://opendatacommunities.org/id/metropolitan-district-council/leeds,Leeds City Council,29/02/2016,Environment & Housing,Environmental Health,Supplies and Services,Other Hired And Contracted Services,265,12-Feb-2016,1602-00455,0.00,369.00,R,Air Liquide Uk,No
Http://opendatacommunities.org/id/metropolitan-district-council/leeds,Leeds City Council,29/02/2016,Central & Corporate,Commercial Services Trading Services,Supplies and Services,Operational Materials,205,12-Feb-2016,1602-00456,0.00,10.00,R,Air Liquide Uk,No
Http://opendatacommunities.org/id/metropolitan-district-council/leeds,Leeds City Council,29/02/2016,Environment & Housing,Environmental Health,Supplies and Services,Other Hired And Contracted Services,265,17-Feb-2016,1602-00457,0.00,13.23,R,Air Liquide Uk,No
Http://opendatacommunities.org/id/metropolitan-district-council/leeds,Leeds City Council,29/02/2016,Environment & Housing,Environmental Health,Supplies and Services,Other Hired And Contracted Services,265,17-Feb-2016,1602-00458,0.00,13.23,R,Air Liquide Uk,No
Http://opendatacommunities.org/id/metropolitan-district-council/leeds,Leeds City Council,29/02/2016,Environment & Housing,Environmental Health,Supplies and Services,Other Hired And Contracted Services,265,17-Feb-2016,1602-00459,0.00,60.76,R,Air Liquide Uk,No
Http://opendatacommunities.org/id/metropolitan-district-council/leeds,Leeds City Council,29/02/2016,Central & Corporate,Commercial Services Trading Services,Supplies and Services,Other Hired And Contracted Services,265,19-Feb-2016,1602-00460,0.00,40.81,R,Air Liquide Uk,No
Http://opendatacommunities.org/id/metropolitan-district-council/leeds,Leeds City Council,29/02/2016,Adult Social Care,Services For Adults Under 65 Mental/Dis,Third Party Payments,Residential,580,10-Feb-2016,1602-00461,0.00,6028.00,R,Aire House,No
Http://opendatacommunities.org/id/metropolitan-district-council/leeds,Leeds City Council as Accountable Body,29/02/2016,Social Services Pooled Budgets,Jcs For People With Learning Disabilitie,Third Party Payments,Residential,580,10-Feb-2016,1602-00462,0.00,3059.84,R,Aire House,No
Http://opendatacommunities.org/id/metropolitan-district-council/leeds,Leeds City Council,29/02/2016,City Development,Economic Development,Capital,Other Costs,7,04-Feb-2016,1602-00463,0.00,78946.35,C,Aire Valley Land Llp,No
Http://opendatacommunities.org/id/metropolitan-district-council/leeds,Leeds City Council,29/02/2016,City Development,Economic Development,Capital,Other Costs,7,26-Feb-2016,1602-00464,0.00,137293.68,C,Aire Valley Land Llp,No
Http://opendatacommunities.org/id/metropolitan-district-council/leeds,Leeds City Council,29/02/2016,Adult Social Care,Services For Older People - 65 And Over,Third Party Payments,Residential Care Dementia,571,10-Feb-2016,1602-00465,0.00,46806.73,R,Aire View Residential Home,No
Http://opendatacommunities.org/id/metropolitan-district-council/leeds,Leeds City Council,29/02/2016,Adult Social Care,Services For Older People - 65 And Over,Third Party Payments,Residential,580,10-Feb-2016,1602-00466,0.00,12524.88,R,Aire View Residential Home,No
Http://opendatacommunities.org/id/metropolitan-district-council/leeds,Leeds City Council,29/02/2016,Adult Social Care,Services For Older People - 65 And Over,Third Party Payments,Residential,580,12-Feb-2016,1602-00467,0.00,518.91,R,Aire View Residential Home,No
Http://opendatacommunities.org/id/metropolitan-district-council/leeds,Leeds City Council,29/02/2016,Adult Social Care,Services For Older People - 65 And Over,Third Party Payments,Residential,580,26-Feb-2016,1602-00468,0.00,16908.27,R,Aire View Residential Home,No
Http://opendatacommunities.org/id/metropolitan-district-council/leeds,Leeds City Council,29/02/2016,City Development,Recreation  ,Supplies and Services,Operational Furniture And Equipment,203,26-Jan-2016,1602-00469,0.00,191.67,R,Aireborough Skip Hire,Yes
Http://opendatacommunities.org/id/metropolitan-district-council/leeds,Leeds City Council,29/02/2016,Adult Social Care,Services For Older People - 65 And Over,Third Party Payments,Residential Care Dementia,571,10-Feb-2016,1602-00470,0.00,5123.83,R,Airedale (Goldsborough),No
Http://opendatacommunities.org/id/metropolitan-district-council/leeds,Leeds City Council,29/02/2016,Adult Social Care,Services For Older People - 65 And Over,Third Party Payments,Residential,580,10-Feb-2016,1602-00471,0.00,18439.97,R,Airedale (Goldsborough),No
Http://opendatacommunities.org/id/metropolitan-district-council/leeds,Leeds City Council,29/02/2016,Adult Social Care,Services For Older People Under 65 P/Dis,Third Party Payments,Residential,580,10-Feb-2016,1602-00472,0.00,1891.68,R,Airedale (Goldsborough),No
Http://opendatacommunities.org/id/metropolitan-district-council/leeds,Leeds City Council,29/02/2016,Adult Social Care,Services For Older People - 65 And Over,Third Party Payments,Residential,580,10-Feb-2016,1602-00473,0.00,481.96,R,Airedale (Goldsborough),No
Http://opendatacommunities.org/id/metropolitan-district-council/leeds,Leeds City Council,29/02/2016,Adult Social Care,Services For Older People - 65 And Over,Third Party Payments,Residential Care Dementia,571,16-Feb-2016,1602-00474,0.00,397.35,R,Airedale (Goldsborough),No
Http://opendatacommunities.org/id/metropolitan-district-council/leeds,Leeds City Council,29/02/2016,Adult Social Care,Services For Older People - 65 And Over,Third Party Payments,Residential,580,26-Feb-2016,1602-00475,0.00,6978.95,R,Airedale (Goldsborough),No
Http://opendatacommunities.org/id/metropolitan-district-council/leeds,Leeds City Council,29/02/2016,Adult Social Care,Services For Older People - 65 And Over,Third Party Payments,Residential,580,29-Feb-2016,1602-00476,0.00,5654.00,R,Airedale (Goldsborough),No
Http://opendatacommunities.org/id/metropolitan-district-council/leeds,Leeds City Council,29/02/2016,Civic Enterprise Leeds,Commercial Services,Supplies and Services,Operational Materials,205,09-Feb-2016,1602-00477,0.00,990.00,R,Airedale Catering Equipment Ltd,No
Http://opendatacommunities.org/id/metropolitan-district-council/leeds,Leeds City Council,29/02/2016,Civic Enterprise Leeds,Commercial Services,Supplies and Services,Operational Materials,205,09-Feb-2016,1602-00478,0.00,758.00,R,Airedale Catering Equipment Ltd,No
Http://opendatacommunities.org/id/metropolitan-district-council/leeds,Leeds City Council,29/02/2016,Childrens Services,Capital Maintenance,Capital,Furniture And Equipment,5,18-Feb-2016,1602-00479,0.00,590.00,C,Airedale Catering Equipment Ltd,No
Http://opendatacommunities.org/id/metropolitan-district-council/leeds,Leeds City Council,29/02/2016,Central & Corporate,Commercial Services Trading Services,Employees,Training & Development,70,26-Feb-2016,1602-00480,0.00,1000.00,R,Airedale International Air Conditioning,No
Http://opendatacommunities.org/id/metropolitan-district-council/leeds,Leeds City Council,29/02/2016,Environment & Housing,Community Safety,Supplies and Services,Other Hired And Contracted Services,265,29-Feb-2016,1602-00481,0.00,778.92,R,Airwave Solutions Ltd,No
Http://opendatacommunities.org/id/metropolitan-district-council/leeds,Leeds City Council,29/02/2016,Adult Social Care,Services For Adults Under 65 Mental/Dis,Third Party Payments,Services Provided By Other NHS Bodies,522,09-Feb-2016,1602-00482,0.00,175.00,R,Ait Mitra,No
Http://opendatacommunities.org/id/metropolitan-district-council/leeds,Leeds City Council,29/02/2016,Adult Social Care,Services For Adults Under 65 Mental/Dis,Third Party Payments,Services Provided By Other NHS Bodies,522,12-Feb-2016,1602-00483,0.00,175.00,R,Ait Mitra,No
Http://opendatacommunities.org/id/metropolitan-district-council/leeds,Leeds City Council,29/02/2016,Adult Social Care,Services For Adults Under 65 Mental/Dis,Third Party Payments,Services Provided By Other NHS Bodies,522,12-Feb-2016,1602-00484,0.00,175.00,R,Ait Mitra,No
Http://opendatacommunities.org/id/metropolitan-district-council/leeds,Leeds City Council,29/02/2016,Adult Social Care,Services For Adults Under 65 Mental/Dis,Third Party Payments,Services Provided By Other NHS Bodies,522,12-Feb-2016,1602-00485,0.00,175.00,R,Ait Mitra,No
Http://opendatacommunities.org/id/metropolitan-district-council/leeds,Leeds City Council,29/02/2016,Adult Social Care,Services For Adults Under 65 Mental/Dis,Third Party Payments,Services Provided By Other NHS Bodies,522,12-Feb-2016,1602-00486,0.00,175.00,R,Ait Mitra,No
Http://opendatacommunities.org/id/metropolitan-district-council/leeds,Leeds City Council,29/02/2016,Adult Social Care,Services For Adults Under 65 Mental/Dis,Third Party Payments,Services Provided By Other NHS Bodies,522,12-Feb-2016,1602-00487,0.00,175.00,R,Ait Mitra,No
Http://opendatacommunities.org/id/metropolitan-district-council/leeds,Leeds City Council,29/02/2016,Adult Social Care,Services For Adults Under 65 Mental/Dis,Third Party Payments,Services Provided By Other NHS Bodies,522,17-Feb-2016,1602-00488,0.00,175.00,R,Ait Mitra,No
Http://opendatacommunities.org/id/metropolitan-district-council/leeds,Leeds City Council as Accountable Body,29/02/2016,Social Services Pooled Budgets,Jcs For People With Learning Disabilitie,Third Party Payments,Residential,580,10-Feb-2016,1602-00489,0.00,6173.24,R,Aitch Care Homes,No
Http://opendatacommunities.org/id/metropolitan-district-council/leeds,Leeds City Council,29/02/2016,Environment & Housing,Parks and Countryside,Supplies and Services,Operational Materials,205,24-Feb-2016,1602-00490,0.00,1210.30,R,Aitkens Sportsturf Ltd,No
Http://opendatacommunities.org/id/metropolitan-district-council/leeds,Leeds City Council,29/02/2016,Adult Social Care,Services For Older People Under 65 P/Dis,Third Party Payments,Home Care,568,04-Feb-2016,1602-00491,0.00,106.92,R,Aj Social Care,No
Http://opendatacommunities.org/id/metropolitan-district-council/leeds,Leeds City Council,29/02/2016,Adult Social Care,Services For Older People - 65 And Over,Third Party Payments,Home Care,568,04-Feb-2016,1602-00492,0.00,11117.49,R,Aj Social Care,No
Http://opendatacommunities.org/id/metropolitan-district-council/leeds,Leeds City Council,29/02/2016,Adult Social Care,Services For Older People Under 65 P/Dis,Third Party Payments,Home Care,568,04-Feb-2016,1602-00493,0.00,9487.12,R,Aj Social Care,No
Http://opendatacommunities.org/id/metropolitan-district-council/leeds,Leeds City Council,29/02/2016,Adult Social Care,Services For Older People - 65 And Over,Third Party Payments,Home Care,568,04-Feb-2016,1602-00494,0.00,-8172.45,R,Aj Social Care,No
Http://opendatacommunities.org/id/metropolitan-district-council/leeds,Leeds City Council,29/02/2016,Adult Social Care,Services For Older People - 65 And Over,Third Party Payments,Home Care,568,04-Feb-2016,1602-00495,0.00,6.44,R,Aj Social Care,No
Http://opendatacommunities.org/id/metropolitan-district-council/leeds,Leeds City Council,29/02/2016,Environment & Housing,Leeds Building Services,Supplies and Services,Operational Furniture And Equipment,203,12-Feb-2016,1602-00496,0.00,185.00,R,Ajm Fixings & Power Tools Ltd,No
Http://opendatacommunities.org/id/metropolitan-district-council/leeds,Leeds City Council,29/02/2016,Environment & Housing,Leeds Building Services,Supplies and Services,Operational Furniture And Equipment,203,19-Feb-2016,1602-00497,0.00,257.40,R,Ajm Fixings & Power Tools Ltd,No
Http://opendatacommunities.org/id/metropolitan-district-council/leeds,Leeds City Council,29/02/2016,Environment & Housing,Leeds Building Services,Supplies and Services,Operational Furniture And Equipment,203,19-Feb-2016,1602-00498,0.00,165.00,R,Ajm Fixings & Power Tools Ltd,No
Http://opendatacommunities.org/id/metropolitan-district-council/leeds,Leeds City Council,29/02/2016,Environment & Housing,Leeds Building Services,Supplies and Services,Operational Furniture And Equipment,203,19-Feb-2016,1602-00499,0.00,340.00,R,Ajm Fixings & Power Tools Ltd,No
Http://opendatacommunities.org/id/metropolitan-district-council/leeds,Leeds City Council,29/02/2016,Environment & Housing,Leeds Building Services,Supplies and Services,Operational Furniture And Equipment,203,25-Feb-2016,1602-00500,0.00,278.96,R,Ajm Fixings & Power Tools Ltd,No
Http://opendatacommunities.org/id/metropolitan-district-council/leeds,Leeds City Council,29/02/2016,Environment & Housing,Leeds Building Services,Supplies and Services,Operational Furniture And Equipment,203,26-Feb-2016,1602-00501,0.00,31.83,R,Ajm Fixings & Power Tools Ltd,No
Http://opendatacommunities.org/id/metropolitan-district-council/leeds,Leeds City Council,29/02/2016,Adult Social Care,Services For Older People - 65 And Over,Third Party Payments,Nursing Home,570,10-Feb-2016,1602-00502,0.00,1279.08,R,Akari Care Ltd,No
Http://opendatacommunities.org/id/metropolitan-district-council/leeds,Leeds City Council,29/02/2016,Childrens Services,Safeguarding Targeted & Specialist,Supplies and Services,General Amenity For Clients/Residents,285,11-Feb-2016,1602-00503,0.00,5.00,R,REDACTED PERSONAL DATA,No
Http://opendatacommunities.org/id/metropolitan-district-council/leeds,Leeds City Council,29/02/2016,Childrens Services,Safeguarding Targeted & Specialist,Transport,Public Transport Expenses,310,11-Feb-2016,1602-00504,0.00,14.80,R,REDACTED PERSONAL DATA,No
Http://opendatacommunities.org/id/metropolitan-district-council/leeds,Leeds City Council,29/02/2016,Civic Enterprise Leeds,Commercial Services,Premises,Plant and Machinery,102,02-Feb-2016,1602-00505,0.00,227.50,R,Akua Uk Ltd,No
Http://opendatacommunities.org/id/metropolitan-district-council/leeds,Leeds City Council,29/02/2016,Civic Enterprise Leeds,Commercial Services,Premises,Plant and Machinery,102,02-Feb-2016,1602-00506,0.00,143.50,R,Akua Uk Ltd,No
Http://opendatacommunities.org/id/metropolitan-district-council/leeds,Leeds City Council,29/02/2016,Civic Enterprise Leeds,Commercial Services,Premises,Plant and Machinery,102,02-Feb-2016,1602-00507,0.00,115.50,R,Akua Uk Ltd,No
Http://opendatacommunities.org/id/metropolitan-district-council/leeds,Leeds City Council,29/02/2016,Civic Enterprise Leeds,Commercial Services,Premises,Plant and Machinery,102,02-Feb-2016,1602-00508,0.00,42.00,R,Akua Uk Ltd,No
Http://opendatacommunities.org/id/metropolitan-district-council/leeds,Leeds City Council,29/02/2016,Civic Enterprise Leeds,Commercial Services,Premises,Plant and Machinery,102,02-Feb-2016,1602-00509,0.00,280.75,R,Akua Uk Ltd,No
Http://opendatacommunities.org/id/metropolitan-district-council/leeds,Leeds City Council,29/02/2016,Civic Enterprise Leeds,Commercial Services,Premises,Plant and Machinery,102,02-Feb-2016,1602-00510,0.00,143.50,R,Akua Uk Ltd,No
Http://opendatacommunities.org/id/metropolitan-district-council/leeds,Leeds City Council,29/02/2016,Civic Enterprise Leeds,Commercial Services,Premises,Plant and Machinery,102,02-Feb-2016,1602-00511,0.00,126.00,R,Akua Uk Ltd,No
Http://opendatacommunities.org/id/metropolitan-district-council/leeds,Leeds City Council,29/02/2016,Civic Enterprise Leeds,Commercial Services,Premises,Plant and Machinery,102,19-Feb-2016,1602-00512,0.00,79.26,R,Akua Uk Ltd,No
Http://opendatacommunities.org/id/metropolitan-district-council/leeds,Leeds City Council,29/02/2016,Civic Enterprise Leeds,Commercial Services,Premises,Plant and Machinery,102,19-Feb-2016,1602-00513,0.00,182.00,R,Akua Uk Ltd,No
Http://opendatacommunities.org/id/metropolitan-district-council/leeds,Leeds City Council,29/02/2016,Childrens Services,Safeguarding Targeted & Specialist  ,Transfer Payments,Leaving Care Grants,635,11-Jan-2016,1602-00514,0.00,106.90,R,Al Murad Diy Ltd,Yes
Http://opendatacommunities.org/id/metropolitan-district-council/leeds,Leeds City Council,29/02/2016,Childrens Services,Safeguarding Targeted & Specialist  ,Transfer Payments,Leaving Care Grants,635,11-Jan-2016,1602-00515,0.00,9.99,R,Al Murad Diy Ltd,Yes
Http://opendatacommunities.org/id/metropolitan-district-council/leeds,Leeds City Council,29/02/2016,City Development,Economic Development,Supplies and Services,Grants To Businesses,243,03-Feb-2016,1602-00516,0.00,2500.00,R,Alaa Enterprises,No
Http://opendatacommunities.org/id/metropolitan-district-council/leeds,Leeds City Council,29/02/2016,Citizens and Communities,Benefits  Wlefare and Poverty,Supplies and Services,Grant Related Expenditure,298,04-Feb-2016,1602-00517,0.00,500.00,R,REDACTED PERSONAL DATA,No
Http://opendatacommunities.org/id/metropolitan-district-council/leeds,Leeds City Council,29/02/2016,Civic Enterprise Leeds,Commercial Services,Premises,Plant and Machinery,102,09-Feb-2016,1602-00518,0.00,33.00,R,REDACTED PERSONAL DATA,No
Http://opendatacommunities.org/id/metropolitan-district-council/leeds,Leeds City Council,29/02/2016,Central & Corporate,Democratic Services  ,Premises,Grounds Maintenance Work,111,07-Jan-2016,1602-00519,0.00,75.00,R,Alan Brown Flowers,Yes
Http://opendatacommunities.org/id/metropolitan-district-council/leeds,Leeds City Council,29/02/2016,Civic Enterprise Leeds,Commercial Services  ,Supplies and Services,Hospitality,255,11-Jan-2016,1602-00520,0.00,175.00,R,Alan Brown Flowers,Yes
Http://opendatacommunities.org/id/metropolitan-district-council/leeds,Leeds City Council,29/02/2016,Central & Corporate,Democratic Services  ,Premises,Grounds Maintenance Work,111,21-Jan-2016,1602-00521,0.00,130.00,R,Alan Brown Flowers,Yes
Http://opendatacommunities.org/id/metropolitan-district-council/leeds,Leeds City Council,29/02/2016,Central & Corporate,Democratic Services  ,Premises,Grounds Maintenance Work,111,26-Jan-2016,1602-00522,0.00,30.00,R,Alan Brown Flowers,Yes
Http://opendatacommunities.org/id/metropolitan-district-council/leeds,Leeds City Council,29/02/2016,City Development,Planning & Sustainable Development,Support Services,Legal Disbursements,411,12-Feb-2016,1602-00523,0.00,2400.00,R,Alan Evans,No
Http://opendatacommunities.org/id/metropolitan-district-council/leeds,Leeds City Council,29/02/2016,Childrens Services,Learning Skills & Universal  ,Supplies and Services,Teaching Furniture & Equipment,207,11-Jan-2016,1602-00524,0.00,25.44,R,Alan Gregory Music,Yes
Http://opendatacommunities.org/id/metropolitan-district-council/leeds,Leeds City Council,29/02/2016,City Development,Libraries  Arts & Heritage,Supplies and Services,Other Hired And Contracted Services,265,10-Feb-2016,1602-00525,0.00,400.00,R,Alan Horsey,No
Http://opendatacommunities.org/id/metropolitan-district-council/leeds,Leeds City Council,29/02/2016,Environment & Housing,Waste Management,Transport,Repair & Maintenance of  Plant,342,19-Feb-2016,1602-00526,0.00,400.00,R,Alan Thompson Transport,No
Http://opendatacommunities.org/id/metropolitan-district-council/leeds,Leeds City Council,29/02/2016,Environment & Housing,Waste Management,Transport,Repair & Maintenance of  Plant,342,29-Feb-2016,1602-00527,0.00,1188.00,R,Alan Thompson Transport,No
Http://opendatacommunities.org/id/metropolitan-district-council/leeds,Leeds City Council,29/02/2016,Central & Corporate,Strategy and Improvement,Supplies and Services,Memberships,226,02-Feb-2016,1602-00528,0.00,199.00,R,Alarm,No
Http://opendatacommunities.org/id/metropolitan-district-council/leeds,Leeds City Council,29/02/2016,Central & Corporate,Finance,Supplies and Services,Memberships,226,05-Feb-2016,1602-00529,0.00,199.00,R,Alarm,No
Http://opendatacommunities.org/id/metropolitan-district-council/leeds,Leeds City Council,29/02/2016,Environment & Housing,Streetscene Environmental Services,Income,Penalties  Fines & Car Parking Charges,934,18-Feb-2016,1602-00530,0.00,30.00,R,REDACTED PERSONAL DATA,No
Http://opendatacommunities.org/id/metropolitan-district-council/leeds,Leeds City Council,29/02/2016,Citizens and Communities,Customer Access,Supplies and Services,Other Hired And Contracted Services,265,01-Feb-2016,1602-00531,0.00,130.00,R,Alazar Araya,No
Http://opendatacommunities.org/id/metropolitan-district-council/leeds,Leeds City Council,29/02/2016,Environment & Housing,Environmental Action (East North East),Supplies and Services,Clothing & Uniforms,241,11-Feb-2016,1602-00532,0.00,45.85,R,Albert Haywood & Sons Ltd,No
Http://opendatacommunities.org/id/metropolitan-district-council/leeds,Leeds City Council,29/02/2016,Environment & Housing,Environmental Action (East North East),Supplies and Services,Clothing & Uniforms,241,25-Feb-2016,1602-00533,0.00,55.85,R,Albert Haywood & Sons Ltd,No
Http://opendatacommunities.org/id/metropolitan-district-council/leeds,Leeds City Council,29/02/2016,Environment & Housing,Waste Management,Supplies and Services,Other Hired And Contracted Services,265,02-Feb-2016,1602-00534,0.00,152.75,R,Alcontrol Uk Ltd,No
Http://opendatacommunities.org/id/metropolitan-district-council/leeds,Leeds City Council,29/02/2016,Environment & Housing,Environmental Health,Supplies and Services,Other Hired And Contracted Services,265,09-Feb-2016,1602-00535,0.00,359.04,R,Alcontrol Uk Ltd,No
Http://opendatacommunities.org/id/metropolitan-district-council/leeds,Leeds City Council,29/02/2016,Environment & Housing,Environmental Health,Supplies and Services,Other Hired And Contracted Services,265,18-Feb-2016,1602-00536,0.00,299.42,R,Alcontrol Uk Ltd,No
Http://opendatacommunities.org/id/metropolitan-district-council/leeds,Leeds City Council,29/02/2016,City Development,Recreation  ,Supplies and Services,Food & Drink,231,02-Jan-2016,1602-00537,0.00,39.63,R,Aldi,Yes
Http://opendatacommunities.org/id/metropolitan-district-council/leeds,Leeds City Council,29/02/2016,Environment & Housing,Parks And Countryside  ,Supplies and Services,Operational Furniture And Equipment,203,18-Jan-2016,1602-00538,0.00,11.66,R,Aldi,Yes
Http://opendatacommunities.org/id/metropolitan-district-council/leeds,Leeds City Council,29/02/2016,Citizens and Communities,Benefits  Wlefare and Poverty,Supplies and Services,Grant Related Expenditure,298,09-Feb-2016,1602-00539,0.00,500.00,R,REDACTED PERSONAL DATA,No
Http://opendatacommunities.org/id/metropolitan-district-council/leeds,Leeds City Council,29/02/2016,Childrens Services,Safeguarding Targeted & Specialist,Support Services,Legal Disbursements,411,05-Feb-2016,1602-00540,0.00,608.00,R,Alere Toxicology Plc,No
Http://opendatacommunities.org/id/metropolitan-district-council/leeds,Leeds City Council,29/02/2016,Citizens and Communities,Benefits  Wlefare and Poverty,Supplies and Services,Grant Related Expenditure,298,04-Feb-2016,1602-00541,0.00,500.00,R,REDACTED PERSONAL DATA,No
Http://opendatacommunities.org/id/metropolitan-district-council/leeds,Leeds City Council,29/02/2016,Citizens and Communities,Benefits  Wlefare and Poverty,Supplies and Services,Grant Related Expenditure,298,11-Feb-2016,1602-00542,0.00,500.00,R,REDACTED PERSONAL DATA,No
Http://opendatacommunities.org/id/metropolitan-district-council/leeds,Leeds City Council,29/02/2016,Citizens and Communities,Benefits  Wlefare and Poverty,Supplies and Services,Grant Related Expenditure,298,18-Feb-2016,1602-00543,0.00,250.00,R,REDACTED PERSONAL DATA,No
Http://opendatacommunities.org/id/metropolitan-district-council/leeds,Leeds City Council,29/02/2016,Childrens Services,Safeguarding Targeted & Specialist,Support Services,Legal Disbursements,411,19-Feb-2016,1602-00544,0.00,632.00,R,Alex Taylor,No
Http://opendatacommunities.org/id/metropolitan-district-council/leeds,Leeds City Council,29/02/2016,Childrens Services,Safeguarding Targeted & Specialist,Support Services,Legal Disbursements,411,25-Feb-2016,1602-00545,0.00,1151.00,R,Alex Taylor,No
Http://opendatacommunities.org/id/metropolitan-district-council/leeds,Leeds City Council,29/02/2016,Childrens Services,Safeguarding Targeted & Specialist,Support Services,Legal Disbursements,411,25-Feb-2016,1602-00546,0.00,736.00,R,Alex Taylor,No
Http://opendatacommunities.org/id/metropolitan-district-council/leeds,Leeds City Council,29/02/2016,Childrens Services,Safeguarding Targeted & Specialist,Support Services,Legal Disbursements,411,25-Feb-2016,1602-00547,0.00,523.00,R,Alex Taylor,No
Http://opendatacommunities.org/id/metropolitan-district-council/leeds,Leeds City Council,29/02/2016,Childrens Services,Safeguarding Targeted & Specialist,Support Services,Legal Disbursements,411,26-Feb-2016,1602-00548,0.00,2812.50,R,Alex Taylor,No
Http://opendatacommunities.org/id/metropolitan-district-council/leeds,Leeds City Council,29/02/2016,Citizens and Communities,Benefits  Wlefare and Poverty,Supplies and Services,Grant Related Expenditure,298,04-Feb-2016,1602-00549,0.00,500.00,R,REDACTED PERSONAL DATA,No
Http://opendatacommunities.org/id/metropolitan-district-council/leeds,Leeds City Council,29/02/2016,Adult Social Care,Services For Older People - 65 And Over,Third Party Payments,Residential Care Dementia,571,10-Feb-2016,1602-00550,0.00,10732.75,R,Alexander Residential Home,No
Http://opendatacommunities.org/id/metropolitan-district-council/leeds,Leeds City Council,29/02/2016,Adult Social Care,Services For Older People - 65 And Over,Third Party Payments,Residential,580,10-Feb-2016,1602-00551,0.00,16068.13,R,Alexander Residential Home,No
Http://opendatacommunities.org/id/metropolitan-district-council/leeds,Leeds City Council,29/02/2016,Adult Social Care,Services For Older People Under 65 P/Dis,Third Party Payments,Residential,580,10-Feb-2016,1602-00552,0.00,2488.24,R,Alexander Residential Home,No
Http://opendatacommunities.org/id/metropolitan-district-council/leeds,Leeds City Council,29/02/2016,Adult Social Care,Services For Older People - 65 And Over,Third Party Payments,Residential,580,26-Feb-2016,1602-00553,0.00,10857.87,R,Alexander Residential Home,No
Http://opendatacommunities.org/id/metropolitan-district-council/leeds,Leeds City Council,29/02/2016,Citizens and Communities,Benefits  Wlefare and Poverty,Supplies and Services,Grant Related Expenditure,298,11-Feb-2016,1602-00554,0.00,250.00,R,REDACTED PERSONAL DATA,No
Http://opendatacommunities.org/id/metropolitan-district-council/leeds,Leeds City Council,29/02/2016,Citizens and Communities,Customer Access,Supplies and Services,Other Hired And Contracted Services,265,01-Feb-2016,1602-00555,0.00,530.50,R,Alexandra Costenco,No
Http://opendatacommunities.org/id/metropolitan-district-council/leeds,Leeds City Council,29/02/2016,Citizens and Communities,Customer Access,Supplies and Services,Other Hired And Contracted Services,265,01-Feb-2016,1602-00556,0.00,12.00,R,Alexandra Costenco,No
Http://opendatacommunities.org/id/metropolitan-district-council/leeds,Leeds City Council,29/02/2016,Adult Social Care,Services For Older People - 65 And Over,Third Party Payments,Residential Care Dementia,571,10-Feb-2016,1602-00557,0.00,1413.20,R,Alexandra Court,No
Http://opendatacommunities.org/id/metropolitan-district-council/leeds,Leeds City Council,29/02/2016,Adult Social Care,Services For Older People - 65 And Over,Third Party Payments,Residential,580,10-Feb-2016,1602-00558,0.00,15857.24,R,Alexandra Court,No
Http://opendatacommunities.org/id/metropolitan-district-council/leeds,Leeds City Council,29/02/2016,Adult Social Care,Services For Older People - 65 And Over,Third Party Payments,Residential,580,26-Feb-2016,1602-00559,0.00,4885.81,R,Alexandra Court,No
Http://opendatacommunities.org/id/metropolitan-district-council/leeds,Leeds City Council,29/02/2016,Citizens and Communities,Customer Access,Supplies and Services,Other Hired And Contracted Services,265,01-Feb-2016,1602-00560,0.00,862.75,R,Alexandra Hirst,No
Http://opendatacommunities.org/id/metropolitan-district-council/leeds,Leeds City Council,29/02/2016,Citizens and Communities,Benefits  Wlefare and Poverty,Supplies and Services,Grant Related Expenditure,298,04-Feb-2016,1602-00561,0.00,500.00,R,REDACTED PERSONAL DATA,No
Http://opendatacommunities.org/id/metropolitan-district-council/leeds,Leeds City Council,29/02/2016,Civic Enterprise Leeds,Commercial Services,Supplies and Services,Other Hired And Contracted Services,265,09-Feb-2016,1602-00562,0.00,116.63,R,Alfa Tail Lifts Limited,No
Http://opendatacommunities.org/id/metropolitan-district-council/leeds,Leeds City Council,29/02/2016,Civic Enterprise Leeds,Commercial Services,Supplies and Services,Other Hired And Contracted Services,265,09-Feb-2016,1602-00563,0.00,248.43,R,Alfa Tail Lifts Limited,No
Http://opendatacommunities.org/id/metropolitan-district-council/leeds,Leeds City Council,29/02/2016,Civic Enterprise Leeds,Commercial Services,Supplies and Services,Other Hired And Contracted Services,265,09-Feb-2016,1602-00564,0.00,365.06,R,Alfa Tail Lifts Limited,No
Http://opendatacommunities.org/id/metropolitan-district-council/leeds,Leeds City Council,29/02/2016,Civic Enterprise Leeds,Commercial Services,Supplies and Services,Other Hired And Contracted Services,265,09-Feb-2016,1602-00565,0.00,-116.63,R,Alfa Tail Lifts Limited,No
Http://opendatacommunities.org/id/metropolitan-district-council/leeds,Leeds City Council,29/02/2016,Civic Enterprise Leeds,Commercial Services,Supplies and Services,Other Hired And Contracted Services,265,09-Feb-2016,1602-00566,0.00,-248.43,R,Alfa Tail Lifts Limited,No
Http://opendatacommunities.org/id/metropolitan-district-council/leeds,Leeds City Council,29/02/2016,Civic Enterprise Leeds,Commercial Services,Capital,Construction,3,01-Feb-2016,1602-00567,0.00,26500.00,C,Alfred Bagnall & Sons (Leeds) Ltd,No
Http://opendatacommunities.org/id/metropolitan-district-council/leeds,Leeds City Council,29/02/2016,Central & Corporate,Commercial Services Trading Services,Supplies and Services,Other Hired And Contracted Services,265,01-Feb-2016,1602-00568,0.00,4976.00,R,Alfred Bagnall & Sons (Leeds) Ltd,No
Http://opendatacommunities.org/id/metropolitan-district-council/leeds,Leeds City Council,29/02/2016,Civic Enterprise Leeds,Corporate Property Management,Capital,Construction,3,05-Feb-2016,1602-00569,0.00,4895.57,C,Alfred Bagnall & Sons (Leeds) Ltd,No
Http://opendatacommunities.org/id/metropolitan-district-council/leeds,Leeds City Council,29/02/2016,Central & Corporate,Commercial Services Trading Services,Supplies and Services,Other Hired And Contracted Services,265,05-Feb-2016,1602-00570,0.00,11884.13,R,Alfred Bagnall & Sons (Leeds) Ltd,No
Http://opendatacommunities.org/id/metropolitan-district-council/leeds,Leeds City Council,29/02/2016,Childrens Services,Safeguarding Targeted & Specialist,Third Party Payments,Services Rendered By Voluntary Sector,505,11-Feb-2016,1602-00571,0.00,1800.00,R,Alfred Bagnall & Sons (Leeds) Ltd,No
Http://opendatacommunities.org/id/metropolitan-district-council/leeds,Leeds City Council,29/02/2016,Civic Enterprise Leeds,Corporate Property Management,Capital,Construction,3,15-Feb-2016,1602-00572,0.00,2000.00,C,Alfred Bagnall & Sons (Leeds) Ltd,No
Http://opendatacommunities.org/id/metropolitan-district-council/leeds,Leeds City Council,29/02/2016,Civic Enterprise Leeds,Corporate Property Management,Capital,Construction,3,19-Feb-2016,1602-00573,0.00,2600.00,C,Alfred Bagnall & Sons (Leeds) Ltd,No
Http://opendatacommunities.org/id/metropolitan-district-council/leeds,Leeds City Council,29/02/2016,Civic Enterprise Leeds,Corporate Property Management,Capital,Construction,3,19-Feb-2016,1602-00574,0.00,400.00,C,Alfred Bagnall & Sons (Leeds) Ltd,No
Http://opendatacommunities.org/id/metropolitan-district-council/leeds,Leeds City Council,29/02/2016,Central & Corporate,Commercial Services Trading Services,Supplies and Services,Other Hired And Contracted Services,265,19-Feb-2016,1602-00575,0.00,18144.56,R,Alfred Bagnall & Sons (Leeds) Ltd,No
Http://opendatacommunities.org/id/metropolitan-district-council/leeds,Leeds City Council,29/02/2016,Citizens and Communities,Benefits  Wlefare and Poverty,Supplies and Services,Grant Related Expenditure,298,04-Feb-2016,1602-00576,0.00,500.00,R,REDACTED PERSONAL DATA,No
Http://opendatacommunities.org/id/metropolitan-district-council/leeds,Leeds City Council,29/02/2016,Citizens and Communities,Benefits  Wlefare and Poverty,Supplies and Services,Grant Related Expenditure,298,04-Feb-2016,1602-00577,0.00,500.00,R,REDACTED PERSONAL DATA,No
Http://opendatacommunities.org/id/metropolitan-district-council/leeds,Leeds City Council,29/02/2016,Childrens Services,Safeguarding Targeted & Specialist,Third Party Payments,Section 17,551,04-Feb-2016,1602-00578,0.00,53.90,R,REDACTED PERSONAL DATA,No
Http://opendatacommunities.org/id/metropolitan-district-council/leeds,Leeds City Council,29/02/2016,Childrens Services,Safeguarding Targeted & Specialist,Third Party Payments,Section 17,551,11-Feb-2016,1602-00579,0.00,53.90,R,REDACTED PERSONAL DATA,No
Http://opendatacommunities.org/id/metropolitan-district-council/leeds,Leeds City Council,29/02/2016,Childrens Services,Safeguarding Targeted & Specialist,Third Party Payments,Section 17,551,18-Feb-2016,1602-00580,0.00,53.90,R,REDACTED PERSONAL DATA,No
Http://opendatacommunities.org/id/metropolitan-district-council/leeds,Leeds City Council,29/02/2016,Childrens Services,Safeguarding Targeted & Specialist,Third Party Payments,Section 17,551,25-Feb-2016,1602-00581,0.00,53.90,R,REDACTED PERSONAL DATA,No
Http://opendatacommunities.org/id/metropolitan-district-council/leeds,Leeds City Council,29/02/2016,Citizens and Communities,Benefits  Wlefare and Poverty,Supplies and Services,Grant Related Expenditure,298,22-Feb-2016,1602-00582,0.00,500.00,R,REDACTED PERSONAL DATA,No
Http://opendatacommunities.org/id/metropolitan-district-council/leeds,Leeds City Council,29/02/2016,Childrens Services,Safeguarding Targeted & Specialist,Third Party Payments,Placement Support,550,11-Feb-2016,1602-00583,0.00,31.00,R,REDACTED PERSONAL DATA,No
Http://opendatacommunities.org/id/metropolitan-district-council/leeds,Leeds City Council,29/02/2016,City Development,Recreation,Employees,Training & Development,70,25-Feb-2016,1602-00584,0.00,60.00,R,All England Netball Association Ltd,No
Http://opendatacommunities.org/id/metropolitan-district-council/leeds,Leeds City Council,29/02/2016,Childrens Services,Safeguarding Targeted & Specialist,Supplies and Services,Conference Meetings,253,09-Feb-2016,1602-00585,0.00,45.00,R,All Saints Parish Church,No
Http://opendatacommunities.org/id/metropolitan-district-council/leeds,Leeds City Council,29/02/2016,Strategic Accounts,Miscellaneous,Supplies and Services,Non-Recurring Grants,227,22-Feb-2016,1602-00586,0.00,200.00,R,All Souls Church General Account,No
Http://opendatacommunities.org/id/metropolitan-district-council/leeds,Leeds City Council,29/02/2016,Childrens Services,Safeguarding Targeted & Specialist,Supplies and Services,General Amenity For Clients/Residents,285,03-Feb-2016,1602-00587,0.00,720.00,R,All Star Youth Entertainment,No
Http://opendatacommunities.org/id/metropolitan-district-council/leeds,Leeds City Council,29/02/2016,Childrens Services,Learning Skills & Universal,Third Party Payments,Services Rendered By Other Organisations,511,19-Feb-2016,1602-00588,0.00,297.12,R,All Stars Childcare,No
Http://opendatacommunities.org/id/metropolitan-district-council/leeds,Leeds City Council,29/02/2016,Public Health,Public Health,Supplies and Services,Other Hired And Contracted Services,265,25-Feb-2016,1602-00589,0.00,3000.00,R,All Things Considered Theatre,No
Http://opendatacommunities.org/id/metropolitan-district-council/leeds,Leeds City Council,29/02/2016,Insurance,Insurance,Supplies and Services,Insurance Claims,248,12-Feb-2016,1602-00590,0.00,159.00,R,REDACTED PERSONAL DATA,No
Http://opendatacommunities.org/id/metropolitan-district-council/leeds,Leeds City Council,29/02/2016,Environment & Housing,Streetscene Environmental Services,Supplies and Services,Operational Materials,205,03-Feb-2016,1602-00591,0.00,847.50,R,Allcode (Uk) Ltd,No
Http://opendatacommunities.org/id/metropolitan-district-council/leeds,Leeds City Council as Accountable Body,29/02/2016,Social Services Pooled Budgets,Jcs For People With Learning Disabilitie,Third Party Payments,Sheltered Accommodation,569,10-Feb-2016,1602-00592,0.00,16596.04,R,Allerton Avenue,No
Http://opendatacommunities.org/id/metropolitan-district-council/leeds,Leeds City Council,29/02/2016,Environment & Housing,Parks and Countryside,Supplies and Services,Operational Materials,205,09-Feb-2016,1602-00593,0.00,33.95,R,Allflex Europe (Uk) Ltd,No
Http://opendatacommunities.org/id/metropolitan-district-council/leeds,Leeds City Council,29/02/2016,Environment & Housing,Parks and Countryside,Supplies and Services,Operational Materials,205,29-Feb-2016,1602-00594,0.00,5.75,R,Allflex Europe (Uk) Ltd,No
Http://opendatacommunities.org/id/metropolitan-district-council/leeds,Leeds City Council,29/02/2016,Central & Corporate,Finance,Supplies and Services,Bank Charges,263,01-Feb-2016,1602-00595,0.00,-128.78,R,Alliance & Leicester Commercial Bank,No
Http://opendatacommunities.org/id/metropolitan-district-council/leeds,Leeds City Council,29/02/2016,Strategic Landlord,Housing Management,Supplies and Services,Other Hired And Contracted Services,265,04-Feb-2016,1602-00596,0.00,287.97,R,Alliance & Leicester Commercial Bank,No
Http://opendatacommunities.org/id/metropolitan-district-council/leeds,Leeds City Council,29/02/2016,Central & Corporate,Finance,Supplies and Services,Bank Charges,263,04-Feb-2016,1602-00597,0.00,2.00,R,Alliance & Leicester Commercial Bank,No
Http://opendatacommunities.org/id/metropolitan-district-council/leeds,Leeds City Council,29/02/2016,Central & Corporate,Finance,Supplies and Services,Bank Charges,263,04-Feb-2016,1602-00598,0.00,287.97,R,Alliance & Leicester Commercial Bank,No
Http://opendatacommunities.org/id/metropolitan-district-council/leeds,Leeds City Council,29/02/2016,Central & Corporate,Finance,Supplies and Services,Bank Charges,263,04-Feb-2016,1602-00599,0.00,1013.21,R,Alliance & Leicester Commercial Bank,No
Http://opendatacommunities.org/id/metropolitan-district-council/leeds,Leeds City Council,29/02/2016,Central & Corporate,Finance,Supplies and Services,Bank Charges,263,04-Feb-2016,1602-00600,0.00,100.24,R,Alliance & Leicester Commercial Bank,No
Http://opendatacommunities.org/id/metropolitan-district-council/leeds,Leeds City Council,29/02/2016,City Development,Highways,Supplies and Services,Other Hired And Contracted Services,265,05-Feb-2016,1602-00601,0.00,3009.00,R,Allied Exploration & Geotechnics Ltd,No
Http://opendatacommunities.org/id/metropolitan-district-council/leeds,Leeds City Council,29/02/2016,City Development,Highways,Supplies and Services,Other Hired And Contracted Services,265,15-Feb-2016,1602-00602,0.00,2668.10,R,Allied Exploration & Geotechnics Ltd,No
Http://opendatacommunities.org/id/metropolitan-district-council/leeds,Leeds City Council,29/02/2016,City Development,Highways,Supplies and Services,Other Hired And Contracted Services,265,17-Feb-2016,1602-00603,0.00,4437.36,R,Allied Exploration & Geotechnics Ltd,No
Http://opendatacommunities.org/id/metropolitan-district-council/leeds,Leeds City Council,29/02/2016,City Development,Highways,Supplies and Services,Other Hired And Contracted Services,265,18-Feb-2016,1602-00604,0.00,905.00,R,Allied Exploration & Geotechnics Ltd,No
Http://opendatacommunities.org/id/metropolitan-district-council/leeds,Leeds City Council,29/02/2016,City Development,Highways,Capital,Other Costs,7,24-Feb-2016,1602-00605,0.00,62345.61,C,Allied Exploration & Geotechnics Ltd,No
Http://opendatacommunities.org/id/metropolitan-district-council/leeds,Leeds City Council,29/02/2016,City Development,Highways,Supplies and Services,Other Hired And Contracted Services,265,24-Feb-2016,1602-00606,0.00,12879.88,R,Allied Exploration & Geotechnics Ltd,No
Http://opendatacommunities.org/id/metropolitan-district-council/leeds,Leeds City Council,29/02/2016,Adult Social Care,Services For Older People Under 65 P/Dis,Third Party Payments,Home Care,568,02-Feb-2016,1602-00607,0.00,326.40,R,Allied Healthcare,No
Http://opendatacommunities.org/id/metropolitan-district-council/leeds,Leeds City Council,29/02/2016,Childrens Services,Safeguarding Targeted & Specialist,Third Party Payments,Services Rendered By Voluntary Sector,505,02-Feb-2016,1602-00608,0.00,846.95,R,Allied Healthcare,No
Http://opendatacommunities.org/id/metropolitan-district-council/leeds,Leeds City Council as Accountable Body,29/02/2016,Social Services Pooled Budgets,Jcs For People With Learning Disabilitie,Third Party Payments,Home Care,568,02-Feb-2016,1602-00609,0.00,99.75,R,Allied Healthcare,No
Http://opendatacommunities.org/id/metropolitan-district-council/leeds,Leeds City Council,29/02/2016,Adult Social Care,Services For Older People - 65 And Over,Third Party Payments,Home Care,568,02-Feb-2016,1602-00610,0.00,601.80,R,Allied Healthcare,No
Http://opendatacommunities.org/id/metropolitan-district-council/leeds,Leeds City Council,29/02/2016,Adult Social Care,Services For Older People - 65 And Over,Third Party Payments,Home Care,568,02-Feb-2016,1602-00611,0.00,387.60,R,Allied Healthcare,No
Http://opendatacommunities.org/id/metropolitan-district-council/leeds,Leeds City Council,29/02/2016,Adult Social Care,Services For Older People - 65 And Over,Third Party Payments,Home Care,568,02-Feb-2016,1602-00612,0.00,153.00,R,Allied Healthcare,No
Http://opendatacommunities.org/id/metropolitan-district-council/leeds,Leeds City Council,29/02/2016,Adult Social Care,Services For Older People Under 65 P/Dis,Third Party Payments,Home Care,568,02-Feb-2016,1602-00613,0.00,459.00,R,Allied Healthcare,No
Http://opendatacommunities.org/id/metropolitan-district-council/leeds,Leeds City Council,29/02/2016,Adult Social Care,Services For Older People Under 65 P/Dis,Third Party Payments,Home Care,568,02-Feb-2016,1602-00614,0.00,5562.96,R,Allied Healthcare,No
Http://opendatacommunities.org/id/metropolitan-district-council/leeds,Leeds City Council,29/02/2016,Adult Social Care,Services For Older People - 65 And Over,Third Party Payments,Home Care,568,02-Feb-2016,1602-00615,0.00,385.96,R,Allied Healthcare,No
Http://opendatacommunities.org/id/metropolitan-district-council/leeds,Leeds City Council,29/02/2016,Adult Social Care,Services For Older People Under 65 P/Dis,Third Party Payments,Home Care,568,02-Feb-2016,1602-00616,0.00,1031.93,R,Allied Healthcare,No
Http://opendatacommunities.org/id/metropolitan-district-council/leeds,Leeds City Council as Accountable Body,29/02/2016,Social Services Pooled Budgets,Jcs For People With Learning Disabilitie,Third Party Payments,Home Care,568,02-Feb-2016,1602-00617,0.00,3755.40,R,Allied Healthcare,No
Http://opendatacommunities.org/id/metropolitan-district-council/leeds,Leeds City Council as Accountable Body,29/02/2016,Social Services Pooled Budgets,Jcs For People With Learning Disabilitie,Third Party Payments,Home Care,568,02-Feb-2016,1602-00618,0.00,98.82,R,Allied Healthcare,No
Http://opendatacommunities.org/id/metropolitan-district-council/leeds,Leeds City Council as Accountable Body,29/02/2016,Social Services Pooled Budgets,Jcs For People With Learning Disabilitie,Third Party Payments,Home Care,568,02-Feb-2016,1602-00619,0.00,16415.72,R,Allied Healthcare,No
Http://opendatacommunities.org/id/metropolitan-district-council/leeds,Leeds City Council,29/02/2016,Adult Social Care,Other Generic Services,Third Party Payments,Home Care,568,03-Feb-2016,1602-00620,0.00,17017.85,R,Allied Healthcare,No
Http://opendatacommunities.org/id/metropolitan-district-council/leeds,Leeds City Council,29/02/2016,Adult Social Care,Other Generic Services,Third Party Payments,Home Care,568,03-Feb-2016,1602-00621,0.00,6537.85,R,Allied Healthcare,No
Http://opendatacommunities.org/id/metropolitan-district-council/leeds,Leeds City Council,29/02/2016,Childrens Services,Safeguarding Targeted & Specialist,Third Party Payments,Services Rendered By Voluntary Sector,505,05-Feb-2016,1602-00622,0.00,684.00,R,Allied Healthcare,No
Http://opendatacommunities.org/id/metropolitan-district-council/leeds,Leeds City Council,29/02/2016,Childrens Services,Safeguarding Targeted & Specialist,Third Party Payments,Services Rendered By Voluntary Sector,505,05-Feb-2016,1602-00623,0.00,584.25,R,Allied Healthcare,No
Http://opendatacommunities.org/id/metropolitan-district-council/leeds,Leeds City Council,29/02/2016,Childrens Services,Safeguarding Targeted & Specialist,Third Party Payments,Services Rendered By Voluntary Sector,505,05-Feb-2016,1602-00624,0.00,684.00,R,Allied Healthcare,No
Http://opendatacommunities.org/id/metropolitan-district-council/leeds,Leeds City Council,29/02/2016,Childrens Services,Safeguarding Targeted & Specialist,Third Party Payments,Services Rendered By Voluntary Sector,505,05-Feb-2016,1602-00625,0.00,684.00,R,Allied Healthcare,No
Http://opendatacommunities.org/id/metropolitan-district-council/leeds,Leeds City Council as Accountable Body,29/02/2016,Social Services Pooled Budgets,Jcs For People With Learning Disabilitie,Third Party Payments,Home Care,568,08-Feb-2016,1602-00626,0.00,166.80,R,Allied Healthcare,No
Http://opendatacommunities.org/id/metropolitan-district-council/leeds,Leeds City Council as Accountable Body,29/02/2016,Social Services Pooled Budgets,Jcs For People With Learning Disabilitie,Third Party Payments,Home Care,568,08-Feb-2016,1602-00627,0.00,11.12,R,Allied Healthcare,No
Http://opendatacommunities.org/id/metropolitan-district-council/leeds,Leeds City Council as Accountable Body,29/02/2016,Social Services Pooled Budgets,Jcs For People With Learning Disabilitie,Third Party Payments,Home Care,568,08-Feb-2016,1602-00628,0.00,1350.48,R,Allied Healthcare,No
Http://opendatacommunities.org/id/metropolitan-district-council/leeds,Leeds City Council as Accountable Body,29/02/2016,Social Services Pooled Budgets,Jcs For People With Learning Disabilitie,Third Party Payments,Home Care,568,08-Feb-2016,1602-00629,0.00,211.19,R,Allied Healthcare,No
Http://opendatacommunities.org/id/metropolitan-district-council/leeds,Leeds City Council as Accountable Body,29/02/2016,Social Services Pooled Budgets,Jcs For People With Learning Disabilitie,Third Party Payments,Home Care,568,08-Feb-2016,1602-00630,0.00,978.80,R,Allied Healthcare,No
Http://opendatacommunities.org/id/metropolitan-district-council/leeds,Leeds City Council as Accountable Body,29/02/2016,Social Services Pooled Budgets,Jcs For People With Learning Disabilitie,Third Party Payments,Home Care,568,08-Feb-2016,1602-00631,0.00,1518.82,R,Allied Healthcare,No
Http://opendatacommunities.org/id/metropolitan-district-council/leeds,Leeds City Council as Accountable Body,29/02/2016,Social Services Pooled Budgets,Jcs For People With Learning Disabilitie,Third Party Payments,Home Care,568,08-Feb-2016,1602-00632,0.00,1094.48,R,Allied Healthcare,No
Http://opendatacommunities.org/id/metropolitan-district-council/leeds,Leeds City Council as Accountable Body,29/02/2016,Social Services Pooled Budgets,Jcs For People With Learning Disabilitie,Third Party Payments,Home Care,568,08-Feb-2016,1602-00633,0.00,1144.56,R,Allied Healthcare,No
Http://opendatacommunities.org/id/metropolitan-district-council/leeds,Leeds City Council as Accountable Body,29/02/2016,Social Services Pooled Budgets,Jcs For People With Learning Disabilitie,Third Party Payments,Home Care,568,08-Feb-2016,1602-00634,0.00,1159.58,R,Allied Healthcare,No
Http://opendatacommunities.org/id/metropolitan-district-council/leeds,Leeds City Council as Accountable Body,29/02/2016,Social Services Pooled Budgets,Jcs For People With Learning Disabilitie,Third Party Payments,Home Care,568,08-Feb-2016,1602-00635,0.00,1350.48,R,Allied Healthcare,No
Http://opendatacommunities.org/id/metropolitan-district-council/leeds,Leeds City Council as Accountable Body,29/02/2016,Social Services Pooled Budgets,Jcs For People With Learning Disabilitie,Third Party Payments,Home Care,568,08-Feb-2016,1602-00636,0.00,984.20,R,Allied Healthcare,No
Http://opendatacommunities.org/id/metropolitan-district-council/leeds,Leeds City Council as Accountable Body,29/02/2016,Social Services Pooled Budgets,Jcs For People With Learning Disabilitie,Third Party Payments,Home Care,568,08-Feb-2016,1602-00637,0.00,994.56,R,Allied Healthcare,No
Http://opendatacommunities.org/id/metropolitan-district-council/leeds,Leeds City Council as Accountable Body,29/02/2016,Social Services Pooled Budgets,Jcs For People With Learning Disabilitie,Third Party Payments,Home Care,568,08-Feb-2016,1602-00638,0.00,-89.46,R,Allied Healthcare,No
Http://opendatacommunities.org/id/metropolitan-district-council/leeds,Leeds City Council,29/02/2016,Childrens Services,Safeguarding Targeted & Specialist,Third Party Payments,Services Rendered By Voluntary Sector,505,09-Feb-2016,1602-00639,0.00,1061.84,R,Allied Healthcare,No
Http://opendatacommunities.org/id/metropolitan-district-council/leeds,Leeds City Council as Accountable Body,29/02/2016,Social Services Pooled Budgets,Jcs For People With Learning Disabilitie,Third Party Payments,Home Care,568,09-Feb-2016,1602-00640,0.00,426.70,R,Allied Healthcare,No
Http://opendatacommunities.org/id/metropolitan-district-council/leeds,Leeds City Council,29/02/2016,Childrens Services,Safeguarding Targeted & Specialist,Third Party Payments,Services Rendered By Voluntary Sector,505,10-Feb-2016,1602-00641,0.00,562.89,R,Allied Healthcare,No
Http://opendatacommunities.org/id/metropolitan-district-council/leeds,Leeds City Council,29/02/2016,Childrens Services,Safeguarding Targeted & Specialist,Third Party Payments,Services Rendered By Voluntary Sector,505,10-Feb-2016,1602-00642,0.00,741.14,R,Allied Healthcare,No
Http://opendatacommunities.org/id/metropolitan-district-council/leeds,Leeds City Council,29/02/2016,Adult Social Care,Services For Older People - 65 And Over,Third Party Payments,Home Care,568,10-Feb-2016,1602-00643,0.00,376.38,R,Allied Healthcare,No
Http://opendatacommunities.org/id/metropolitan-district-council/leeds,Leeds City Council,29/02/2016,Adult Social Care,Services For Older People Under 65 P/Dis,Third Party Payments,Home Care,568,10-Feb-2016,1602-00644,0.00,339.65,R,Allied Healthcare,No
Http://opendatacommunities.org/id/metropolitan-district-council/leeds,Leeds City Council,29/02/2016,Adult Social Care,Other Generic Services,Third Party Payments,Home Care,568,11-Feb-2016,1602-00645,0.00,17899.59,R,Allied Healthcare,No
Http://opendatacommunities.org/id/metropolitan-district-council/leeds,Leeds City Council,29/02/2016,Adult Social Care,Other Generic Services,Third Party Payments,Home Care,568,11-Feb-2016,1602-00646,0.00,6630.45,R,Allied Healthcare,No
Http://opendatacommunities.org/id/metropolitan-district-council/leeds,Leeds City Council as Accountable Body,29/02/2016,Social Services Pooled Budgets,Jcs For People With Learning Disabilitie,Third Party Payments,Home Care,568,11-Feb-2016,1602-00647,0.00,4081.44,R,Allied Healthcare,No
Http://opendatacommunities.org/id/metropolitan-district-council/leeds,Leeds City Council as Accountable Body,29/02/2016,Social Services Pooled Budgets,Jcs For People With Learning Disabilitie,Third Party Payments,Home Care,568,12-Feb-2016,1602-00648,0.00,747.08,R,Allied Healthcare,No
Http://opendatacommunities.org/id/metropolitan-district-council/leeds,Leeds City Council as Accountable Body,29/02/2016,Social Services Pooled Budgets,Jcs For People With Learning Disabilitie,Third Party Payments,Home Care,568,12-Feb-2016,1602-00649,0.00,697.13,R,Allied Healthcare,No
Http://opendatacommunities.org/id/metropolitan-district-council/leeds,Leeds City Council as Accountable Body,29/02/2016,Social Services Pooled Budgets,Jcs For People With Learning Disabilitie,Third Party Payments,Home Care,568,12-Feb-2016,1602-00650,0.00,705.91,R,Allied Healthcare,No
Http://opendatacommunities.org/id/metropolitan-district-council/leeds,Leeds City Council as Accountable Body,29/02/2016,Social Services Pooled Budgets,Jcs For People With Learning Disabilitie,Third Party Payments,Home Care,568,12-Feb-2016,1602-00651,0.00,762.32,R,Allied Healthcare,No
Http://opendatacommunities.org/id/metropolitan-district-council/leeds,Leeds City Council as Accountable Body,29/02/2016,Social Services Pooled Budgets,Jcs For People With Learning Disabilitie,Third Party Payments,Home Care,568,12-Feb-2016,1602-00652,0.00,736.81,R,Allied Healthcare,No
Http://opendatacommunities.org/id/metropolitan-district-council/leeds,Leeds City Council as Accountable Body,29/02/2016,Social Services Pooled Budgets,Jcs For People With Learning Disabilitie,Third Party Payments,Home Care,568,12-Feb-2016,1602-00653,0.00,-69.36,R,Allied Healthcare,No
Http://opendatacommunities.org/id/metropolitan-district-council/leeds,Leeds City Council as Accountable Body,29/02/2016,Social Services Pooled Budgets,Jcs For People With Learning Disabilitie,Third Party Payments,Home Care,568,12-Feb-2016,1602-00654,0.00,-19.41,R,Allied Healthcare,No
Http://opendatacommunities.org/id/metropolitan-district-council/leeds,Leeds City Council as Accountable Body,29/02/2016,Social Services Pooled Budgets,Jcs For People With Learning Disabilitie,Third Party Payments,Home Care,568,12-Feb-2016,1602-00655,0.00,-28.19,R,Allied Healthcare,No
Http://opendatacommunities.org/id/metropolitan-district-council/leeds,Leeds City Council as Accountable Body,29/02/2016,Social Services Pooled Budgets,Jcs For People With Learning Disabilitie,Third Party Payments,Home Care,568,12-Feb-2016,1602-00656,0.00,-84.60,R,Allied Healthcare,No
Http://opendatacommunities.org/id/metropolitan-district-council/leeds,Leeds City Council as Accountable Body,29/02/2016,Social Services Pooled Budgets,Jcs For People With Learning Disabilitie,Third Party Payments,Home Care,568,12-Feb-2016,1602-00657,0.00,-59.09,R,Allied Healthcare,No
Http://opendatacommunities.org/id/metropolitan-district-council/leeds,Leeds City Council as Accountable Body,29/02/2016,Social Services Pooled Budgets,Jcs For People With Learning Disabilitie,Third Party Payments,Home Care,568,12-Feb-2016,1602-00658,0.00,-56.71,R,Allied Healthcare,No
Http://opendatacommunities.org/id/metropolitan-district-council/leeds,Leeds City Council as Accountable Body,29/02/2016,Social Services Pooled Budgets,Jcs For People With Learning Disabilitie,Third Party Payments,Home Care,568,12-Feb-2016,1602-00659,0.00,-56.71,R,Allied Healthcare,No
Http://opendatacommunities.org/id/metropolitan-district-council/leeds,Leeds City Council as Accountable Body,29/02/2016,Social Services Pooled Budgets,Jcs For People With Learning Disabilitie,Third Party Payments,Home Care,568,12-Feb-2016,1602-00660,0.00,0.00,R,Allied Healthcare,No
Http://opendatacommunities.org/id/metropolitan-district-council/leeds,Leeds City Council as Accountable Body,29/02/2016,Social Services Pooled Budgets,Jcs For People With Learning Disabilitie,Third Party Payments,Home Care,568,12-Feb-2016,1602-00661,0.00,-32.41,R,Allied Healthcare,No
Http://opendatacommunities.org/id/metropolitan-district-council/leeds,Leeds City Council as Accountable Body,29/02/2016,Social Services Pooled Budgets,Jcs For People With Learning Disabilitie,Third Party Payments,Home Care,568,15-Feb-2016,1602-00662,0.00,734.43,R,Allied Healthcare,No
Http://opendatacommunities.org/id/metropolitan-district-council/leeds,Leeds City Council as Accountable Body,29/02/2016,Social Services Pooled Budgets,Jcs For People With Learning Disabilitie,Third Party Payments,Home Care,568,15-Feb-2016,1602-00663,0.00,734.43,R,Allied Healthcare,No
Http://opendatacommunities.org/id/metropolitan-district-council/leeds,Leeds City Council as Accountable Body,29/02/2016,Social Services Pooled Budgets,Jcs For People With Learning Disabilitie,Third Party Payments,Home Care,568,15-Feb-2016,1602-00664,0.00,710.13,R,Allied Healthcare,No
Http://opendatacommunities.org/id/metropolitan-district-council/leeds,Leeds City Council,29/02/2016,Adult Social Care,Services For Older People - 65 And Over,Third Party Payments,Home Care,568,15-Feb-2016,1602-00665,0.00,14404.05,R,Allied Healthcare,No
Http://opendatacommunities.org/id/metropolitan-district-council/leeds,Leeds City Council,29/02/2016,Adult Social Care,Services For Older People Under 65 P/Dis,Third Party Payments,Home Care,568,15-Feb-2016,1602-00666,0.00,2226.35,R,Allied Healthcare,No
Http://opendatacommunities.org/id/metropolitan-district-council/leeds,Leeds City Council,29/02/2016,Adult Social Care,Services For Older People - 65 And Over,Third Party Payments,Home Care,568,15-Feb-2016,1602-00667,0.00,18144.03,R,Allied Healthcare,No
Http://opendatacommunities.org/id/metropolitan-district-council/leeds,Leeds City Council,29/02/2016,Adult Social Care,Services For Older People Under 65 P/Dis,Third Party Payments,Home Care,568,15-Feb-2016,1602-00668,0.00,2023.44,R,Allied Healthcare,No
Http://opendatacommunities.org/id/metropolitan-district-council/leeds,Leeds City Council,29/02/2016,Adult Social Care,Services For Older People - 65 And Over,Third Party Payments,Home Care,568,15-Feb-2016,1602-00669,0.00,10860.82,R,Allied Healthcare,No
Http://opendatacommunities.org/id/metropolitan-district-council/leeds,Leeds City Council,29/02/2016,Adult Social Care,Services For Older People Under 65 P/Dis,Third Party Payments,Home Care,568,15-Feb-2016,1602-00670,0.00,1236.32,R,Allied Healthcare,No
Http://opendatacommunities.org/id/metropolitan-district-council/leeds,Leeds City Council,29/02/2016,Adult Social Care,Services For Adults Under 65 Mental/Dis,Third Party Payments,Home Care,568,16-Feb-2016,1602-00671,0.00,1107.25,R,Allied Healthcare,No
Http://opendatacommunities.org/id/metropolitan-district-council/leeds,Leeds City Council,29/02/2016,Adult Social Care,Services For Older People - 65 And Over,Third Party Payments,Home Care,568,17-Feb-2016,1602-00672,0.00,773.76,R,Allied Healthcare,No
Http://opendatacommunities.org/id/metropolitan-district-council/leeds,Leeds City Council,29/02/2016,Adult Social Care,Services For Older People Under 65 P/Dis,Third Party Payments,Home Care,568,17-Feb-2016,1602-00673,0.00,227.05,R,Allied Healthcare,No
Http://opendatacommunities.org/id/metropolitan-district-council/leeds,Leeds City Council,29/02/2016,Adult Social Care,Services For Older People - 65 And Over,Third Party Payments,Home Care,568,17-Feb-2016,1602-00674,0.00,17.92,R,Allied Healthcare,No
Http://opendatacommunities.org/id/metropolitan-district-council/leeds,Leeds City Council,29/02/2016,Adult Social Care,Services For Older People Under 65 P/Dis,Third Party Payments,Home Care,568,17-Feb-2016,1602-00675,0.00,53.78,R,Allied Healthcare,No
Http://opendatacommunities.org/id/metropolitan-district-council/leeds,Leeds City Council,29/02/2016,Adult Social Care,Services For Older People - 65 And Over,Third Party Payments,Home Care,568,17-Feb-2016,1602-00676,0.00,322.65,R,Allied Healthcare,No
Http://opendatacommunities.org/id/metropolitan-district-council/leeds,Leeds City Council,29/02/2016,Adult Social Care,Services For Older People - 65 And Over,Third Party Payments,Home Care,568,17-Feb-2016,1602-00677,0.00,59.76,R,Allied Healthcare,No
Http://opendatacommunities.org/id/metropolitan-district-council/leeds,Leeds City Council,29/02/2016,Adult Social Care,Services For Older People - 65 And Over,Third Party Payments,Home Care,568,17-Feb-2016,1602-00678,0.00,68.71,R,Allied Healthcare,No
Http://opendatacommunities.org/id/metropolitan-district-council/leeds,Leeds City Council as Accountable Body,29/02/2016,Social Services Pooled Budgets,Jcs For People With Learning Disabilitie,Third Party Payments,Home Care,568,19-Feb-2016,1602-00679,0.00,714.23,R,Allied Healthcare,No
Http://opendatacommunities.org/id/metropolitan-district-council/leeds,Leeds City Council as Accountable Body,29/02/2016,Social Services Pooled Budgets,Jcs For People With Learning Disabilitie,Third Party Payments,Home Care,568,22-Feb-2016,1602-00680,0.00,117.85,R,Allied Healthcare,No
Http://opendatacommunities.org/id/metropolitan-district-council/leeds,Leeds City Council as Accountable Body,29/02/2016,Social Services Pooled Budgets,Jcs For People With Learning Disabilitie,Third Party Payments,Home Care,568,26-Feb-2016,1602-00681,0.00,338.85,R,Allied Healthcare,No
Http://opendatacommunities.org/id/metropolitan-district-council/leeds,Leeds City Council as Accountable Body,29/02/2016,Social Services Pooled Budgets,Jcs For People With Learning Disabilitie,Third Party Payments,Home Care,568,26-Feb-2016,1602-00682,0.00,98.20,R,Allied Healthcare,No
Http://opendatacommunities.org/id/metropolitan-district-council/leeds,Leeds City Council as Accountable Body,29/02/2016,Social Services Pooled Budgets,Jcs For People With Learning Disabilitie,Third Party Payments,Home Care,568,26-Feb-2016,1602-00683,0.00,98.20,R,Allied Healthcare,No
Http://opendatacommunities.org/id/metropolitan-district-council/leeds,Leeds City Council as Accountable Body,29/02/2016,Social Services Pooled Budgets,Jcs For People With Learning Disabilitie,Third Party Payments,Home Care,568,26-Feb-2016,1602-00684,0.00,94.86,R,Allied Healthcare,No
Http://opendatacommunities.org/id/metropolitan-district-council/leeds,Leeds City Council as Accountable Body,29/02/2016,Social Services Pooled Budgets,Jcs For People With Learning Disabilitie,Third Party Payments,Home Care,568,26-Feb-2016,1602-00685,0.00,98.20,R,Allied Healthcare,No
Http://opendatacommunities.org/id/metropolitan-district-council/leeds,Leeds City Council as Accountable Body,29/02/2016,Social Services Pooled Budgets,Jcs For People With Learning Disabilitie,Third Party Payments,Home Care,568,26-Feb-2016,1602-00686,0.00,98.20,R,Allied Healthcare,No
Http://opendatacommunities.org/id/metropolitan-district-council/leeds,Leeds City Council as Accountable Body,29/02/2016,Social Services Pooled Budgets,Jcs For People With Learning Disabilitie,Third Party Payments,Home Care,568,26-Feb-2016,1602-00687,0.00,98.20,R,Allied Healthcare,No
Http://opendatacommunities.org/id/metropolitan-district-council/leeds,Leeds City Council as Accountable Body,29/02/2016,Social Services Pooled Budgets,Jcs For People With Learning Disabilitie,Third Party Payments,Home Care,568,26-Feb-2016,1602-00688,0.00,98.20,R,Allied Healthcare,No
Http://opendatacommunities.org/id/metropolitan-district-council/leeds,Leeds City Council as Accountable Body,29/02/2016,Social Services Pooled Budgets,Jcs For People With Learning Disabilitie,Third Party Payments,Home Care,568,26-Feb-2016,1602-00689,0.00,98.20,R,Allied Healthcare,No
Http://opendatacommunities.org/id/metropolitan-district-council/leeds,Leeds City Council as Accountable Body,29/02/2016,Social Services Pooled Budgets,Jcs For People With Learning Disabilitie,Third Party Payments,Home Care,568,26-Feb-2016,1602-00690,0.00,98.20,R,Allied Healthcare,No
Http://opendatacommunities.org/id/metropolitan-district-council/leeds,Leeds City Council as Accountable Body,29/02/2016,Social Services Pooled Budgets,Jcs For People With Learning Disabilitie,Third Party Payments,Home Care,568,26-Feb-2016,1602-00691,0.00,8.20,R,Allied Healthcare,No
Http://opendatacommunities.org/id/metropolitan-district-council/leeds,Leeds City Council as Accountable Body,29/02/2016,Social Services Pooled Budgets,Jcs For People With Learning Disabilitie,Third Party Payments,Home Care,568,26-Feb-2016,1602-00692,0.00,98.20,R,Allied Healthcare,No
Http://opendatacommunities.org/id/metropolitan-district-council/leeds,Leeds City Council as Accountable Body,29/02/2016,Social Services Pooled Budgets,Jcs For People With Learning Disabilitie,Third Party Payments,Home Care,568,26-Feb-2016,1602-00693,0.00,98.20,R,Allied Healthcare,No
Http://opendatacommunities.org/id/metropolitan-district-council/leeds,Leeds City Council as Accountable Body,29/02/2016,Social Services Pooled Budgets,Jcs For People With Learning Disabilitie,Third Party Payments,Home Care,568,26-Feb-2016,1602-00694,0.00,3933.60,R,Allied Healthcare,No
Http://opendatacommunities.org/id/metropolitan-district-council/leeds,Leeds City Council,29/02/2016,Adult Social Care,Services For Older People Under 65 P/Dis,Third Party Payments,Home Care,568,26-Feb-2016,1602-00695,0.00,163.20,R,Allied Healthcare,No
Http://opendatacommunities.org/id/metropolitan-district-council/leeds,Leeds City Council,29/02/2016,Childrens Services,Safeguarding Targeted & Specialist,Third Party Payments,Services Rendered By Voluntary Sector,505,26-Feb-2016,1602-00696,0.00,684.00,R,Allied Healthcare,No
Http://opendatacommunities.org/id/metropolitan-district-council/leeds,Leeds City Council as Accountable Body,29/02/2016,Social Services Pooled Budgets,Jcs For People With Learning Disabilitie,Third Party Payments,Home Care,568,29-Feb-2016,1602-00697,0.00,13524.43,R,Allied Healthcare,No
Http://opendatacommunities.org/id/metropolitan-district-council/leeds,Leeds City Council,29/02/2016,Childrens Services,Safeguarding Targeted & Specialist,Third Party Payments,Placement Support,550,03-Feb-2016,1602-00698,0.00,6345.00,R,Allied Vehicles Ltd,No
Http://opendatacommunities.org/id/metropolitan-district-council/leeds,Leeds City Council,29/02/2016,Environment & Housing,Strategic Housing Support  ,Supplies and Services,Other Hired And Contracted Services,265,15-Jan-2016,1602-00699,0.00,95.11,R,Allpay Moto (Callpay/ivr,Yes
Http://opendatacommunities.org/id/metropolitan-district-council/leeds,Leeds City Council,29/02/2016,Environment & Housing,Waste Management,Transport,Fuel (Non LCC Supplies),321,08-Feb-2016,1602-00700,0.00,5.20,R,Allstar Business Solutions Ltd,No
Http://opendatacommunities.org/id/metropolitan-district-council/leeds,Leeds City Council,29/02/2016,Central & Corporate,Democratic Services,Transport,Fuel (Non LCC Supplies),321,08-Feb-2016,1602-00701,0.00,180.49,R,Allstar Business Solutions Ltd,No
Http://opendatacommunities.org/id/metropolitan-district-council/leeds,Leeds City Council,29/02/2016,Environment & Housing,Parks and Countryside,Transport,Fuel (Non LCC Supplies),321,08-Feb-2016,1602-00702,0.00,62.07,R,Allstar Business Solutions Ltd,No
Http://opendatacommunities.org/id/metropolitan-district-council/leeds,Leeds City Council,29/02/2016,City Development,Highways,Transport,Fuel (Non LCC Supplies),321,08-Feb-2016,1602-00703,0.00,431.96,R,Allstar Business Solutions Ltd,No
Http://opendatacommunities.org/id/metropolitan-district-council/leeds,Leeds City Council,29/02/2016,Childrens Services,Learning Skills & Universal,Transport,Fuel (Non LCC Supplies),321,08-Feb-2016,1602-00704,0.00,2199.38,R,Allstar Business Solutions Ltd,No
Http://opendatacommunities.org/id/metropolitan-district-council/leeds,Leeds City Council,29/02/2016,Central & Corporate,Commercial Services Trading Services,Transport,Fuel (Non LCC Supplies),321,12-Feb-2016,1602-00705,0.00,52.69,R,Allstar Business Solutions Ltd,No
Http://opendatacommunities.org/id/metropolitan-district-council/leeds,Leeds City Council,29/02/2016,Central & Corporate,Commercial Services Trading Services,Transport,Fuel (Non LCC Supplies),321,29-Feb-2016,1602-00706,0.00,36.50,R,Allstar Business Solutions Ltd,No
Http://opendatacommunities.org/id/metropolitan-district-council/leeds,Leeds City Council,29/02/2016,Strategic Landlord,Property and Contracts,Premises,General Maintenance,104,19-Feb-2016,1602-00707,0.00,166.67,R,Al-Murad Diy Ltd,No
Http://opendatacommunities.org/id/metropolitan-district-council/leeds,Leeds City Council,29/02/2016,Strategic Landlord,Property and Contracts,Premises,General Maintenance,104,19-Feb-2016,1602-00708,0.00,66.67,R,Al-Murad Diy Ltd,No
Http://opendatacommunities.org/id/metropolitan-district-council/leeds,Leeds City Council,29/02/2016,Strategic Landlord,Property and Contracts,Premises,General Maintenance,104,19-Feb-2016,1602-00709,0.00,125.00,R,Al-Murad Diy Ltd,No
Http://opendatacommunities.org/id/metropolitan-district-council/leeds,Leeds City Council,29/02/2016,Strategic Landlord,Property and Contracts,Premises,General Maintenance,104,19-Feb-2016,1602-00710,0.00,33.34,R,Al-Murad Diy Ltd,No
Http://opendatacommunities.org/id/metropolitan-district-council/leeds,Leeds City Council,29/02/2016,Strategic Landlord,Property and Contracts,Premises,General Maintenance,104,19-Feb-2016,1602-00711,0.00,83.34,R,Al-Murad Diy Ltd,No
Http://opendatacommunities.org/id/metropolitan-district-council/leeds,Leeds City Council,29/02/2016,Environment & Housing,Strategic Housing Support,Supplies and Services,Other Hired And Contracted Services,265,29-Feb-2016,1602-00712,0.00,530.23,R,Alpesh Patel,No
Http://opendatacommunities.org/id/metropolitan-district-council/leeds,Leeds City Council,29/02/2016,Childrens Services,Safeguarding Targeted & Specialist  ,Third Party Payments,Placement Support,550,14-Jan-2016,1602-00713,0.00,585.00,R,Alpha Biolaboratories,Yes
Http://opendatacommunities.org/id/metropolitan-district-council/leeds,Leeds City Council,29/02/2016,Childrens Services,Safeguarding Targeted & Specialist,Support Services,Legal Disbursements,411,04-Feb-2016,1602-00714,0.00,65.00,R,Alpha Biolaboratories Limited,No
Http://opendatacommunities.org/id/metropolitan-district-council/leeds,Leeds City Council,29/02/2016,Childrens Services,Safeguarding Targeted & Specialist,Support Services,Legal Disbursements,411,04-Feb-2016,1602-00715,0.00,61.50,R,Alpha Biolaboratories Limited,No
Http://opendatacommunities.org/id/metropolitan-district-council/leeds,Leeds City Council,29/02/2016,Childrens Services,Safeguarding Targeted & Specialist,Support Services,Legal Disbursements,411,04-Feb-2016,1602-00716,0.00,148.75,R,Alpha Biolaboratories Limited,No
Http://opendatacommunities.org/id/metropolitan-district-council/leeds,Leeds City Council,29/02/2016,Childrens Services,Safeguarding Targeted & Specialist,Support Services,Legal Disbursements,411,04-Feb-2016,1602-00717,0.00,116.25,R,Alpha Biolaboratories Limited,No
Http://opendatacommunities.org/id/metropolitan-district-council/leeds,Leeds City Council,29/02/2016,Childrens Services,Safeguarding Targeted & Specialist,Support Services,Legal Disbursements,411,04-Feb-2016,1602-00718,0.00,146.67,R,Alpha Biolaboratories Limited,No
Http://opendatacommunities.org/id/metropolitan-district-council/leeds,Leeds City Council,29/02/2016,Childrens Services,Safeguarding Targeted & Specialist,Support Services,Legal Disbursements,411,10-Feb-2016,1602-00719,0.00,148.27,R,Alpha Biolaboratories Limited,No
Http://opendatacommunities.org/id/metropolitan-district-council/leeds,Leeds City Council,29/02/2016,Childrens Services,Safeguarding Targeted & Specialist,Support Services,Legal Disbursements,411,19-Feb-2016,1602-00720,0.00,147.50,R,Alpha Biolaboratories Limited,No
Http://opendatacommunities.org/id/metropolitan-district-council/leeds,Leeds City Council,29/02/2016,Childrens Services,Safeguarding Targeted & Specialist,Support Services,Legal Disbursements,411,24-Feb-2016,1602-00721,0.00,211.25,R,Alpha Biolaboratories Limited,No
Http://opendatacommunities.org/id/metropolitan-district-council/leeds,Leeds City Council,29/02/2016,Childrens Services,Safeguarding Targeted & Specialist,Support Services,Legal Disbursements,411,25-Feb-2016,1602-00722,0.00,360.00,R,Alpha Biolaboratories Limited,No
Http://opendatacommunities.org/id/metropolitan-district-council/leeds,Leeds City Council,29/02/2016,Childrens Services,Safeguarding Targeted & Specialist,Support Services,Legal Disbursements,411,25-Feb-2016,1602-00723,0.00,280.00,R,Alpha Biolaboratories Limited,No
Http://opendatacommunities.org/id/metropolitan-district-council/leeds,Leeds City Council,29/02/2016,Childrens Services,Safeguarding Targeted & Specialist,Support Services,Legal Disbursements,411,25-Feb-2016,1602-00724,0.00,405.00,R,Alpha Biolaboratories Limited,No
Http://opendatacommunities.org/id/metropolitan-district-council/leeds,Leeds City Council,29/02/2016,Childrens Services,Safeguarding Targeted & Specialist,Support Services,Legal Disbursements,411,25-Feb-2016,1602-00725,0.00,266.67,R,Alpha Biolaboratories Limited,No
Http://opendatacommunities.org/id/metropolitan-district-council/leeds,Leeds City Council,29/02/2016,Childrens Services,Safeguarding Targeted & Specialist,Support Services,Legal Disbursements,411,25-Feb-2016,1602-00726,0.00,324.67,R,Alpha Biolaboratories Limited,No
Http://opendatacommunities.org/id/metropolitan-district-council/leeds,Leeds City Council,29/02/2016,Childrens Services,Safeguarding Targeted & Specialist,Support Services,Legal Disbursements,411,26-Feb-2016,1602-00727,0.00,229.75,R,Alpha Biolaboratories Limited,No
Http://opendatacommunities.org/id/metropolitan-district-council/leeds,Leeds City Council,29/02/2016,City Development,Economic Development,Supplies and Services,Other Hired And Contracted Services,265,03-Feb-2016,1602-00728,0.00,1695.00,R,Alpha Card Compact Media Ltd,No
Http://opendatacommunities.org/id/metropolitan-district-council/leeds,Leeds City Council,29/02/2016,Childrens Services,Safeguarding Targeted & Specialist,Third Party Payments,Placement Support,550,05-Feb-2016,1602-00729,0.00,15.00,R,Alpha Hospitals Sheffield Patient Acc,No
Http://opendatacommunities.org/id/metropolitan-district-council/leeds,Leeds City Council,29/02/2016,Childrens Services,Safeguarding Targeted & Specialist,Third Party Payments,Placement Support,550,12-Feb-2016,1602-00730,0.00,140.00,R,Alpha Hospitals Sheffield Patient Acc,No
Http://opendatacommunities.org/id/metropolitan-district-council/leeds,Leeds City Council,29/02/2016,Childrens Services,Safeguarding Targeted & Specialist,Third Party Payments,Contact,548,19-Feb-2016,1602-00731,0.00,15.00,R,Alpha Hospitals Sheffield Patient Acc,No
Http://opendatacommunities.org/id/metropolitan-district-council/leeds,Leeds City Council,29/02/2016,Childrens Services,Safeguarding Targeted & Specialist,Third Party Payments,Placement Support,550,26-Feb-2016,1602-00732,0.00,35.00,R,Alpha Hospitals Sheffield Patient Acc,No
Http://opendatacommunities.org/id/metropolitan-district-council/leeds,Leeds City Council,29/02/2016,Childrens Services,Safeguarding Targeted & Specialist  ,Supplies and Services,General Amenity For Clients/Residents,285,28-Jan-2016,1602-00733,0.00,30.00,R,Alton Towers,Yes
Http://opendatacommunities.org/id/metropolitan-district-council/leeds,Leeds City Council,29/02/2016,Adult Social Care,Services For Older People - 65 And Over,Third Party Payments,Nursing Home,570,10-Feb-2016,1602-00734,0.00,2842.60,R,Alwoodley Nursing Home,No
Http://opendatacommunities.org/id/metropolitan-district-council/leeds,Leeds City Council,29/02/2016,Childrens Services,Partnership Development & Leadership,Employees,Training & Development,70,26-Feb-2016,1602-00735,0.00,1322.20,R,REDACTED PERSONAL DATA,No
Http://opendatacommunities.org/id/metropolitan-district-council/leeds,Leeds City Council,29/02/2016,Strategic Landlord,Property and Contracts,Supplies and Services,Compensation Claims,200,18-Feb-2016,1602-00736,0.00,1500.00,R,REDACTED PERSONAL DATA,No
Http://opendatacommunities.org/id/metropolitan-district-council/leeds,Leeds City Council,29/02/2016,Citizens and Communities,Benefits  Wlefare and Poverty,Supplies and Services,Grant Related Expenditure,298,04-Feb-2016,1602-00737,0.00,500.00,R,REDACTED PERSONAL DATA,No
Http://opendatacommunities.org/id/metropolitan-district-council/leeds,Leeds City Council,29/02/2016,Strategic Landlord,Housing Management,Supplies and Services,Compensation Claims,200,04-Feb-2016,1602-00738,0.00,500.00,R,REDACTED PERSONAL DATA,No
Http://opendatacommunities.org/id/metropolitan-district-council/leeds,Leeds City Council,29/02/2016,Childrens Services,Safeguarding Targeted & Specialist  ,Premises,Maintenance Of Buildings,101,19-Jan-2016,1602-00739,0.00,420.00,R,Amari Plastics Plc,Yes
Http://opendatacommunities.org/id/metropolitan-district-council/leeds,Leeds City Council,29/02/2016,Central & Corporate,Commercial Services Trading Services,Supplies and Services,Operational Materials,205,15-Feb-2016,1602-00740,0.00,49.00,R,Amari Plastics Plc,No
Http://opendatacommunities.org/id/metropolitan-district-council/leeds,Leeds City Council,29/02/2016,Childrens Services,Learning Skills & Universal,Third Party Payments,Services Rendered By Other Organisations,511,19-Feb-2016,1602-00741,0.00,1924.07,R,Amazing Grace Early Years Childcare,No
Http://opendatacommunities.org/id/metropolitan-district-council/leeds,Leeds City Council,29/02/2016,City Development,Recreation,Supplies and Services,Operational Furniture And Equipment,203,08-Feb-2016,1602-00742,0.00,1884.05,R,Amazon Leisure Uk Ltd,No
Http://opendatacommunities.org/id/metropolitan-district-council/leeds,Leeds City Council,29/02/2016,City Development,Recreation,Supplies and Services,Operational Furniture And Equipment,203,12-Feb-2016,1602-00743,0.00,105.00,R,Amazon Leisure Uk Ltd,No
Http://opendatacommunities.org/id/metropolitan-district-council/leeds,Leeds City Council,29/02/2016,City Development,Recreation,Supplies and Services,Operational Furniture And Equipment,203,12-Feb-2016,1602-00744,0.00,35.13,R,Amazon Leisure Uk Ltd,No
Http://opendatacommunities.org/id/metropolitan-district-council/leeds,Leeds City Council,29/02/2016,City Development,Recreation,Supplies and Services,Operational Furniture And Equipment,203,16-Feb-2016,1602-00745,0.00,45.65,R,Amazon Leisure Uk Ltd,No
Http://opendatacommunities.org/id/metropolitan-district-council/leeds,Leeds City Council,29/02/2016,City Development,Recreation,Supplies and Services,Operational Furniture And Equipment,203,16-Feb-2016,1602-00746,0.00,673.27,R,Amazon Leisure Uk Ltd,No
Http://opendatacommunities.org/id/metropolitan-district-council/leeds,Leeds City Council,29/02/2016,City Development,Recreation,Supplies and Services,Operational Furniture And Equipment,203,17-Feb-2016,1602-00747,0.00,2279.44,R,Amazon Leisure Uk Ltd,No
